Workbook

Sheet Cover
A1: Cover
C3: Model name: | D3: PR24PD11 - WINEP Reconciliation Model
C4: Version number: | D4: FD v1
C5: Filename: | D5: PR24PD11-PR19 WINEP recon model-NWT
C6: Date: | D6: Dec 2024
C7: Author: | D7: Ofwat
C8: Contact: | D8: PR24@ofwat.gov.uk
C10: Summary of model: | D10: This illustrative model is designed to show how we will account for the impact of ministerial decisions on the scale of companies’ environmental enhancement programmes where this differs from our assumptions made at FD. Please note that, for brevity, the term 'WINEP' is used throughout. However, it should be taken to include both the WINEP in England and the NEP in Wales.
D11: On sheet "WINEP_Allowance" we set out the adjustments we will make for each scheme in the company's WINEP programme that at the time of the final determination was unconfirmed. We show what will happen to adjust allowed totex for cost sharing, whether the scheme is confirmed as required or confirmed not required for the period 2020-25. For some companies there will be schemes listed that were not included in our enhancement allowance when we made our final determinations. We will make an opposite adjustment for these.
D12: On sheet "WINEP_Schemes" we convert the units used for each company’s unit cost mechanism as set out in the Cost Efficiency appendix to the company summary document of our Final Determinations. This is a bespoke conversion required for each company and the units shown are for illustration. Not all units shown will be relevant to every company.
D13: For most schemes the proportion confirmed will be either 100% or 0%. We have included a 'Proportion Confirmed' column to allow for the possibility that a scheme is partially confirmed. For example, if a scheme involves work on all reservoirs in a region but some reservoirs are subsequently sold then a reconciliation will be made to recover a proportion of the scheme's costs. For the PR24 determination, on the "WINEP_Inputs" tab we have added some additional columns from column CY onwards. In all company models Column CY is for 'Water company comments'. This has been populated by the company, during the submission of the model with PR24 plans and in the following period where updated versions of the model may have been returned due to query responses. Column CZ is for 'Ofwat review and/or amend comment', it is populated where Ofwat have made amendments during the review of PR24 submitted models, to provide explanation. Explanation is provided in this column for any amendments and the relevant cell is highlighted lilac. In some company models there are additional columns, as required, to ensure company allowances can be calculated. In the "WINEP_Inputs" tab column DA details the Funding clawback category for all relevant actions.
D14: Where schemes have been partially removed the company must present evidence that the proportion remaining has been signed off by the Environment Agency or Natural Resources Wales.
D16: NB - The model price base is 'CPIH Financial year average 2017/18', unless otherwise stated.
C19: Company Specific Detail (only Ofwat populated if required): | D19: United Utilities: The WINEP reconciliation adjustment includes for clawback of funding for actions that have been removed or will not be complete within PR19. Those actions that still need to be completed will be refunded via the 'WINEP Carryover model'. United Utilities model return confirmed all unfunded actions have or will be delivered by the end of PR19, which is reflected as additional funding in their WINEP reconciliation model.
C21: Change Log (prior to PR19 FD model issue): | D21: Sheet(s) in current model | F21: Description of change(s) made | G21: Model link(s)
D22: Track | F22: Linked to correct cells in model. Previously this was incorrectly linked to blank cells. Added some additional tracking lines. | G22: =Track!A1 -> 
D23: User Guide | F23: Expanded the description of how to load the WINEP input data. | G23: ='User Guide'!D13 -> INITIAL SET UP
D24: WINEP_Schemes | F24: Relabelled "Quantity" as "Quantity in PR19 FD" | G24: =WINEP_Schemes!J9 -> Quantity in PR19 FD
D25: WINEP_Schemes | F25: Added new column "Quantity Delivered" and changed the input "Proportion confirmed" to be a calculation of "Quantity Delivered" divided by "Quantity in PR19 FD". | G25: =WINEP_Schemes!K9 -> Quantity Delivered
D26: WINEP_Schemes | F26: Changed all Inputs to be brought forward from the WINEP_Inputs sheet. This affects "Unit", "Unit Conversion", "Quantity" and "Price Control" | G26: =WINEP_Schemes!F9 -> Unit
D27: WINEP_Inputs | F27: Columns CR to CX now contain the WINEP inputs that need to be manually entered. The columns have been re-labelled for clarity. | G27: =WINEP_Inputs!CR3 -> WINEP model inputs
D28: Annual_Outputs | F28: Relabelled the WINEP reconciliation outputs and added additional text for clarity. | G28: =Annual_Outputs!E26 -> WINEP Reconciliation, water resources - without adjustment for time value of money
C30: Instructions: | D30: A model 'User guide' is present in the model to help the user in operating the model.
D31: Follow link >> | E31: Goto User Guide
C33: Error check status: | D33: =Check!$F$2 -> 0 | E33: =IF(D33 = 0, "No error checks", "Error checks active") -> No error checks
D34: =Check!$F$3 -> 5 | E34: =IF(D34 = 0, "No output changes", "Output changes") -> Output changes
A38: End of sheet

Sheet Documentation >>

Sheet User Guide
A1: =RIGHT(CELL("filename", $A$1), LEN(CELL("filename", $A$1)) - SEARCH("]", CELL("filename", $A$1))) -> 
B3: INTRODUCTION
E5: This model will calculate the WINEP reconciliation adjustment in £m.
D7: NAVIGATION
E8: In order to navigate through the model the following key strokes will prove useful:
E9: - To go to a sheet or row select a blue font cell and then either press CTRL+ [ or double click
E10: - To return to the last position press F5 + Enter
E11: - In accordance with best practice, the model is saved with a "Manual Calculation" setting. To ensure a full recalculation press: Ctrl + Alt + F9
D13: INITIAL SET UP
E14: On first use of the model the WINEP_inputs sheet needs to be updated from the 2019 WINEP spreadsheet. You must use the list of WINEP sites as at Final Determination.
D16: 1) | E16: The WINEP_Inputs sheet needs to be setup so that the correct information is loaded onto the WINEP_Schemes sheet. Since all companies have used different units the procedure for doing this will vary. Most companies will be able to follow the steps below:
D17: Step 1 - | E17: In the WINEP workbook identify all schemes that were Amber in the PR19 Final Determination WINEP workbook.
D18: Step 2 - | E18: Copy the schemes to cell C5 of WINEP_Inputs maintaining the column layout of the PR19 Final Determination WINEP spreadsheet.
D19: Step 3 - | E19: Complete column CR for all rows, 'Allowed totex unit rate'. This feeds through to the WINEP_Schemes sheet and should be copied directly from the tables in the Cost Efficiency appendix to the company summary document of our Final Determinations.
D20: Step 4 - | E20: Complete column CS for all rows, 'Quantity proposed in PR19 FD. This feeds through to the WINEP_Schemes sheet and is the amount to be delivered as stated in the Cost Efficiency appendix to the company summary document of our Final Determinations. This should be entered in the appropriate units e.g. £m per benefit point, £ per km LORI, £ per kgP/day removed, etc
D21: Step 5 - | E21: Complete column CT for all rows, 'Quantity Delivered'. This feeds through to the WINEP_Schemes sheet and is the actual amount delivered. The proportion confirmed is then calculated from the inputs in columns CS and CT.
D22: Step 6 - | E22: Complete column CU for all rows with a 1 if the scheme was costed in the FD or a 0 if the scheme was not costed
D23: Step 7 - | E23: In column CV select for all rows the price control that the WINEP adjustment will be applied to
D24: Step 8 - | E24: Enter the units into column CW and a conversion factor into column CX to convert into £m.
D26: 2) | E26: InpTime sheet : This is the sheet where all the Inputs related to dates and timelines are set up:
E27: =Time!A1 -> 
D29: 3) | E29: InpAct sheet : This is the sheet where all the Inputs used in the model calculations are present, all the inputs flow from this sheet into the model calculations:
E30: =InpActive!A1 -> 
E31: Update all Input cells as required.
E33: Recalculate the model once all the sheets are updated. Press Ctrl + Alt + F9
B37: HOW TO SAVE A PDF COPY OF ANY SHEET
D39: Step 1 - | E39: To save a sheet in PDF format, press button "Save as PDF"
D43: Step 2 - | E43: In the dialog box, "Enter sheet name", type the name of the sheet you want to save
D45: Step 3 - | E45: In the dialog box, "Save As" change the file name if required
D47: Step 4 - | E47: Press "Save" to save a Pdf copy of the sheet
B51: HOW TO STORE TRACK IN TRACK SHEET
D53: USING MACRO
E54: To store Track in the Track sheet using the macro, follow the steps below:
D56: Step 1 - | E56: Go to the Track sheet and press the "Store Track" button to save the track for a new case
E57: Store Track
D59: Step 2 - | E59: A dialog box "Enter the label for the new track column" will appear, type the new track label (for example: "version 17r"), the label will appear in row 6
D61: Step 3 - | E61: A dialog box "Enter the comment for the new track" will appear, write a brief description of the change. The description will be appear at the bottom of the track column
D63: Step 4 - | E63: Press enter, a new track column will appear before the last stored track
D65: Step 5 - | E65: Review the difference between stored cases and active case (col H) by selecting the stored case in cell H6.
D67: MANUAL METHOD
E69: To store Track in the Track sheet manually, follow the steps below:
D71: Step 1 - | E71: Select the column by pressing Ctrl + Spacebar and Copy (Ctrl + C). Then insert a new column after the last stored column by pressing Alt, I, E
D73: Step 2 - | E73: Select the newly inserted column (Ctrl + Spacebar) and delete the previously stored values from this column by pressing Delete button
D75: Step 3 - | E75: Go to active track column (H column). Select the range from H6 till 'do not delete row - range end' row and Copy (Ctrl + C)
D77: Step 4 - | E77: Paste the selected values (Alt E, S, V) in newly inserted column
D79: Step 5 - | E79: Update 'New track name' in row 6 of newly inserted column. Then select 'New track name' from the dropdown list present in H6.
D81: Step 6 - | E81: Review the difference between stored cases and active case (col H) by selecting the stored case in cell H6.
A85: End of sheet

Sheet ToC
A1: =RIGHT(CELL("filename", $A$1), LEN(CELL("filename", $A$1)) - SEARCH("]", CELL("filename", $A$1))) -> 
A3: GENERIC MODEL DESIGN
F5: Table of Contents
H8: DOCUMENTATION | L8: MODEL INPUTS | Q8: MODEL CALCULATIONS | V8: MODEL OUTPUTS | Z8: MODEL QA
H10: Cover | L10: WINEP_Inputs | Q10: WINEP_Schemes | V10: Annual_Outputs | Z10: Check
H11: Model cover sheet | L11: WINEP inputs from business plans | Q11: List of WINEP Amber schemes | V11: Annual profile of WINEP reconciliation | Z11: Checks
H13: User Guide | L13: Time | Q13: WINEP_Allowance | V13: F_Outputs | Z13: Track
H14: Explanation of setup and macros | L14: Dates and timelines | Q14: Calculation of allowed cost | V14: Outputs to be uploaded to Fountain | Z14: Model changes and track records
H16: ToC | L16: InpActive
H17: Table of contents | L17: All inputs to be flowed into model
H19: Style Guide
H20: Explanation of different formatting types
A25: End of sheet

Sheet Style Guide
A1: =RIGHT(CELL("filename", $A$1), LEN(CELL("filename", $A$1)) - SEARCH("]", CELL("filename", $A$1))) -> 
A3: SHEET TABS
H5: Light Yellow | J5: Input sheets
H7: No colour (default Excel tab colour) | J7: Calculation and documentation sheets
H9: Pale Blue | J9: Key output sheets
H11: Turquoise | J11: Quality control sheets
H13: Yellow | J13: To be completed, temporary, restructured, or deleted
A16: COLOUR
B18: Font colour only
H19: Blue font | J19: Imported from another sheet
H21: Red font | J21: Exported to another sheet (except from Input sheets)
H23: Black font | J23: Within sheet link or calculation
B25: Font + shade combinations
H26: Black font + Light Yellow shade | J26: Inputs
H28: Black font + Light Yellow shade with grey stripe | J28: Inputs that are not expected to be changed
H30: Black font + Light Grey shade on entire row | J30: Within-worksheet counter-flow
H32: Blue font + Light Grey shade on entire row | J32: Between-worksheet counter-flow
H34: Empty Cell with Light Grey shade | J34: Empty cells being deliberately referenced
B36: Other
H37: Black font + Pale Blue shade on entire row | J37: Section separator
H39: Light Turquoise shade | J39: Stored/dead/hard coded outputs
H41: Tan shade | J41: Pre-model time line actuals
H43: Yellow shade | J43: Work in progress / temporary
H45: Lime shade | J45: Values or logic to be reviewed
B47: Error checks
H48: Green shade | J48: OK
H50: Red shade | J50: Error
A52: End of sheet

Sheet Inputs >>

Sheet Time
A1: =RIGHT(CELL("filename", $A$1), LEN(CELL("filename", $A$1)) - SEARCH("]", CELL("filename", $A$1))) -> 
E2: =Time!E$25 -> Model period ending | J2: =Time!J$25 -> 2019-03-31 | K2: =Time!K$25 -> 2020-03-31 | L2: =Time!L$25 -> 2021-03-31 | M2: =Time!M$25 -> 2022-03-31 | N2: =Time!N$25 -> 2023-03-31 | O2: =Time!O$25 -> 2024-03-31 | P2: =Time!P$25 -> 2025-03-31 | Q2: =Time!Q$25 -> 2026-03-31 | R2: =Time!R$25 -> 2027-03-31 | S2: =Time!S$25 -> 2028-03-31 | T2: =Time!T$25 -> 2029-03-31
E3: =Time!E$107 -> Timeline label | J3: =Time!J$107 -> Pre-Fcst | K3: =Time!K$107 -> Pre-Fcst | L3: =Time!L$107 -> Forecast | M3: =Time!M$107 -> Forecast | N3: =Time!N$107 -> Forecast | O3: =Time!O$107 -> Forecast | P3: =Time!P$107 -> Forecast | Q3: =Time!Q$107 -> Post-Fcst | R3: =Time!R$107 -> Post-Fcst | S3: =Time!S$107 -> Post-Fcst | T3: =Time!T$107 -> Post-Fcst
E4: =Time!E$130 -> Financial year ending | J4: =Time!J$130 -> 2019 | K4: =Time!K$130 -> 2020 | L4: =Time!L$130 -> 2021 | M4: =Time!M$130 -> 2022 | N4: =Time!N$130 -> 2023 | O4: =Time!O$130 -> 2024 | P4: =Time!P$130 -> 2025 | Q4: =Time!Q$130 -> 2026 | R4: =Time!R$130 -> 2027 | S4: =Time!S$130 -> 2028 | T4: =Time!T$130 -> 2029
E5: =Time!E$10 -> Model column counter | F5: Constant | G5: Unit | H5: Total | J5: =Time!J$10 -> 1 | K5: =Time!K$10 -> 2 | L5: =Time!L$10 -> 3 | M5: =Time!M$10 -> 4 | N5: =Time!N$10 -> 5 | O5: =Time!O$10 -> 6 | P5: =Time!P$10 -> 7 | Q5: =Time!Q$10 -> 8 | R5: =Time!R$10 -> 9 | S5: =Time!S$10 -> 10 | T5: =Time!T$10 -> 11
A7: MODEL PERIOD
B9: Model column counter
E10: Model column counter | G10: counter | J10: =I10 + 1 -> 1 | K10: =J10 + 1 -> 2 | L10: =K10 + 1 -> 3 | M10: =L10 + 1 -> 4 | N10: 5 | O10: 6 | P10: =O10 + 1 -> 7 | Q10: =P10 + 1 -> 8 | R10: =Q10 + 1 -> 9 | S10: =R10 + 1 -> 10 | T10: 11
E11: Model column total | F11: =MAX(J10:T10) -> 11 | G11: columns
E13: =E$10 -> Model column counter | F13: 0 | G13: counter | H13: =H$10 -> 0 | I13: 0 | J13: =J$10 -> 1 | K13: 2 | L13: 3 | M13: 4 | N13: 5 | O13: 6 | P13: 7 | Q13: 8 | R13: 9 | S13: 10 | T13: 11
E14: 1st model column flag | G14: flag | H14: =SUM(J14:T14) -> 1 | J14: =IF(J13 = 1, 1, 0) -> 1 | K14: =IF(K13 = 1, 1, 0) -> 0 | L14: 0 | M14: =IF(M13 = 1, 1, 0) -> 0 | N14: =IF(N13 = 1, 1, 0) -> 0 | O14: 0 | P14: =IF(P13 = 1, 1, 0) -> 0 | Q14: =IF(Q13 = 1, 1, 0) -> 0 | R14: =IF(R13 = 1, 1, 0) -> 0 | S14: =IF(S13 = 1, 1, 0) -> 0 | T14: 0
B16: Model period beginning
E17: =InpActive!E12 -> 1st model column start date | F17: =InpActive!F12 -> 2018-04-01 | G17: =InpActive!G12 -> date
E18: =InpActive!E$39 -> Months per model period | F18: =InpActive!F$39 -> 12 | G18: =InpActive!G$39 -> months
E19: =E$14 -> 1st model column flag | F19: 0 | G19: flag | H19: =H$14 -> 1 | I19: 0 | J19: =J$14 -> 1 | K19: 0 | L19: 0 | M19: 0 | N19: 0 | O19: 0 | P19: 0 | Q19: 0 | R19: 0 | S19: 0 | T19: 0
E20: Model period beginning | G20: date | J20: =IF(J19 = 1, $F17, DATE(YEAR(I20), MONTH(I20) + $F18, DAY(1))) -> 2018-04-01 | K20: =IF(K19 = 1, $F17, DATE(YEAR(J20), MONTH(J20) + $F18, DAY(1))) -> 2019-04-01 | L20: =IF(L19 = 1, $F17, DATE(YEAR(K20), MONTH(K20) + $F18, DAY(1))) -> 2020-04-01 | M20: =IF(M19 = 1, $F17, DATE(YEAR(L20), MONTH(L20) + $F18, DAY(1))) -> 2021-04-01 | N20: =IF(N19 = 1, $F17, DATE(YEAR(M20), MONTH(M20) + $F18, DAY(1))) -> 2022-04-01 | O20: 2023-04-01 | P20: =IF(P19 = 1, $F17, DATE(YEAR(O20), MONTH(O20) + $F18, DAY(1))) -> 2024-04-01 | Q20: =IF(Q19 = 1, $F17, DATE(YEAR(P20), MONTH(P20) + $F18, DAY(1))) -> 2025-04-01 | R20: =IF(R19 = 1, $F17, DATE(YEAR(Q20), MONTH(Q20) + $F18, DAY(1))) -> 2026-04-01 | S20: =IF(S19 = 1, $F17, DATE(YEAR(R20), MONTH(R20) + $F18, DAY(1))) -> 2027-04-01 | T20: 2028-04-01
B22: Model period ending
E23: =InpActive!E$39 -> Months per model period | F23: =InpActive!F$39 -> 12 | G23: =InpActive!G$39 -> months
E24: =E$20 -> Model period beginning | F24: 00:00:00 | G24: date | H24: 00:00:00 | I24: 00:00:00 | J24: 2018-04-01 | K24: 2019-04-01 | L24: 2020-04-01 | M24: 2021-04-01 | N24: 2022-04-01 | O24: 2023-04-01 | P24: 2024-04-01 | Q24: 2025-04-01 | R24: 2026-04-01 | S24: 2027-04-01 | T24: 2028-04-01
E25: Model period ending | G25: date | J25: =DATE(YEAR(J24), MONTH(J24) + $F23, DAY(J24) - 1) -> 2019-03-31 | K25: =DATE(YEAR(K24), MONTH(K24) + $F23, DAY(K24) - 1) -> 2020-03-31 | L25: 2021-03-31 | M25: 2022-03-31 | N25: 2023-03-31 | O25: 2024-03-31 | P25: =DATE(YEAR(P24), MONTH(P24) + $F23, DAY(P24) - 1) -> 2025-03-31 | Q25: =DATE(YEAR(Q24), MONTH(Q24) + $F23, DAY(Q24) - 1) -> 2026-03-31 | R25: =DATE(YEAR(R24), MONTH(R24) + $F23, DAY(R24) - 1) -> 2027-03-31 | S25: =DATE(YEAR(S24), MONTH(S24) + $F23, DAY(S24) - 1) -> 2028-03-31 | T25: 2029-03-31
E27: =E$25 -> Model period ending | F27: 00:00:00 | G27: date | H27: 00:00:00 | I27: 00:00:00 | J27: 2019-03-31 | K27: 2020-03-31 | L27: 2021-03-31 | M27: 2022-03-31 | N27: 2023-03-31 | O27: 2024-03-31 | P27: 2025-03-31 | Q27: 2026-03-31 | R27: 2027-03-31 | S27: 2028-03-31 | T27: 2029-03-31
E28: =E$20 -> Model period beginning | F28: 00:00:00 | G28: date | H28: 00:00:00 | I28: 00:00:00 | J28: 2018-04-01 | K28: 2019-04-01 | L28: 2020-04-01 | M28: 2021-04-01 | N28: 2022-04-01 | O28: 2023-04-01 | P28: 2024-04-01 | Q28: 2025-04-01 | R28: 2026-04-01 | S28: 2027-04-01 | T28: 2028-04-01
E29: Days in a year | G29: days | J29: =J27 - J28 + 1 -> 365 | K29: =K27 - K28 + 1 -> 366 | L29: 365 | M29: 365 | N29: 365 | O29: 366 | P29: 365 | Q29: 365 | R29: 365 | S29: =S27 - S28 + 1 -> 366 | T29: 365
A32: FORECAST PERIOD
B34: Forecast start period flag
E35: =InpActive!E$25 -> Forecast start date | F35: =InpActive!F$25 -> 2020-04-01 | G35: =InpActive!G$25 -> date
E36: =E$20 -> Model period beginning | F36: 00:00:00 | G36: date | H36: 00:00:00 | I36: 00:00:00 | J36: 2018-04-01 | K36: 2019-04-01 | L36: 2020-04-01 | M36: 2021-04-01 | N36: 2022-04-01 | O36: 2023-04-01 | P36: 2024-04-01 | Q36: 2025-04-01 | R36: 2026-04-01 | S36: 2027-04-01 | T36: 2028-04-01
E37: =E$25 -> Model period ending | F37: 00:00:00 | G37: date | H37: 00:00:00 | I37: 00:00:00 | J37: 2019-03-31 | K37: 2020-03-31 | L37: 2021-03-31 | M37: 2022-03-31 | N37: 2023-03-31 | O37: 2024-03-31 | P37: 2025-03-31 | Q37: 2026-03-31 | R37: 2027-03-31 | S37: 2028-03-31 | T37: 2029-03-31
E38: Forecast start period flag | G38: flag | H38: =SUM(J38:T38) -> 1 | J38: =IF(AND($F35 >= J36, $F35 <= J37), 1, 0) -> 0 | K38: =IF(AND($F35 >= K36, $F35 <= K37), 1, 0) -> 0 | L38: 1 | M38: 0 | N38: 0 | O38: 0 | P38: =IF(AND($F35 >= P36, $F35 <= P37), 1, 0) -> 0 | Q38: =IF(AND($F35 >= Q36, $F35 <= Q37), 1, 0) -> 0 | R38: =IF(AND($F35 >= R36, $F35 <= R37), 1, 0) -> 0 | S38: =IF(AND($F35 >= S36, $F35 <= S37), 1, 0) -> 0 | T38: 0
B40: Forecast end period flag
E41: =InpActive!E$25 -> Forecast start date | F41: =InpActive!F$25 -> 2020-04-01 | G41: =InpActive!G$25 -> date
E42: =InpActive!E26 -> Forecast duration | F42: =InpActive!F26 -> 5 | G42: =InpActive!G26 -> years
E43: Forecast end date | F43: =DATE(YEAR(F41) + F42, MONTH(F41), DAY(F41) - 1) -> 2025-03-31 | G43: date
E45: =E$43 -> Forecast end date | F45: =F$43 -> 2025-03-31 | G45: =G$43 -> date
E46: =E$20 -> Model period beginning | F46: 00:00:00 | G46: date | H46: 00:00:00 | I46: 00:00:00 | J46: 2018-04-01 | K46: 2019-04-01 | L46: 2020-04-01 | M46: 2021-04-01 | N46: 2022-04-01 | O46: 2023-04-01 | P46: 2024-04-01 | Q46: 2025-04-01 | R46: 2026-04-01 | S46: 2027-04-01 | T46: 2028-04-01
E47: =E$25 -> Model period ending | F47: 00:00:00 | G47: date | H47: 00:00:00 | I47: 00:00:00 | J47: 2019-03-31 | K47: 2020-03-31 | L47: 2021-03-31 | M47: 2022-03-31 | N47: 2023-03-31 | O47: 2024-03-31 | P47: 2025-03-31 | Q47: 2026-03-31 | R47: 2027-03-31 | S47: 2028-03-31 | T47: 2029-03-31
E48: Forecast end period flag | G48: flag | H48: =SUM(J48:T48) -> 1 | J48: =IF(AND($F45 >= J46, $F45 <= J47), 1, 0) -> 0 | K48: =IF(AND($F45 >= K46, $F45 <= K47), 1, 0) -> 0 | L48: =IF(AND($F45 >= L46, $F45 <= L47), 1, 0) -> 0 | M48: =IF(AND($F45 >= M46, $F45 <= M47), 1, 0) -> 0 | N48: 0 | O48: 0 | P48: 1 | Q48: 0 | R48: 0 | S48: =IF(AND($F45 >= S46, $F45 <= S47), 1, 0) -> 0 | T48: 0
B50: Forecast period flag
E51: =E$38 -> Forecast start period flag | F51: =F$38 -> 0 | G51: flag | H51: =H$38 -> 1 | I51: 0 | J51: 0 | K51: 0 | L51: 1 | M51: 0 | N51: 0 | O51: 0 | P51: 0 | Q51: 0 | R51: 0 | S51: 0 | T51: 0
E52: =E$48 -> Forecast end period flag | F52: =F$48 -> 0 | G52: flag | H52: =H$48 -> 1 | I52: 0 | J52: 0 | K52: 0 | L52: 0 | M52: 0 | N52: 0 | O52: 0 | P52: 1 | Q52: 0 | R52: 0 | S52: 0 | T52: 0
E53: Forecast period flag | G53: flag | H53: =SUM(J53:T53) -> 5 | J53: =J51 + I53 - I52 -> 0 | K53: =K51 + J53 - J52 -> 0 | L53: =L51 + K53 - K52 -> 1 | M53: =M51 + L53 - L52 -> 1 | N53: 1 | O53: 1 | P53: =P51 + O53 - O52 -> 1 | Q53: =Q51 + P53 - P52 -> 0 | R53: =R51 + Q53 - Q52 -> 0 | S53: =S51 + R53 - R52 -> 0 | T53: 0
E54: Total number of forecast periods | F54: =SUM(J53:R53) -> 5 | G54: periods
B56: Forecast period counter
E57: =E38 -> Forecast start period flag | F57: =F38 -> 0 | G57: flag | H57: 1 | I57: 0 | J57: 0 | K57: =K38 -> 0 | L57: 1 | M57: 0 | N57: 0 | O57: 0 | P57: 0 | Q57: 0 | R57: 0 | S57: 0 | T57: 0
E58: =E53 -> Forecast period flag | F58: =F53 -> 0 | G58: flag | H58: 5 | I58: 0 | J58: 0 | K58: =K53 -> 0 | L58: 1 | M58: 1 | N58: 1 | O58: 1 | P58: 1 | Q58: 0 | R58: 0 | S58: 0 | T58: 0
E59: =E48 -> Forecast end period flag | F59: =F48 -> 0 | G59: flag | H59: 1 | I59: 0 | J59: =J48 -> 0 | K59: =K48 -> 0 | L59: =L48 -> 0 | M59: 0 | N59: 0 | O59: 0 | P59: 1 | Q59: 0 | R59: 0 | S59: 0 | T59: 0
E60: Forecast period counter | G60: counter | J60: =IF(J57 = 1, 1, I60 + J58 - I59) * J58 -> 0 | K60: =IF(K57 = 1, 1, J60 + K58 - J59) * K58 -> 0 | L60: =IF(L57 = 1, 1, K60 + L58 - K59) * L58 -> 1 | M60: =IF(M57 = 1, 1, L60 + M58 - L59) * M58 -> 2 | N60: =IF(N57 = 1, 1, M60 + N58 - M59) * N58 -> 3 | O60: 4 | P60: 5 | Q60: 0 | R60: 0 | S60: 0 | T60: 0
B62: Pre-forecast period flag
E63: =E$14 -> 1st model column flag | F63: =F$14 -> 0 | G63: flag | H63: 1 | I63: 0 | J63: 1 | K63: 0 | L63: 0 | M63: 0 | N63: 0 | O63: 0 | P63: 0 | Q63: 0 | R63: 0 | S63: 0 | T63: 0
E64: =E$38 -> Forecast start period flag | F64: =F$38 -> 0 | G64: flag | H64: 1 | I64: 0 | J64: 0 | K64: 0 | L64: 1 | M64: 0 | N64: 0 | O64: 0 | P64: 0 | Q64: 0 | R64: 0 | S64: 0 | T64: 0
E65: Pre-forecast period flag | G65: flag | H65: =SUM(J65:T65) -> 2 | J65: =J63 + I65 - J64 -> 1 | K65: =K63 + J65 - K64 -> 1 | L65: =L63 + K65 - L64 -> 0 | M65: =M63 + L65 - M64 -> 0 | N65: 0 | O65: 0 | P65: =P63 + O65 - P64 -> 0 | Q65: =Q63 + P65 - Q64 -> 0 | R65: =R63 + Q65 - R64 -> 0 | S65: =S63 + R65 - S64 -> 0 | T65: 0
E66: Pre-forecast period flag - total | F66: =SUM(J65:T65) -> 2 | G66: periods
E68: =E$38 -> Forecast start period flag | F68: =F$38 -> 0 | G68: flag | H68: 1 | I68: 0 | J68: =J$38 -> 0 | K68: 0 | L68: 1 | M68: 0 | N68: 0 | O68: 0 | P68: 0 | Q68: 0 | R68: 0 | S68: 0 | T68: 0
E69: Last pre-forecast period flag | G69: flag | H69: =SUM(J69:T69) ->  | J69: =K68 -> 0 | K69: =L68 -> 1 | L69: =M68 -> 0 | M69: =N68 -> 0 | N69: 0 | O69: 0 | P69: =Q68 -> 0 | Q69: =R68 -> 0 | R69: =S68 -> 0 | S69: =T68 -> 0 | T69: =#REF! -> 
B71: First post-forecast period flag
E72: =E$48 -> Forecast end period flag | F72: =F$48 -> 0 | G72: flag | H72: 1 | I72: 0 | J72: =J$48 -> 0 | K72: 0 | L72: 0 | M72: 0 | N72: 0 | O72: 0 | P72: 1 | Q72: 0 | R72: 0 | S72: 0 | T72: 0
E73: First post-forecast period flag | G73: flag | H73: =SUM(J73:T73) -> 1 | J73: =I72 -> 0 | K73: =J72 -> 0 | L73: =K72 -> 0 | M73: =L72 -> 0 | N73: 0 | O73: 0 | P73: =O72 -> 0 | Q73: =P72 -> 1 | R73: =Q72 -> 0 | S73: =R72 -> 0 | T73: 0
B75: Post-forecast period flag
E76: =E$73 -> First post-forecast period flag | F76: 0 | G76: flag | H76: 1 | I76: 0 | J76: 0 | K76: 0 | L76: 0 | M76: 0 | N76: 0 | O76: 0 | P76: 0 | Q76: 1 | R76: 0 | S76: 0 | T76: 0
E77: Post-forecast period flag | G77: flag | H77: =SUM(J77:T77) -> 4 | J77: =J76 + I77 -> 0 | K77: =K76 + J77 -> 0 | L77: =L76 + K77 -> 0 | M77: =M76 + L77 -> 0 | N77: 0 | O77: 0 | P77: =P76 + O77 -> 0 | Q77: =Q76 + P77 -> 1 | R77: =R76 + Q77 -> 1 | S77: =S76 + R77 -> 1 | T77: 1
E78: Post-forecast period - total | F78: =SUM(J77:T77) -> 4 | G78: periods
B80: Model period flag
E81: =E$53 -> Forecast period flag | F81: =F$53 -> 0 | G81: flag | H81: 5 | I81: 0 | J81: 0 | K81: 0 | L81: 1 | M81: 1 | N81: 1 | O81: 1 | P81: 1 | Q81: 0 | R81: 0 | S81: 0 | T81: 0
E82: =E$65 -> Pre-forecast period flag | F82: =F$65 -> 0 | G82: flag | H82: 2 | I82: 0 | J82: 1 | K82: 1 | L82: 0 | M82: 0 | N82: 0 | O82: 0 | P82: 0 | Q82: 0 | R82: 0 | S82: 0 | T82: 0
E83: Model period flag | G83: flag | H83: =SUM(J83:T83) -> 7 | J83: =MAX(J81:J82) -> 1 | K83: =MAX(K81:K82) -> 1 | L83: 1 | M83: 1 | N83: 1 | O83: 1 | P83: 1 | Q83: 0 | R83: 0 | S83: =MAX(S81:S82) -> 0 | T83: 0
B85: Forecast year
E86: =E$130 -> Financial year ending | F86: =F$130 -> 0 | G86: year # | H86: 0 | I86: 0 | J86: 2019 | K86: 2020 | L86: 2021 | M86: 2022 | N86: 2023 | O86: 2024 | P86: 2025 | Q86: 2026 | R86: 2027 | S86: 2028 | T86: 2029
E87: =E$38 -> Forecast start period flag | F87: =F$38 -> 0 | G87: flag | H87: 1 | I87: 0 | J87: 0 | K87: 0 | L87: 1 | M87: 0 | N87: 0 | O87: 0 | P87: 0 | Q87: 0 | R87: 0 | S87: 0 | T87: 0
E88: Forecast year 1 | F88: =SUMPRODUCT(J87:T87, J86:T86) -> 2021 | G88: year #
B90: Forecast year
E91: =InpActive!E$29 -> Forecast period reconcilation is profiled from | F91: =InpActive!F$29 -> 3 | G91: =InpActive!G$29 -> year
E92: =E60 -> Forecast period counter | F92: 0 | G92: counter | H92: 0 | I92: 0 | J92: 0 | K92: 0 | L92: 1 | M92: 2 | N92: 3 | O92: 4 | P92: 5 | Q92: 0 | R92: 0 | S92: 0 | T92: 0
E93: Start of adjustment profiling flag | G93: counter | H93: =SUM(J93:T93) -> 3 | J93: =IF(J92 >= $F91, 1, 0) -> 0 | K93: =IF(K92 >= $F91, 1, 0) -> 0 | L93: 0 | M93: 0 | N93: 1 | O93: 1 | P93: 1 | Q93: 0 | R93: 0 | S93: 0 | T93: 0
A95: MODEL TIMELINE
B97: Timeline label
E98: =E$14 -> 1st model column flag | F98: 0 | G98: flag | H98: 1 | I98: 0 | J98: 1 | K98: 0 | L98: 0 | M98: 0 | N98: 0 | O98: 0 | P98: 0 | Q98: 0 | R98: 0 | S98: 0 | T98: 0
E99: =E$38 -> Forecast start period flag | F99: =F$38 -> 0 | G99: flag | H99: 1 | I99: 0 | J99: 0 | K99: 0 | L99: 1 | M99: 0 | N99: 0 | O99: 0 | P99: 0 | Q99: 0 | R99: 0 | S99: 0 | T99: 0
E100: =E$73 -> First post-forecast period flag | F100: 0 | G100: flag | H100: 1 | I100: 0 | J100: 0 | K100: 0 | L100: 0 | M100: 0 | N100: 0 | O100: 0 | P100: 0 | Q100: 1 | R100: 0 | S100: 0 | T100: 0
E101: Timeline label counter | G101: counter | J101: =I101 + SUM(J98:J100) -> 1 | K101: =J101 + SUM(K98:K100) -> 1 | L101: =K101 + SUM(L98:L100) -> 2 | M101: =L101 + SUM(M98:M100) -> 2 | N101: 2 | O101: 2 | P101: =O101 + SUM(P98:P100) -> 2 | Q101: =P101 + SUM(Q98:Q100) -> 3 | R101: =Q101 + SUM(R98:R100) -> 3 | S101: =R101 + SUM(S98:S100) -> 3 | T101: 3
E103: =InpActive!E19 -> Pre - forecast period | F103: =InpActive!F19 -> Pre-Fcst | G103: =InpActive!G19 -> label
E104: =InpActive!E20 -> Forecast period | F104: =InpActive!F20 -> Forecast | G104: =InpActive!G20 -> label
E105: =InpActive!E21 -> Post - forecast period | F105: =InpActive!F21 -> Post-Fcst | G105: =InpActive!G21 -> label
E106: =E$101 -> Timeline label counter | F106: 0 | G106: counter | H106: 0 | I106: 0 | J106: 1 | K106: 1 | L106: 2 | M106: 2 | N106: 2 | O106: 2 | P106: 2 | Q106: 3 | R106: 3 | S106: 3 | T106: 3
E107: Timeline label | G107: label | J107: =INDEX($F103:$F105, J106) -> Pre-Fcst | K107: =INDEX($F103:$F105, K106) -> Pre-Fcst | L107: =INDEX($F103:$F105, L106) -> Forecast | M107: =INDEX($F103:$F105, M106) -> Forecast | N107: =INDEX($F103:$F105, N106) -> Forecast | O107: =INDEX($F103:$F105, O106) -> Forecast | P107: =INDEX($F103:$F105, P106) -> Forecast | Q107: =INDEX($F103:$F105, Q106) -> Post-Fcst | R107: =INDEX($F103:$F105, R106) -> Post-Fcst | S107: =INDEX($F103:$F105, S106) -> Post-Fcst | T107: Post-Fcst
B109: Modelling period check
E110: =E$65 -> Pre-forecast period flag | F110: =F$65 -> 0 | G110: flag | H110: 2 | I110: 0 | J110: 1 | K110: 1 | L110: 0 | M110: 0 | N110: 0 | O110: 0 | P110: 0 | Q110: 0 | R110: 0 | S110: 0 | T110: 0
E111: =E$53 -> Forecast period flag | F111: =F$53 -> 0 | G111: flag | H111: 5 | I111: 0 | J111: 0 | K111: 0 | L111: 1 | M111: 1 | N111: 1 | O111: 1 | P111: 1 | Q111: 0 | R111: 0 | S111: 0 | T111: 0
E112: =E$77 -> Post-forecast period flag | F112: 0 | G112: flag | H112: 4 | I112: 0 | J112: 0 | K112: 0 | L112: 0 | M112: 0 | N112: 0 | O112: 0 | P112: 0 | Q112: 1 | R112: 1 | S112: 1 | T112: 1
E113: No. of overlapping in flags | G113: # | H113: =SUM(J113:T113) -> 0 | J113: =MAX(0, SUM(J110:J112) - 1) -> 0 | K113: =MAX(0, SUM(K110:K112) - 1) -> 0 | L113: =MAX(0, SUM(L110:L112) - 1) -> 0 | M113: =MAX(0, SUM(M110:M112) - 1) -> 0 | N113: =MAX(0, SUM(N110:N112) - 1) -> 0 | O113: 0 | P113: =MAX(0, SUM(P110:P112) - 1) -> 0 | Q113: =MAX(0, SUM(Q110:Q112) - 1) -> 0 | R113: =MAX(0, SUM(R110:R112) - 1) -> 0 | S113: =MAX(0, SUM(S110:S112) - 1) -> 0 | T113: 0
E114: Overlapping in periods - total | F114: =SUM(J113:T113) -> 0 | G114: periods
E116: =E$11 -> Model column total | F116: =F$11 -> 11 | G116: =G$11 -> columns
E117: =E$114 -> Overlapping in periods - total | F117: =F$114 -> 0 | G117: =G$114 -> periods
E118: =E$66 -> Pre-forecast period flag - total | F118: =F$66 -> 2 | G118: =G$66 -> periods
E119: =E$54 -> Total number of forecast periods | F119: =F$54 -> 5 | G119: =G$54 -> periods
E120: =E$78 -> Post-forecast period - total | F120: =F$78 -> 4 | G120: =G$78 -> periods
E121: Modelling period check | F121: =IF(SUM(F116:F117) - SUM(F118:F120) <> 0, 1, 0) -> 0 | G121: check
A124: FINANCIAL YEAR
E126: =InpActive!E15 -> First modelling column financial year # | F126: =InpActive!F15 -> 2019 | G126: =InpActive!G15 -> year #
E127: =InpActive!E16 -> Financial year end month number # | F127: =InpActive!F16 -> 3 | G127: =InpActive!G16 -> month #
E128: =E$25 -> Model period ending | F128: 00:00:00 | G128: date | H128: 00:00:00 | I128: 00:00:00 | J128: 2019-03-31 | K128: 2020-03-31 | L128: 2021-03-31 | M128: 2022-03-31 | N128: 2023-03-31 | O128: 2024-03-31 | P128: 2025-03-31 | Q128: 2026-03-31 | R128: 2027-03-31 | S128: 2028-03-31 | T128: 2029-03-31
E129: =E$14 -> 1st model column flag | F129: 0 | G129: flag | H129: 1 | I129: 0 | J129: 1 | K129: 0 | L129: 0 | M129: 0 | N129: 0 | O129: 0 | P129: 0 | Q129: 0 | R129: 0 | S129: 0 | T129: 0
E130: Financial year ending | G130: year # | J130: =IF(J129 = 1, $F126, IF(J128 > (DATE(I130, $F127 + 1, 1) - 1), I130 + 1, I130)) -> 2019 | K130: =IF(K129 = 1, $F126, IF(K128 > (DATE(J130, $F127 + 1, 1) - 1), J130 + 1, J130)) -> 2020 | L130: =IF(L129 = 1, $F126, IF(L128 > (DATE(K130, $F127 + 1, 1) - 1), K130 + 1, K130)) -> 2021 | M130: =IF(M129 = 1, $F126, IF(M128 > (DATE(L130, $F127 + 1, 1) - 1), L130 + 1, L130)) -> 2022 | N130: 2023 | O130: 2024 | P130: =IF(P129 = 1, $F126, IF(P128 > (DATE(O130, $F127 + 1, 1) - 1), O130 + 1, O130)) -> 2025 | Q130: =IF(Q129 = 1, $F126, IF(Q128 > (DATE(P130, $F127 + 1, 1) - 1), P130 + 1, P130)) -> 2026 | R130: =IF(R129 = 1, $F126, IF(R128 > (DATE(Q130, $F127 + 1, 1) - 1), Q130 + 1, Q130)) -> 2027 | S130: =IF(S129 = 1, $F126, IF(S128 > (DATE(R130, $F127 + 1, 1) - 1), R130 + 1, R130)) -> 2028 | T130: 2029
A133: End of sheet

Sheet WINEP_Inputs
A1: WINEP3 Update March 2019 | H1: National Full data set
AI2: FBG Detail
A3: Draft determination published version | AI3: SSSI/N2K/Ramsar | AN3: Eels | AP3: NERC Driver | AX3: INNS | AZ3: MCZ | BA3: Water Quality Detail | BX3: Water Resource Detail | CH3: Environmental Outcome | CR3: WINEP model inputs | CY3: DD Published model review and amendments
A4: WINEPID | B4: Change Log Winep 2 to 3 | C4: NEW Column. Has an alteration to this measure been made? If Y then please refer to alterations log. | D4: Application in determination by NPS? | E4: Has a permit been issued? | F4: Function | G4: RBD | H4: Area | I4: Water Company | J4: Unique ID * (completed on company collation) | K4: Scheme Name/Name of Investigation/Site Name/Licence name | L4: Name of Waterbody | M4: Waterbody ID | N4: Water Body Type(s) | O4: WFD Operational Catchment | P4: Blank Column | Q4: Blank Column | R4: Blank Column | S4: Driver Code (Primary) | T4: Further Driver Code Information (related to the primary driver if applicable) | U4: Driver Code (Secondary) | V4: Further Driver Code Information (related to the secondary driver if applicable) | W4: Driver Code (Tertiary) | X4: Further Driver Code Information (related to the tertiary driver if applicable) | Y4: Measure Type | Z4: Completion Date (DD/MM/YY) | AA4: Level of Certainty? (P= Purple, R=Red, A=Amber, G=Green | AB4: Abstraction Licence/ Permit, Obstruction ID or No Obstruction ID | AC4: Eastings | AD4: Northings | AE4: Investigation Type | AF4: Investigation Scope | AG4: Implementation Scope | AH4: Groundwater Measures Information | AI4: Name of SSSI (if applicable) | AJ4: Name of N2K/Ramsar site (if applicable) | AK4: SSSI/N2K/Ramsar Unit ID | AL4: SSSI/N2K/Ramsar Area of Unit (Hectares) | AM4: Justification for Action/Investigation | AN4: Eel Priority Status | AO4: Eel Improvement Type | AP4: Primary Type of Priority Habitat Created or Restored/Improved | AQ4: Secondary Type of Priority Habitat Created or Restored/Improved | AR4: Other Priority Habitat Created or Restored/Improved | AS4: Type of Action Taken | AT4: Units Recorded (Hectare or km) | AU4: Number of Hectares or Kms | AV4: Name of Priority Species | AW4: Name of High Risk of Extinction Species | AX4: INNS Control Measure | AY4: INNS Species (if applicable) | AZ4: Name of MCZ | BA4: Name of Bathing Water (where applicable) | BB4: Name of Shellfish Water (where applicable) | BC4: Chemical of Interest (for chemicals measures only) | BD4: Groundwater Chemicals | BE4: Drinking Water Inspectorate - Undertaking or Notice Y/N | BF4: DrWPA Substances at Risk (if applicable) | BG4: Safeguard Zone Name (if applicable) | BH4: Safeguard Zone ID (if applicable) | BI4: Population Equivalent for STWs | BJ4: Current Permit Limit (mg/l) | BK4: Proposed Permit Limit (mg/l) | BL4: Proposed Iron or Aluminium Limits (for Phosphorus measures only) | BM4: Current DWF (m3/d) | BN4: Proposed DWF (m3/d) (if applicable) | BO4: Proposed Permit Limit Other | BP4: Catchment Measure Actions | BQ4: Unsustainable Abstraction System Code | BR4: Linked Groundwater Body Name | BS4: Linked Groundwater Body ID | BT4: Licence Category | BU4: Water Resource Zone (WRZ) | BV4: WR HMWB Flag (X) | BW4: Scheme Relates to Following Missing Mitigation Measures (HMWB only) | BX4: Annual Licence Volume (Ml/a) | BY4: Daily Licence Volume (Ml/d) | BZ4: Aggregate Licence (x) | CA4: Sustainability Change (to Annual Licence Volume) Ml/a | CB4: Sustainability Change (to Daily Licence Volume) Ml/d | CC4: Sustainability Change (to HoF Condition) Ml/d | CD4: *NEW* Water returned to the environment (Reduction in actual abstraction) ML/d | CE4: New Annual Licence Volume (Ml/a) | CF4: New Daily Licence Volume (Ml/d) | CG4: New HoF Condition (Ml/d) | CH4: Quantitative Km River Length Improved or Protected | CI4: Quantitative Area (km2) Improved or Protected | CJ4: Volume (Ml/yr) Drinking Water Protected | CK4: Hectares of Designated Site (HD/RAMSAR/ SSSI) Restored or Improved | CL4: *NEW* INNS ,No Det outcome - Km2 of land with reduced risk of INNS | CM4: Delivers Additional FCERM Benefits (Y/N) | CN4: Delivers on Salmon 5-Point Action Plan | CO4: Additional Comments | CP4: CPS Reference | CQ4: Flow Categorisation 1= PR19 Synergy 2= WFD failure 3= Neither | CR4: Allowed totex unit rate | CS4: Quantity proposed in PR19 FD | CT4: Quantity Delivered | CU4: 1 = In PR19, funded 0 = In PR19, not funded | CV4: Price Control | CW4: Unit | CX4: Unit Conversion to £m | CY4: Water company comment | CZ4: Ofwat review and/or amend comment (individual cell amends in purple) | DA4: Funding clawback
A5: CLA00478 | C5: Yes – alteration made | F5: WQ | G5: North West | H5: Cumbria and Lancashire | I5: United Utilities | J5: 7UU200462 | K5: Burnley WwTW | L5: Calder - Pendle Water to conf Ribble | M5: GB112071065490 | N5: River | O5: Calder | S5: WFD_IMPg | T5: Biochemical Oxygen Demand / Dissolved Oxygen | Y5: Continuous Discharge | Z5: 2024-12-22 | AA5: Amber | AB5: 017160005 | AC5: 382547 | AD5: 435266 | BJ5: 25 | BK5: 9LUT 50UT | BM5: 36700 | CH5: 36 | CO5: No capital scheme required. Tightening of permit limits. | CR5: 1880959 | CS5: 1 | CT5: 1 | CU5: 1 | CV5: WWN | CW5: £ | CX5: 1e-06 | CY5: Allowed totex has been split 50/50 between 7UU200462 and 7UU200463
A6: CLA00479 | B6: Changed | C6: Yes – alteration made | F6: WQ | G6: North West | H6: Cumbria and Lancashire | I6: United Utilities | J6: 7UU200463 | K6: Burnley WwTW | L6: Calder - Pendle Water to conf Ribble | M6: GB112071065490 | N6: River | O6: Calder | S6: WFD_IMPg | T6: Ammonia | Y6: Continuous Discharge | Z6: 2024-12-22 | AA6: Amber | AB6: 017160005 | AC6: 382547 | AD6: 435266 | BJ6: 5 | BK6: 2LUT 12UT | BM6: 36700 | CH6: 36 | CR6: 1880959 | CS6: 1 | CT6: 1 | CU6: 1 | CV6: WWN | CW6: £ | CX6: 1e-06 | CY6: Allowed totex has been split 50/50 between 7UU200462 and 7UU200463
A7: GMC00513 | B7: Addition | F7: WQ | G7: North West | H7: Greater Manchester, Merseyside and Cheshire | I7: United Utilities | J7: 7UU300123 | K7: Mossley WwTW | L7: Tame (Chew Brook to Swineshaw Brook) | M7: GB112069061111 | N7: River | O7: Goyt Etherow Tame | S7: WFD_IMPg | T7: Ammonia / Dissolved Oxygen for WFD biological standards | Y7: Continuous Discharge | Z7: 2024-12-22 | AA7: Amber | AB7: 016940089 | AC7: 397500 | AD7: 400260 | BI7: 12784 | BJ7: BOD 30 LUT 64 UT | BK7: BOD 15 LUT 50 UT | BM7: 4219.6 | CH7: 0.75 | CN7: Recovering Salmon River | CO7: Review of the economic appraisal for PR19 (March 2018) concluded that this measure could form part of a cost beneficial bundle for the operational catchment. Also benefits the water body GB112069061112 (Tame - Swineshaw Brook to Mersey). | CR7: =4913673/2 -> 2456836.5 | CS7: 1 | CT7: 1 | CU7: 1 | CV7: WWN | CW7: £ | CX7: 1e-06 | CY7: Allowed totex has been split 50/50 across 7UU300123 and 7UU300124
A8: GMC00514 | B8: Addition | F8: WQ | G8: North West | H8: Greater Manchester, Merseyside and Cheshire | I8: United Utilities | J8: 7UU300124 | K8: Mossley WwTW | L8: Tame (Chew Brook to Swineshaw Brook) | M8: GB112069061111 | N8: River | O8: Goyt Etherow Tame | S8: WFD_IMPg | T8: Ammonia / Dissolved Oxygen for WFD biological standards | Y8: Continuous Discharge | Z8: 2024-12-22 | AA8: Amber | AB8: 016940089 | AC8: 397500 | AD8: 400260 | BI8: 12784 | BJ8: Ammonia 10 LUT 37 UT | BK8: Ammonia 5 LUT 20 UT | BM8: 4219.6 | CH8: 0.75 | CN8: Recovering Salmon River | CO8: Review of the economic appraisal for PR19 (March 2018) concluded that this measure could form part of a cost beneficial bundle for the operational catchment. Also benefits the water body GB112069061112 (Tame - Swineshaw Brook to Mersey). | CR8: =4913673/2 -> 2456836.5 | CS8: 1 | CT8: 1 | CU8: 1 | CV8: WWN | CW8: £ | CX8: 1e-06 | CY8: Allowed totex has been split 50/50 across 7UU300123 and 7UU300124
A9: CLA00478 | C9: Yes – alteration made | F9: WQ | G9: North West | H9: Cumbria and Lancashire | I9: United Utilities | J9: 7UU200462 | K9: Burnley WwTW | L9: Calder - Pendle Water to conf Ribble | M9: GB112071065490 | N9: River | O9: Calder | S9: WFD_IMPg | T9: Biochemical Oxygen Demand / Dissolved Oxygen | Y9: Continuous Discharge | Z9: 2024-12-22 | AA9: Amber | AB9: 017160005 | AC9: 382547 | AD9: 435266 | BJ9: 25 | BK9: 9LUT 50UT | BM9: 36700 | CH9: 36 | CO9: No capital scheme required. Tightening of permit limits. | CR9: 1880958.5 | CS9: 1 | CT9: 1 | CU9: 1 | CV9: WWN | CW9: £ | CX9: 1e-06 | CY9: We have now added these four lines to align to the FD.
A10: CLA00479 | B10: Changed | C10: Yes – alteration made | F10: WQ | G10: North West | H10: Cumbria and Lancashire | I10: United Utilities | J10: 7UU200463 | K10: Burnley WwTW | L10: Calder - Pendle Water to conf Ribble | M10: GB112071065490 | N10: River | O10: Calder | S10: WFD_IMPg | T10: Ammonia | Y10: Continuous Discharge | Z10: 2024-12-22 | AA10: Amber | AB10: 017160005 | AC10: 382547 | AD10: 435266 | BJ10: 5 | BK10: 2LUT 12UT | BM10: 36700 | CH10: 36 | CR10: 1880958.5 | CS10: 1 | CT10: 1 | CU10: 1 | CV10: WWN | CW10: £ | CX10: 1e-06 | CY10: We have now added these four lines to align to the FD.
A11: GMC00513 | B11: Addition | F11: WQ | G11: North West | H11: Greater Manchester, Merseyside and Cheshire | I11: United Utilities | J11: 7UU300123 | K11: Mossley WwTW | L11: Tame (Chew Brook to Swineshaw Brook) | M11: GB112069061111 | N11: River | O11: Goyt Etherow Tame | S11: WFD_IMPg | T11: Ammonia / Dissolved Oxygen for WFD biological standards | Y11: Continuous Discharge | Z11: 2024-12-22 | AA11: Amber | AB11: 016940089 | AC11: 397500 | AD11: 400260 | BI11: 12784 | BJ11: BOD 30 LUT 64 UT | BK11: BOD 15 LUT 50 UT | BM11: 4219.6 | CH11: 0.75 | CN11: Recovering Salmon River | CO11: Review of the economic appraisal for PR19 (March 2018) concluded that this measure could form part of a cost beneficial bundle for the operational catchment. Also benefits the water body GB112069061112 (Tame - Swineshaw Brook to Mersey). | CR11: 1228418 | CS11: 1 | CT11: 1 | CU11: 1 | CV11: WWN | CW11: £ | CX11: 1e-06 | CY11: We have now added these four lines to align to the FD.
A12: GMC00514 | B12: Addition | F12: WQ | G12: North West | H12: Greater Manchester, Merseyside and Cheshire | I12: United Utilities | J12: 7UU300124 | K12: Mossley WwTW | L12: Tame (Chew Brook to Swineshaw Brook) | M12: GB112069061111 | N12: River | O12: Goyt Etherow Tame | S12: WFD_IMPg | T12: Ammonia / Dissolved Oxygen for WFD biological standards | Y12: Continuous Discharge | Z12: 2024-12-22 | AA12: Amber | AB12: 016940089 | AC12: 397500 | AD12: 400260 | BI12: 12784 | BJ12: Ammonia 10 LUT 37 UT | BK12: Ammonia 5 LUT 20 UT | BM12: 4219.6 | CH12: 0.75 | CN12: Recovering Salmon River | CO12: Review of the economic appraisal for PR19 (March 2018) concluded that this measure could form part of a cost beneficial bundle for the operational catchment. Also benefits the water body GB112069061112 (Tame - Swineshaw Brook to Mersey). | CR12: 1228418 | CS12: 1 | CT12: 1 | CU12: 1 | CV12: WWN | CW12: £ | CX12: 1e-06 | CY12: We have now added these four lines to align to the FD.
A13: GMC00411 | B13: Changed | F13: WQ | G13: North West | H13: Greater Manchester, Merseyside and Cheshire | I13: United Utilities | J13: 7UU200834 | K13: Adj M62 Castleton CSO ROC0094 | L13: Irk (Sourtce to Wince Brook) | M13: GB112069061161 | N13: River | O13: Roch Irk Medlock | S13: WFD_IMPg | T13: Ammonia / Dissolved Oxygen for WFD biological standards | Y13: Intermittent Discharge | Z13: 2024-12-22 | AA13: Amber | AB13: 01ROC0094 | AC13: 388140 | AD13: 409780 | BO13: 99%iles FIS | CH13: 0.3 | CO13: Review of the economic appraisal for PR19 (March 2018) concluded that this measure could form part of a cost beneficial bundle for the operational catchment. | CR13: 5768 | CS13: 450 | CT13: 450 | CU13: 1 | CV13: WWN | CW13: £ per m3 | CX13: 1e-06
A14: GMC00509 | B14: Addition | F14: WQ | G14: North West | H14: Greater Manchester, Merseyside and Cheshire | I14: United Utilities | J14: 7UU300119 | K14: Albert Road CSO BOL0095 | L14: Middle Brook | M14: GB112069064540 | N14: River | O14: Croal Irwell | S14: WFD_IMPg | T14: Ammonia / Dissolved Oxygen for WFD biological standards | Y14: Intermittent Discharge | Z14: 2024-12-22 | AA14: Amber | AB14: 01BOL0095 | AC14: 369561 | AD14: 409352 | BO14: 99%iles FIS | CH14: 4.7 | CO14: Additional scheme for WINEP3 on the basis of further modelling by the water company to achieve the water body outcome. Review of the economic appraisal for PR19 (March 2018) concluded that this measure could form part of a cost beneficial bundle for the operational catchment. | CU14: 1 | CV14: WWN | CX14: 1e-06 | CY14: This row was previously highlighted blue, but the blue highlight has now been changed to yellow to reflect that it was part of the WINEP UM at FD and should be included in the model. This is a PFF scheme and as such storage volumes aren't appropriate. We have therefore left this row blank as per our query response | CZ14: Query Ref – OFW-OBQ-UUW-161 response explains this action changed and will be delivered in AMP7 "The scheme also has a negligible cost (in comparison to the whole WINEP)". Therefore, we do not think it’s necessary to take any further action". No additional amends made
A15: GMC00065 | B15: Changed | F15: WQ | G15: North West | H15: Greater Manchester, Merseyside and Cheshire | I15: United Utilities | J15: 7UU200514 | K15: Alderley Edge WwTW | L15: Mobberley Brook | M15: GB112069061330 | N15: River | O15: Bollin Dean Mersey Upper | S15: U_IMP2 | T15: Phosphorus | Y15: Continuous Discharge | Z15: 2022-12-31 | AA15: Amber | AB15: 016910001 | AC15: 382831 | AD15: 378573 | BI15: 15495 | BK15: 2 | BL15: Iron 4mg/l LUT 8mg/l UT | BM15: 5310 | CH15: 16.2 | CM15: No | CN15: Recovering Salmon River | CO15: Bollin & Birkin Brook Candidate for Sensitive Area (Eutrophic). Waterbodies GB112069061370, GB112069061340, GB112069061320, GB112069061381, GB112069061382 are included in the designation. | CR15: 156 | CS15: 15495 | CT15: 15495 | CU15: 1 | CV15: WWN | CW15: £ per pe | CX15: 1e-06 | CY15: This row was previously highlighted blue, but the blue highlight has now been changed to yellow to reflect that it was part of the WINEP UM at FD and should be included in the model. | CZ15: Amend to cell CR7 from 342 to 156. In FD, group £342 per p.e. relates to WwTW size band 5 (proposed limit <1mg/l P). Proposed limit in column BK is 2 and population column BI is 15495, therefore sits within FD group £156 per p.e. WwTW size band 5 (proposed limit =>1mg/l P).
A16: GMC00294 | B16: Changed | F16: WQ | G16: North West | H16: Greater Manchester, Merseyside and Cheshire | I16: United Utilities | J16: 7UU200717 | K16: Alderley Edge WwTW | L16: Mobberley Brook | M16: GB112069061330 | N16: River | O16: Bollin Dean Mersey Upper | S16: WFD_IMPm | T16: Phosphorus | Y16: Continuous Discharge | Z16: 2022-12-31 | AA16: Amber | AB16: 016910001 | AC16: 382831 | AD16: 378573 | BI16: 15495 | BK16: 0.3 | BL16: Iron 4mg/l LUT 8mg/l UT | BM16: 5310 | CH16: 2.6 | CN16: Recovering Salmon River | CO16: Review of the economic appraisal for PR19 (March 2018) concluded that this measure is part of a cost beneficial bundle for the operational catchment. Also impacts on water body GB112069061370 (Birkin Brook - Mobberley Brook to River Bollin, including Rostherne Brook) | CP16: 19678 | CR16: 342 | CS16: 15495 | CT16: 15495 | CU16: 1 | CV16: WWN | CW16: £ per pe | CX16: 1e-06
A17: GMC00313 | B17: Changed | F17: WQ | G17: North West | H17: Greater Manchester, Merseyside and Cheshire | I17: United Utilities | J17: 7UU200736 | K17: Alsager WwTW | L17: Kidsgrove Stream (including Day Green Stream) | M17: GB112068055390 | N17: River | O17: Dane | S17: WFD_IMPm | T17: Phosphorus | Y17: Continuous Discharge | Z17: 2024-12-22 | AA17: Amber | AB17: 016810042 | AC17: 378550 | AD17: 357140 | BI17: 13114 | BJ17: 2 | BK17: 0.25 | BL17: Iron 4mg/l LUT 8mg/l UT Aluminium 1mg/l Max | BM17: 3430 | CH17: 1.6 | CO17: Review of the economic appraisal for PR19 (March 2018) concluded that this measure could form part of a cost beneficial bundle for the operational catchment. Within class benefits for GB112068055390 (Kidsgrove Stream - including Day Green Stream) but contributes to achieving Moderate status in GB112068055420 (Wheelock - including Hassall Brook) and GB112068055380 (Wheelock - Fowle Brook to Dane) and Good Status in GB112068060470 (Dane - Wheelock to Weaver). | CP17: 38567 | CR17: 342 | CS17: 13114 | CT17: 13114 | CU17: 1 | CV17: WWN | CW17: £ per pe | CX17: 1e-06
A18: GMC00371 | B18: Changed | F18: WQ | G18: North West | H18: Greater Manchester, Merseyside and Cheshire | I18: United Utilities | J18: 7UU200794 | K18: Astley Bridge CSO BOL0056 | L18: Tonge | M18: GB112069064530 | N18: River | O18: Croal Irwell | S18: WFD_IMPg | T18: Ammonia / Dissolved Oxygen for WFD biological standards | Y18: Intermittent Discharge | Z18: 2024-12-22 | AA18: Amber | AB18: 016950340 | AC18: 371520 | AD18: 411200 | BO18: 99%iles FIS | CH18: 4 | CO18: This action is an additional requirement and is not included in the 2nd RBMP cost beneficial bundle of measures for this operational catchment. Review of the economic appraisal for PR19 (March 2018) concluded that this measure could form part of a cost beneficial bundle for the operational catchment. Also benefits the water body GB112069064550 (Croal - including Blackshaw Brook). | CR18: 1840 | CS18: 2600 | CT18: 2600 | CU18: 1 | CV18: WWN | CW18: £ per m3 | CX18: 1e-06
A19: GMC00349 | B19: Changed | F19: WQ | G19: North West | H19: Greater Manchester, Merseyside and Cheshire | I19: United Utilities | J19: 7UU200772 | K19: Audlem WwTW | L19: Weaver (Marbury Brook to Dane) | M19: GB112068060460 | N19: River | O19: Weaver Upper | S19: WFD_IMPg | T19: Phosphorus | Y19: Continuous Discharge | Z19: 2024-12-22 | AA19: Amber | AB19: 016810044 | AC19: 365290 | AD19: 343240 | BI19: 1563 | BK19: 1.5 | BL19: Iron 4mg/l LUT 8mg/l UT | BN19: tbc | CH19: 5.6 | CO19: The required permit limit for Good status is an additional requirement and is not incuded in the 2nd RBMP cost beneficial bundle of measures for this operational catchment. A review of the economic appraisal has concluded that the measure could form part of a cost beneficial bundle for the operational catchment. | CR19: 4155 | CS19: 1563 | CT19: 1563 | CU19: 1 | CV19: WWN | CW19: £ per pe | CX19: 1e-06
A20: GMC00008 | B20: Changed | C20: Yes – alteration made | F20: WQ | G20: North West | H20: Greater Manchester, Merseyside and Cheshire | I20: United Utilities | J20: 7UU200501 | K20: Audley WwTW | L20: Valley Brook (Source to Englesea Brook) | M20: GB112068074630 | N20: River | O20: Weaver Upper | S20: WFD_IMPg | T20: Biochemical Oxygen Demand / Dissolved Oxygen | Y20: Continuous Discharge | Z20: 2021-12-31 | AA20: Amber | AB20: 016810045 | AC20: 379560 | AD20: 351850 | BI20: 8052 | BJ20: 12 LUT 50 UT | BK20: 8 LUT 45 UT | BM20: 2047 | CH20: 6 | CM20: No | CP20: 40374 | CR20: 2133357 | CS20: 1 | CT20: 1 | CU20: 1 | CV20: WWN | CW20: £ | CX20: 1e-06
A21: GMC00350 | B21: Changed | C21: Yes – alteration made | F21: WQ | G21: North West | H21: Greater Manchester, Merseyside and Cheshire | I21: United Utilities | J21: 7UU200773 | K21: Audley WwTW | L21: Valley Brook (Source to Englesea Brook) | M21: GB112068074630 | N21: River | O21: Weaver Upper | S21: WFD_IMPm | T21: Phosphorus | Y21: Continuous Discharge | Z21: 2021-12-31 | AA21: Amber | AB21: 016810045 | AC21: 379560 | AD21: 351850 | BI21: 8052 | BK21: 0.3 | BL21: Iron 3.5mg/l LUT 8mg/l UT | BM21: 2047 | CH21: 18.9 | CO21: The required permit limit for Good status is tighter than the new Technically Achievable Limit (TAL). A review of the economic appraisal has concluded that an alternative measure for Moderate Status could form part of a cost beneficial bundle for the operational catchment. Water body GB112068055310 (Valley Brook - Englesea Brook to Weaver) is also impacted by this scheme | CP21: 19952 | CR21: 798 | CS21: 8052 | CT21: 8052 | CU21: 1 | CV21: WWN | CW21: £ per pe | CX21: 1e-06
A22: CLA00378 | B22: Changed | C22: Yes – alteration made | F22: WQ | G22: North West | H22: Cumbria and Lancashire | I22: United Utilities | J22: 7UU100001 | K22: Barnoldswick WwTW | L22: Stock Beck | M22: GB112071065540 | N22: River | O22: Ribble Middle - Settle to Calder | S22: WFD_IMPm | T22: Phosphorus | Y22: Continuous Discharge | Z22: 2024-12-22 | AA22: Amber | AB22: 017160028 | AC22: 387850 | AD22: 448010 | BI22: 13092 | BJ22: 2 | BK22: 0.25 | BM22: 6880 | CH22: 8.5 | CO22: The environmental benefit is length of Grizedale Brook (outflowing stream) to confluence with the River Wyre (3.62 km). | CP22: 20856 | CR22: 342 | CS22: 13092 | CT22: 13092 | CU22: 1 | CV22: WWN | CW22: £ per pe | CX22: 1e-06
A23: GMC00351 | B23: Changed | F23: WQ | G23: North West | H23: Greater Manchester, Merseyside and Cheshire | I23: United Utilities | J23: 7UU200774 | K23: Betley WwTW | L23: Wistaston Brook | M23: GB112068055280 | N23: River | O23: Weaver Upper | S23: WFD_IMPg | T23: Phosphorus | U23: NERC_IMP2 | V23: Phosphorus | Y23: Continuous Discharge | Z23: 2024-12-22 | AA23: Amber | AB23: 016810049 | AC23: 374230 | AD23: 348500 | BI23: 966 | BK23: 1 | BL23: Iron 4mg/l LUT 8mg/l UT | BM23: 160 | CH23: 13.1 | CO23: NERC Benefits for significant populations of white clawed crayfish | CP23: 19941 | CR23: 4155 | CS23: 966 | CT23: 966 | CU23: 1 | CV23: WWN | CW23: £ per pe | CX23: 1e-06
A24: GMC00314 | B24: Changed | F24: WQ | G24: North West | H24: Greater Manchester, Merseyside and Cheshire | I24: United Utilities | J24: 7UU200737 | K24: Biddulph WwTW | L24: Biddulph Brook | M24: GB112068055360 | N24: River | O24: Dane | S24: WFD_IMPm | T24: Phosphorus | Y24: Continuous Discharge | Z24: 2024-12-22 | AA24: Amber | AB24: 016810052 | AC24: 388710 | AD24: 358970 | BI24: 16730 | BJ24: 2 | BK24: 0.25 | BL24: Iron 4mg/l LUT 8mg/l UT | BM24: 4700 | CH24: 9.2 | CO24: Review of the economic appraisal for PR19 (March 2018) concluded that this measure could form part of a cost beneficial bundle for the operational catchment. Also benefits the water bodies GB112068060190 (Dane - Cow Brook to Wheelock) and GB112068060470 (Dane - Wheelock to Weaver). | CP24: 38571 | CR24: 342 | CS24: 16730 | CT24: 16730 | CU24: 1 | CV24: WWN | CW24: £ per pe | CX24: 1e-06
A25: CLA00486 | B25: Changed | F25: WQ | G25: North West | H25: Cumbria and Lancashire | I25: United Utilities | J25: 7UU200470 | K25: Blackburn WwTW | L25: Darwen - conf Roddlesworth to tidal | M25: GB112071065300 | N25: River | O25: Darwen | S25: WFD_IMPm | T25: Phosphorus | Y25: Continuous Discharge | Z25: 2024-12-22 | AA25: Amber | AB25: 017160024 | AC25: 360482 | AD25: 429408 | BI25: 267950 | BK25: 0.25 | BL25: Iron 4000µg/l (95%-ile) 8000µg/l (UTL) | BM25: 72000 | CH25: 7 | CO25: Limit to Good =0.15 mg/l. | CR25: 106 | CS25: 267950 | CT25: 267950 | CU25: 1 | CV25: WWN | CW25: £ per pe | CX25: 1e-06
A26: CLA00536 | B26: changed | F26: WR | G26: North West | H26: Cumbria and Lancashire | I26: United Utilities | J26: 7UU200486 | K26: Blea Water - Removal of weir | L26: Blea Water | M26: GB30229146 | N26: Lake | O26: Eamont | S26: SSSI_IMP | T26: Land Management / Physical Improvement | Y26: Land Management/ Habitat Restoration/ Physical Improvement | Z26: 2025-03-31 | AA26: Amber | AB26: no licence | AC26: 344600 | AD26: 510700 | AG26: See Additional Comments column | AI26: Blea Water | AK26: Unit 1 1010294 | AM26: Other agreed measures identified on NE’s CMSi database | BX26: n/a | BY26: n/a | CA26: n/a | CB26: n/a | CC26: n/a | CE26: n/a | CF26: n/a | CG26: n/a | CI26: 0.17 | CK26: 17 | CO26: This action is to remove the redundant weir at Blea Water. This will mean that it is no longer heavily modified. This scheme is from Natural England. Blea Water is designated as a SSSI as one of the best examples in the Lake District of an oligotrophic corrie lake. It is at high altitude in a rugged landscape upstream of Haweswater Reservoir. It is classed as an HMWB due to the weir at the outflow. United Utilities used to abstract from this lake for local supply. The licence has now been revoked and the infrastructure is redundant. The issue is about restoring a SSSI to favourable condition by restoring natural hydrology and function, removing HMWB status and so enabling improved WFD classification. It is also important for landscape in the Lake District National Park and World Heritage site. The drop in water level caused by the scheme has been assessed by Natural England and will not damage the SSSI interest. There may be some temporary visual impacts of the new lower water level but this will re-vegetate. Removal would restore 'natural' lake levels and hydrology. While UU’s preferred approach would normally be to undertake an investigation in this AMP period to identify and cost a preferred solution to dam removal which would then be undertaken in the following AMP, Natural England consider that the process for removal of this relatively small structure is straightforward and can be adequately costed without an AMP-funded investigation. The weir is a small structure about 1 metre high and the spillway 3-4 m wide with small retaining walls on either side. The site can be accessed by machinery, and the volume of material to be removed is not excessive and could be flown out by helicopter at a relatively low cost. An assessment of the impact downstream of dam removal shows that with staged dam removal there should be no significant effects on receiving water bodies. A flood risk assessment, environmental permit and planning approval would likely be required. This scheme could be undertaken by a 3rd party. Date agreed between UU and NE. This dam removal would also be relevant to the upstream reaches of the downstream WFD river water body Haweswater Beck GB102076070720. Environmental outcomes based on area of Blea Water (the lake part of the SSSI) | CR26: 600000 | CS26: 1 | CT26: 1 | CU26: 1 | CV26: WR | CW26: £ | CX26: 1e-06
A27: GMC00296 | B27: Changed | F27: WQ | G27: North West | H27: Greater Manchester, Merseyside and Cheshire | I27: United Utilities | J27: 7UU200719 | K27: Bowdon WwTW | L27: Bollin (Ashley Mill to Manchester Ship Canal) | M27: GB112069061382 | N27: River | O27: Bollin Dean Mersey Upper | S27: WFD_IMPm | T27: Phosphorus | Y27: Continuous Discharge | Z27: 2024-12-22 | AA27: Amber | AB27: 016940002 | AC27: 375170 | AD27: 385470 | BI27: 7542 | BK27: 4 | BL27: Iron 4mg/l LUT 8mg/l UT | BM27: 2300 | CH27: 10.9 | CN27: Recovering Salmon River | CO27: Review of the economic appraisal for PR19 (March 2018) concluded that this measure is part of a cost beneficial bundle for the operational catchment. | CP27: 19708 | CR27: 420 | CS27: 7542 | CT27: 7542 | CU27: 1 | CV27: WWN | CW27: £ per pe | CX27: 1e-06
A28: GMC00328 | B28: Changed | F28: WQ | G28: North West | H28: Greater Manchester, Merseyside and Cheshire | I28: United Utilities | J28: 7UU200751 | K28: Bunbury WwTW | L28: Gowy and tribs (Source to Milton Brook) | M28: GB112068060280 | N28: River | O28: Gowy | S28: WFD_IMPg | T28: Phosphorus | Y28: Continuous Discharge | Z28: 2024-12-22 | AA28: Amber | AB28: 016810027 | AC28: 357330 | AD28: 358130 | BI28: 1462 | BK28: 0.4 | BL28: Iron 4mg/l LUT 8mg/l UT | BN28: tbc | CH28: 15.2 | CP28: 38582 | CR28: 4155 | CS28: 1462 | CT28: 1462 | CU28: 1 | CV28: WWN | CW28: £ per pe | CX28: 1e-06
A29: CLA00474 | F29: WQ | G29: North West | H29: Cumbria and Lancashire | I29: United Utilities | J29: 7UU200458 | K29: BUR0026 | L29: Calder - Pendle Water to conf Ribble | M29: GB112071065490 | N29: River | O29: Calder | S29: WFD_IMPg | T29: Biochemical Oxygen Demand / Dissolved Oxygen | Y29: Intermittent Discharge | Z29: 2024-12-22 | AA29: Amber | AB29: 017160089 | AC29: 379225 | AD29: 433244 | BK29: 99%ile | CH29: 36 | CR29: 946 | CS29: 5500 | CT29: 5500 | CU29: 1 | CV29: WWN | CW29: £ per m3 | CX29: 1e-06
A30: CLA00475 | F30: WQ | G30: North West | H30: Cumbria and Lancashire | I30: United Utilities | J30: 7UU200459 | K30: BUR0036 | L30: Calder - Pendle Water to conf Ribble | M30: GB112071065490 | N30: River | O30: Calder | S30: WFD_IMPg | T30: Biochemical Oxygen Demand / Dissolved Oxygen | Y30: Intermittent Discharge | Z30: 2024-12-22 | AA30: Amber | AB30: 017190925 | AC30: 379166 | AD30: 433688 | BK30: 99%ile | CH30: 36 | CR30: 1840 | CS30: 1500 | CT30: 1500 | CU30: 1 | CV30: WWN | CW30: £ per m3 | CX30: 1e-06
A31: CLA00480 | B31: Changed | F31: WQ | G31: North West | H31: Cumbria and Lancashire | I31: United Utilities | J31: 7UU200464 | K31: Burnley WwTW | L31: Calder - Pendle Water to conf Ribble | M31: GB112071065490 | N31: River | O31: Calder | S31: WFD_IMPg | T31: Phosphorus | Y31: Continuous Discharge | Z31: 2024-12-22 | AA31: Amber | AB31: 017160005 | AC31: 382547 | AD31: 435266 | BJ31: P1 | BK31: 0.25 | BL31: Iron 4000µg/l (95%-ile) 8000µg/l (UTL) | BM31: 36700 | CH31: 32.8 | CO31: This scheme will not be delivered until AMP 8 as that ensures the best environmental outcome - please contact Helen Nightingale | CR31: 106 | CS31: 131744 | CT31: 131744 | CU31: 1 | CV31: WWN | CW31: £ per pe | CX31: 1e-06
A32: CLA00481 | F32: WQ | G32: North West | H32: Cumbria and Lancashire | I32: United Utilities | J32: 7UU200465 | K32: Burnley WwTW Storm Tanks | L32: Calder - Pendle Water to conf Ribble | M32: GB112071065490 | N32: River | O32: Calder | S32: WFD_IMPg | T32: Biochemical Oxygen Demand / Dissolved Oxygen | Y32: Intermittent Discharge | Z32: 2024-12-22 | AA32: Amber | AB32: 017160005 | AC32: 382547 | AD32: 435266 | BK32: 99%ile | BL32: Iron 4000µg/l (95%-ile) 8000 µg/l (UTL) | CH32: 36 | CR32: 946 | CS32: 25000 | CT32: 25000 | CU32: 1 | CV32: WWN | CW32: £ per m3 | CX32: 1e-06
A33: CLA00564 | B33: Changed | C33: Yes – alteration made | F33: WQ | G33: North West | H33: Cumbria and Lancashire | I33: United Utilities | J33: 7UU300107 | K33: Burscough STW Wetland Solution | L33: Back Drain and Sluice | M33: GB112070064880 | N33: River | O33: Crossens System | S33: WFD_IMPm | T33: Phosphorus / Biochemical Oxygen Demand / Ammonia | Y33: Catchment Measure | Z33: 2024-12-22 | AA33: Amber | AB33: 017030001 | AC33: 342490 | AD33: 413290 | AI33: Martin Mere, Burscough (SSSI) 1003780 | AJ33: Martin Mere (SPA) | AK33: 1003780 / UK9005111 / UK11039 | AL33: 119.74731 | AM33: Catchment Solution | BI33: 3885 | BJ33: 1 | BM33: 8070 | BP33: Collaborative Catchment Solution with Wildfowl and Wetlands Trust in agreement with EA; wetland creation to include treatment and conservation reedbeds; increasing resilience of and expanding Martin Mere habitats; operating agreement to be developed with UU, WWT and EA. | CH33: 4.9 | CK33: 28 | CO33: Delivers significant income to local community and huge biodiversity benefits. | CR33: 420 | CS33: 3885 | CT33: 3885 | CU33: 1 | CV33: WWN | CW33: £ per pe | CX33: 1e-06 | CZ33: Amend to cell CR27 from 106 to 420. In FD, group £106 per p.e. relates to WwTW size band 6 large over PE 25k works (proposed limit <1mg/l P). No proposed limit therefore current limit 1 used and population is 3885, therefore sits within FD group £420 per p.e. WwTW size band 4 (proposed limit =>1mg/l P).
A34: GMC00408 | B34: Changed | F34: WQ | G34: North West | H34: Greater Manchester, Merseyside and Cheshire | I34: United Utilities | J34: 7UU200831 | K34: Castleton WwTW | L34: Irk (Sourtce to Wince Brook) | M34: GB112069061161 | N34: River | O34: Roch Irk Medlock | S34: WFD_IMPg | T34: Ammonia | Y34: Continuous Discharge | Z34: 2024-12-22 | AA34: Amber | AB34: 016950034 | AC34: 387860 | AD34: 409520 | BI34: 5646 | BK34: 1 LUT 12 UT | BN34: tbc | CH34: 4.4 | CO34: Review of the economic appraisal for PR19 (March 2018) concluded that this measure could form part of a cost beneficial bundle for the operational catchment. | CP34: 19897 | CS34: 0 | CT34: 0 | CY34: We have highlighted this row in blue to reflect that it was not included within the WINEP uncertainty mechanism at FD and therefore should not be considered.
A35: GMC00409 | B35: Changed | F35: WQ | G35: North West | H35: Greater Manchester, Merseyside and Cheshire | I35: United Utilities | J35: 7UU200832 | K35: Castleton WwTW | L35: Irk (Sourtce to Wince Brook) | M35: GB112069061161 | N35: River | O35: Roch Irk Medlock | S35: WFD_IMPg | T35: Ammonia / Dissolved Oxygen for WFD biological standards | Y35: Continuous Discharge | Z35: 2024-12-22 | AA35: Amber | AB35: 016950034 | AC35: 387860 | AD35: 409520 | BI35: 5646 | BJ35: BOD 30 LUT | BK35: BOD 6 LUT 50 UT | BN35: tbc | CH35: 4.4 | CO35: Review of the economic appraisal for PR19 (March 2018) concluded that this measure could form part of a cost beneficial bundle for the operational catchment. | CP35: 19897 | CS35: 0 | CT35: 0 | CY35: We have highlighted this row in blue to reflect that it was not included within the WINEP uncertainty mechanism at FD and therefore should not be considered.
A36: GMC00344 | B36: Changed | F36: WQ | G36: North West | H36: Greater Manchester, Merseyside and Cheshire | I36: United Utilities | J36: 7UU200767 | K36: Castleton WwTW | L36: Irk (Sourtce to Wince Brook) | M36: GB112069061161 | N36: River | O36: Roch Irk Medlock | S36: WFD_IMPm | T36: Phosphorus | Y36: Continuous Discharge | Z36: 2024-12-22 | AA36: Amber | AB36: 016950034 | AC36: 387860 | AD36: 409520 | BI36: 5646 | BK36: 0.25 | BL36: Iron 3mg/l LUT 8mg/l UT | BN36: tbc | CH36: 4.4 | CO36: Review of the economic appraisal for PR19 (March 2018) concluded that this measure could form part of a cost beneficial bundle for the operational catchment. | CP36: 25347 | CR36: 798 | CS36: 5646 | CT36: 5646 | CU36: 1 | CV36: WWN | CW36: £ per pe | CX36: 1e-06
A37: GMC00412 | B37: Changed | F37: WQ | G37: North West | H37: Greater Manchester, Merseyside and Cheshire | I37: United Utilities | J37: 7UU200835 | K37: Castleton WwTW Storm Tanks | L37: Irk (Sourtce to Wince Brook) | M37: GB112069061161 | N37: River | O37: Roch Irk Medlock | S37: WFD_IMPg | T37: Ammonia / Dissolved Oxygen for WFD biological standards | Y37: Intermittent Discharge | Z37: 2024-12-22 | AA37: Amber | AB37: 016950034 | AC37: 388030 | AD37: 409580 | BO37: 99%iles FIS | CH37: 0.2 | CO37: Review of the economic appraisal for PR19 (March 2018) concluded that this measure could form part of a cost beneficial bundle for the operational catchment. | CP37: 19896 | CR37: 946 | CS37: 5250 | CT37: 5250 | CU37: 1 | CV37: WWN | CW37: £ per m3 | CX37: 1e-06
A38: GMC00335 | B38: Changed | F38: WQ | G38: North West | H38: Greater Manchester, Merseyside and Cheshire | I38: United Utilities | J38: 7UU200758 | K38: Chapel-en-le-Frith WwTW | L38: Black Brook (Upper Mersey) | M38: GB112069060910 | N38: River | O38: Goyt Etherow Tame | S38: WFD_IMPg | T38: Phosphorus | Y38: Continuous Discharge | Z38: 2024-12-22 | AA38: Amber | AB38: 016940168 | AC38: 404810 | AD38: 382020 | BI38: 7287 | BK38: 0.25 | BL38: Iron 4mg/l LUT 8mg/l UT | BM38: 2230 | CH38: 5.1 | CN38: Recovering Salmon River | CO38: Review of the economic appraisal for PR19 (March 2018) concluded that this measure could form part of a cost beneficial bundle for the operational catchment. Also benefits the water body GB112069060880 (River Goyt - Sett to Etherow). | CP38: 19797 | CR38: 798 | CS38: 7287 | CT38: 7287 | CU38: 1 | CV38: WWN | CW38: £ per pe | CX38: 1e-06
A39: CLA00487 | B39: Changed | F39: WQ | G39: North West | H39: Cumbria and Lancashire | I39: United Utilities | J39: 7UU200471 | K39: Chorley WwTW | L39: Yarrow DS Big Lodge Water | M39: GB112070064952 | N39: River | O39: Yarrow and Lostock | S39: WFD_IMPm | T39: Phosphorus | Y39: Continuous Discharge | Z39: 2024-12-22 | AA39: Amber | AB39: 017060016 | AC39: 356382 | AD39: 417462 | BI39: 62080 | BJ39: P2 | BK39: 0.4 | BL39: Iron 4000µg/l (95%-ile) 8000µg/l (UTL) | BM39: 17150 | CH39: 12 | CO39: Modelling identified 0.2P to achieve Good. Alternative objective of Moderate. | CR39: 106 | CS39: 62080 | CT39: 62080 | CU39: 1 | CV39: WWN | CW39: £ per pe | CX39: 1e-06
A40: GMC00315 | B40: Changed | F40: WQ | G40: North West | H40: Greater Manchester, Merseyside and Cheshire | I40: United Utilities | J40: 7UU200738 | K40: Congleton WwTW | L40: Dane (Cow Brook to Wheelock) | M40: GB112068060190 | N40: River | O40: Dane | S40: WFD_IMPg | T40: Phosphorus | Y40: Continuous Discharge | Z40: 2024-12-22 | AA40: Amber | AB40: 016810066 | AC40: 385250 | AD40: 363570 | BI40: 37106 | BJ40: 2 | BK40: 0.25 | BL40: Iron 4mg/l LUT 8mg/l UT Aluminium 1mg/l Max | BM40: 9800 | CH40: 21.6 | CO40: Review of the economic appraisal for PR19 (March 2018) concluded that this measure could form part of a cost beneficial bundle for the operational catchment. Also benefits the water body GB112068060470 (Dane - Wheelock to Weaver). | CP40: 25404 | CR40: 106 | CS40: 37106 | CT40: 37106 | CU40: 1 | CV40: WWN | CW40: £ per pe | CX40: 1e-06
A41: GMC00329 | B41: Changed | F41: WQ | G41: North West | H41: Greater Manchester, Merseyside and Cheshire | I41: United Utilities | J41: 7UU200752 | K41: Duddon WwTW | L41: Milton Brook | M41: GB112068060290 | N41: River | O41: Gowy | S41: WFD_IMPg | T41: Phosphorus | Y41: Continuous Discharge | Z41: 2024-12-22 | AA41: Amber | AB41: 016810029 | AC41: 351770 | AD41: 365180 | BI41: 357 | BK41: 0.7 | BL41: Iron 4mg/l LUT 8mg/l UT | BN41: tbc | CH41: 1.5 | CP41: 38584 | CR41: 4155 | CS41: 357 | CT41: 357 | CU41: 1 | CV41: WWN | CW41: £ per pe | CX41: 1e-06
A42: GMC00375 | F42: WQ | G42: North West | H42: Greater Manchester, Merseyside and Cheshire | I42: United Utilities | J42: 7UU200798 | K42: Duncar Bridge CSO BOL0176 | L42: Eagley Brook | M42: GB112069064570 | N42: River | O42: Croal Irwell | S42: WFD_IMPg | T42: Ammonia / Dissolved Oxygen for WFD biological standards | Y42: Intermittent Discharge | Z42: 2024-12-22 | AA42: Amber | AB42: 016982205 | AC42: 371150 | AD42: 413430 | BO42: 99%iles FIS | CH42: 1.4 | CO42: Review of the economic appraisal for PR19 (March 2018) concluded that this measure could form part of a cost beneficial bundle for the operational catchment. Also benefits the water bodies GB112069064530 (River Tonge) and GB112069064550 (Croal - including Blackshaw Brook). | CP42: 25490 | CR42: 5768 | CS42: 400 | CT42: 400 | CU42: 1 | CV42: WWN | CW42: £ per m3 | CX42: 1e-06 | CY42: Allowed totex, quantity proposed and quantity delivered have been corrected. We have assigned the row to its correct sub-group in column CZ.
A43: GMC00070 | B43: Changed | F43: WQ | G43: North West | H43: Greater Manchester, Merseyside and Cheshire | I43: United Utilities | J43: 7UU200519 | K43: Failsworth WwTW | L43: Medlock (Lumb Brook to Irwell) | M43: GB112069061152 | N43: River | O43: Roch Irk Medlock | S43: U_IMP2 | T43: Phosphorus | Y43: Continuous Discharge | Z43: 2026-05-12 | AA43: Amber | AB43: 016983268 | AC43: 389600 | AD43: 399710 | BI43: 21576 | BK43: 2 | BL43: Iron 4mg/l LUT 8mg/l UT | BM43: 6180 | CH43: 10.1 | CM43: No | CO43: Medlock & Lower Irwell Candidate for Sensitive Area (Eutrophic). Waterbodies GB112069061452 & GB112069061152 are included in the designation. | CR43: 156 | CS43: 21412 | CT43: 0 | CU43: 1 | CV43: WWN | CW43: £ per pe | CX43: 1e-06 | CY43: This row was previously highlighted blue, but the blue highlight has now been changed to yellow to reflect that it was part of the WINEP UM at FD and should be included in the model. | CZ43: NWT confirm in model (column Z) delivery in AMP8 Year 2026/27 and EA confirm (March 2024) delivery in AMP8 Year 26/27 therefore column CT amended to zero. | DA43: Carry over
A44: GMC00029 | F44: WR | G44: North West | H44: Greater Manchester, Merseyside and Cheshire | I44: United Utilities | J44: 7UU100082 | K44: Fernilee Reservoir: Continuation and final implementation of adaptive management improvements at Fernilee identified in AMP6, options appraisal | L44: Fernilee Reservoir | M44: GB31232950 | N44: Lake | O44: Goyt Etherow Tame | S44: WFD_IMP_WRHMWB | T44: n/a | Y44: Adaptive Management | Z44: 2024-12-22 | AA44: Amber | AB44: 2569009111 | AC44: 401464 | AD44: 377748 | AG44: Scope to be agreed during WINEP 3. It will be based on outputs of existing investigations and will include monitoring requirements agreed between UU and EA | BQ44: PRJ-NW29 | BU44: Integrated | BV44: X | BW44: MM5 | BX44: 1500.18 | BY44: 8.801 | BZ44: Y | CB44: TBC | CH44: 7.2 | CM44: No | CO44: Changes to Fernilee Reservoir will result in improvements to downstream water body, GB1120690600850, Goyt ( Source to Randall Carr Brook). Benefit length identified from stage 3 options appraisal, but will be finalised from the output of adpative management monitoring. The current compensation flow changes are likely to have limited impact on yield. | CP44: 36745 | CR44: 93000 | CS44: 1 | CT44: 0 | CU44: 1 | CV44: WR | CW44: £ | CX44: 1e-06 | CY44: Removed from WINEP in agreement with the Environment Agency | CZ44: Amend to cell CR38 from 186,00 to 93,000. This has been split as per the FD. Total totex 186k split between 2 unique references. In addition, the NWT model confirms (column CY) removal from WINEP | DA44: Removal
A45: GMC00510 | B45: Addition | F45: WQ | G45: North West | H45: Greater Manchester, Merseyside and Cheshire | I45: United Utilities | J45: 7UU300120 | K45: Ginger Fold CSO BOL0144 | L45: Croal (including Blackshaw Brook) | M45: GB112069064550 | N45: River | O45: Croal Irwell | S45: WFD_IMPg | T45: Ammonia / Dissolved Oxygen for WFD biological standards | Y45: Intermittent Discharge | Z45: 2024-12-22 | AA45: Amber | AB45: 01BOL0144 | AC45: 374930 | AD45: 406740 | BO45: 99%iles FIS | CH45: 0.8 | CO45: Additional scheme for WINEP3 on the basis of further modelling by the water company to achieve the water body outcome. Review of the economic appraisal for PR19 (March 2018) concluded that this measure could form part of a cost beneficial bundle for the operational catchment. | CR45: 5768 | CS45: 400 | CT45: 400 | CU45: 1 | CV45: WWN | CW45: £ per m3 | CX45: 1e-06
A46: GMC00323 | B46: Changed | F46: WQ | G46: North West | H46: Greater Manchester, Merseyside and Cheshire | I46: United Utilities | J46: 7UU200746 | K46: Glazebury WwTW | L46: Glaze | M46: GB112069061420 | N46: River | O46: Glaze | S46: WFD_IMPm | T46: Phosphorus | Y46: Continuous Discharge | Z46: 2024-12-22 | AA46: Amber | AB46: 016920350 | AC46: 367800 | AD46: 395520 | BI46: 26977 | BJ46: 2 | BK46: 0.4 | BL46: Iron 5mg/l Max | BM46: 6280 | CH46: 4.9 | CO46: Review of the economic appraisal for PR19 (March 2018) concluded that this measure could form part of a cost beneficial bundle for the operational catchment. | CP46: 19771 | CR46: 106 | CS46: 29977 | CT46: 29977 | CU46: 1 | CV46: WWN | CW46: £ per pe | CX46: 1e-06
A47: GMC00068 | B47: Changed | F47: WQ | G47: North West | H47: Greater Manchester, Merseyside and Cheshire | I47: United Utilities | J47: 7UU200517 | K47: Glossop WwTW | L47: Etherow (Glossop Brook to Goyt) | M47: GB112069061050 | N47: River | O47: Goyt Etherow Tame | S47: U_IMP2 | T47: Phosphorus | Y47: Continuous Discharge | Z47: 2026-05-12 | AA47: Amber | AB47: 016940172 | AC47: 399930 | AD47: 394160 | BI47: 35994 | BK47: 2 | BL47: Iron 4mg/l LUT 8mg/l UT | BM47: 14800 | CH47: 14.3 | CM47: No | CN47: Recovering Salmon River | CO47: Goyt & Etherow Candidate for Sensitive Area (Eutrophic). Waterbodies GB112069061050, GB112069060960, GB112069061000 are included in the designation. | CR47: 36 | CS47: 35994 | CT47: 0 | CU47: 1 | CV47: WWN | CW47: £ per pe | CX47: 1e-06 | CY47: This row was previously highlighted blue, but the blue highlight has now been changed to yellow to reflect that it was part of the WINEP UM at FD and should be included in the model. | CZ47: NWT confirm in model (column Z) delivery in AMP8 Year 2026/27 and EA confirm (March 2024) delivery in AMP8 Year 26/27 therefore column CT amended to zero. | DA47: Carry over
A48: GMC00337 | B48: Changed | F48: WQ | G48: North West | H48: Greater Manchester, Merseyside and Cheshire | I48: United Utilities | J48: 7UU200760 | K48: Glossop WwTW | L48: Etherow (Glossop Brook to Goyt) | M48: GB112069061050 | N48: River | O48: Goyt Etherow Tame | S48: WFD_IMPg | T48: Phosphorus | Y48: Continuous Discharge | Z48: 2024-12-22 | AA48: Amber | AB48: 016940172 | AC48: 399930 | AD48: 394160 | BI48: 35994 | BK48: 0.3 | BL48: Iron 4mg/l LUT 8mg/l UT | BM48: 14800 | CH48: 8.4 | CN48: Recovering Salmon River | CO48: Review of the economic appraisal for PR19 (March 2018) concluded that this measure could form part of a cost beneficial bundle for the operational catchment. | CP48: 19804 | CR48: 106 | CS48: 35994 | CT48: 35994 | CU48: 1 | CV48: WWN | CW48: £ per pe | CX48: 1e-06
A49: GMC00395 | F49: WQ | G49: North West | H49: Greater Manchester, Merseyside and Cheshire | I49: United Utilities | J49: 7UU200818 | K49: Glossop WwTW | L49: Etherow (Glossop Brook to Goyt) | M49: GB112069061050 | N49: River | O49: Goyt Etherow Tame | S49: WFD_IMPg | T49: Ammonia | Y49: Continuous Discharge | Z49: 2024-12-22 | AA49: Amber | AB49: 016940172 | AC49: 399930 | AD49: 394160 | BI49: 35994 | BJ49: 8 LUT 30 UT | BK49: 3.5 LUT 12 UT | BM49: 14800 | CH49: 8.9 | CO49: Review of the economic appraisal for PR19 (March 2018) concluded that this measure could form part of a cost beneficial bundle for the operational catchment. | CP49: 19802 | CR49: 1584793 | CS49: 1 | CT49: 1 | CU49: 1 | CV49: WWN | CW49: £ | CX49: 1e-06
A50: GMC00389 | F50: WQ | G50: North West | H50: Greater Manchester, Merseyside and Cheshire | I50: United Utilities | J50: 7UU200812 | K50: Gloucester Street/Wigan Road CSO WIG0207 | L50: Bedford Brook | M50: GB112069060810 | N50: River | O50: Glaze | S50: WFD_IMPg | T50: Ammonia / Dissolved Oxygen for WFD biological standards | Y50: Intermittent Discharge | Z50: 2024-12-22 | AA50: Amber | AB50: 016982786 | AC50: 366860 | AD50: 403190 | BO50: 99%iles FIS | CH50: 3.4 | CO50: Review of the economic appraisal for PR19 (March 2018) concluded that this measure could form part of a cost beneficial bundle for the operational catchment. | CP50: 39164 | CR50: 5768 | CS50: 400 | CT50: 400 | CU50: 1 | CV50: WWN | CW50: £ per m3 | CX50: 1e-06
A51: GMC00297 | B51: Changed | F51: WQ | G51: North West | H51: Greater Manchester, Merseyside and Cheshire | I51: United Utilities | J51: 7UU200720 | K51: Great Warford WwTW | L51: Mobberley Brook | M51: GB112069061330 | N51: River | O51: Bollin Dean Mersey Upper | S51: WFD_IMPm | T51: Phosphorus | Y51: Continuous Discharge | Z51: 2021-12-31 | AA51: Amber | AB51: 016910004 | AC51: 380930 | AD51: 378210 | BI51: 2866 | BK51: 1 | BL51: Iron 4mg/l LUT 8mg/l UT | BM51: 1827 | CH51: 4.3 | CN51: Recovering Salmon River | CO51: Review of the economic appraisal for PR19 (March 2018) concluded that this measure is part of a cost beneficial bundle for the operational catchment. Also impacts on water body GB112069061370 (Birkin Brook - Mobberley Brook to River Bollin, including Rostherne Brook) | CP51: 19676 | CR51: 420 | CS51: 2866 | CT51: 2866 | CU51: 1 | CV51: WWN | CW51: £ per pe | CX51: 1e-06
A52: GMC00067 | B52: Changed | F52: WQ | G52: North West | H52: Greater Manchester, Merseyside and Cheshire | I52: United Utilities | J52: 7UU200516 | K52: Hazel Grove WwTW | L52: Goyt (Etherow to Mersey) | M52: GB112069061000 | N52: River | O52: Goyt Etherow Tame | S52: U_IMP2 | T52: Phosphorus | Y52: Continuous Discharge | Z52: 2026-05-12 | AA52: Amber | AB52: 016940175 | AC52: 393120 | AD52: 389440 | BI52: 47299 | BK52: 2 | BL52: Iron 4mg/l LUT 8mg/l UT | BM52: 14660 | CH52: 6.5 | CM52: No | CN52: Recovering Salmon River | CO52: Goyt & Etherow Candidate for Sensitive Area (Eutrophic). Waterbodies GB112069061050, GB112069060960, GB112069061000 are included in the designation. | CR52: 36 | CS52: 46662 | CT52: 0 | CU52: 1 | CV52: WWN | CW52: £ per pe | CX52: 1e-06 | CY52: This row was previously highlighted blue, but the blue highlight has now been changed to yellow to reflect that it was part of the WINEP UM at FD and should be included in the model. | CZ52: NWT confirm in model (column Z) delivery in AMP8 Year 2026/27 and EA confirm (March 2024) delivery in AMP8 Year 26/27 therefore column CT amended to zero. | DA52: Carry over
A53: GMC00330 | B53: Changed | F53: WQ | G53: North West | H53: Greater Manchester, Merseyside and Cheshire | I53: United Utilities | J53: 7UU200753 | K53: Helsby WwTW | L53: Peckmill Brook, Hoolpool Gutter at Ince Marshes. | M53: GB112068060330 | N53: River | O53: Gowy | S53: WFD_IMPm | T53: Phosphorus | Y53: Continuous Discharge | Z53: 2024-12-22 | AA53: Amber | AB53: 016810187 | AC53: 348150 | AD53: 375000 | BI53: 19789 | BK53: 0.4 | BL53: Iron 4mg/l LUT 8mg/l UT | BM53: 6650 | CH53: 4.4 | CO53: The required permit limit for Good status is tighter than the new Technically Achievable Limit (TAL). A review of the economic appraisal has concluded that the alternative measure for moderate status could form part of a cost beneficial bundle for the operational catchment. | CP53: 19794 | CR53: 342 | CS53: 19789 | CT53: 19789 | CU53: 1 | CV53: WWN | CW53: £ per pe | CX53: 1e-06
A54: GMC00393 | F54: WQ | G54: North West | H54: Greater Manchester, Merseyside and Cheshire | I54: United Utilities | J54: 7UU200816 | K54: Helsby WwTW | L54: Peckmill Brook, Hoolpool Gutter at Ince Marshes. | M54: GB112068060330 | N54: River | O54: Gowy | S54: WFD_IMPg | T54: Ammonia | Y54: Continuous Discharge | Z54: 2024-12-22 | AA54: Amber | AB54: 016810187 | AC54: 348150 | AD54: 375000 | BI54: 19794 | BJ54: 5 LUT 20 UT | BK54: 1 LUT 12 UT | BM54: 6650 | CH54: 4.4 | CR54: 4194 | CS54: 1 | CT54: 1 | CU54: 1 | CV54: WWN | CW54: £ | CX54: 1e-06 | CY54: Allowed totex has been split 50/50 across 7UU200816 and 7UU200817
A55: GMC00394 | B55: Changed | F55: WQ | G55: North West | H55: Greater Manchester, Merseyside and Cheshire | I55: United Utilities | J55: 7UU200817 | K55: Helsby WwTW | L55: Peckmill Brook, Hoolpool Gutter at Ince Marshes. | M55: GB112068060330 | N55: River | O55: Gowy | S55: WFD_IMPg | T55: Biochemical Oxygen Demand / Dissolved Oxygen | Y55: Continuous Discharge | Z55: 2024-12-22 | AA55: Amber | AB55: 016810187 | AC55: 348150 | AD55: 375000 | BI55: 19794 | BJ55: 15 LUT 50 UT | BK55: 8 LUT 45 UT | BM55: 6650 | CH55: 4.4 | CO55: This permit limit is an additional requirement and is not included in the 2nd RBMP cost beneficial bundle of measures for this operational catchment. A review of the economic appraisal has concluded that the measure could form part of a cost beneficial bundle for the operational catchment. | CR55: 4194 | CS55: 1 | CT55: 1 | CU55: 1 | CV55: WWN | CW55: £ | CX55: 1e-06 | CY55: Allowed totex has been split 50/50 across 7UU200816 and 7UU200817
A56: GMC00298 | B56: Changed | F56: WQ | G56: North West | H56: Greater Manchester, Merseyside and Cheshire | I56: United Utilities | J56: 7UU200721 | K56: High Legh WwTW | L56: Bollin (Ashley Mill to Manchester Ship Canal) | M56: GB112069061382 | N56: River | O56: Bollin Dean Mersey Upper | S56: WFD_IMPm | T56: Phosphorus | Y56: Continuous Discharge | Z56: 2024-12-22 | AA56: Amber | AB56: 016910006 | AC56: 370650 | AD56: 383900 | BI56: 850 | BK56: 0.4 | BL56: Iron 4mg/l LUT 8mg/l UT | BM56: 276 | CH56: 6.5 | CN56: Recovering Salmon River | CO56: Review of the economic appraisal for PR19 (March 2018) confirmed that this measure is part of a cost beneficial bundle for the operational catchment. | CP56: 19711 | CR56: 4155 | CS56: 850 | CT56: 850 | CU56: 1 | CV56: WWN | CW56: £ per pe | CX56: 1e-06
A57: GMC00316 | B57: Changed | F57: WQ | G57: North West | H57: Greater Manchester, Merseyside and Cheshire | I57: United Utilities | J57: 7UU200739 | K57: Holmes Chapel WwTW | L57: Dane (Cow Brook to Wheelock) | M57: GB112068060190 | N57: River | O57: Dane | S57: WFD_IMPg | T57: Phosphorus | Y57: Continuous Discharge | Z57: 2024-12-22 | AA57: Amber | AB57: 016810081 | AC57: 375150 | AD57: 367590 | BI57: 11090 | BJ57: 2 | BK57: 0.3 | BL57: Iron 4mg/l LUT 8mg/l UT | BM57: 4200 | CH57: 24.9 | CO57: Review of the economic appraisal for PR19 (March 2018) concluded that this measure could form part of a cost beneficial bundle for the operational catchment. Also benefits the water body GB112068060470 (Dane - Wheelock to Weaver). | CP57: 38573 | CR57: 342 | CS57: 11090 | CT57: 11090 | CU57: 1 | CV57: WWN | CW57: £ per pe | CX57: 1e-06
A58: CLA00488 | B58: Changed | C58: Yes – alteration made | F58: WQ | G58: North West | H58: Cumbria and Lancashire | I58: United Utilities | J58: 7UU200472 | K58: Horwich WwTW | L58: Douglas - Upper | M58: GB112070064850 | N58: River | O58: Douglas OC | S58: WFD_IMPg | T58: Phosphorus | Y58: Continuous Discharge | Z58: 2024-12-22 | AA58: Amber | AB58: 017050012 | AC58: 362290 | AD58: 410957 | BI58: 26987 | BJ58: P1 | BK58: 0.25 | BL58: Iron 2500µg/l (95%-ile) 8000µg/l (UTL) | BM58: 11500 | CH58: 20 | CR58: 106 | CS58: 26987 | CT58: 26987 | CU58: 1 | CV58: WWN | CW58: £ per pe | CX58: 1e-06
A59: CLA00483 | F59: WQ | G59: North West | H59: Cumbria and Lancashire | I59: United Utilities | J59: 7UU200467 | K59: Hyndburn WwTW | L59: Calder - Pendle Water to conf Ribble | M59: GB112071065490 | N59: River | O59: Calder | S59: WFD_IMPg | T59: Biochemical Oxygen Demand / Dissolved Oxygen | Y59: Continuous Discharge | Z59: 2024-12-22 | AA59: Amber | AB59: 017160008 | AC59: 375751 | AD59: 433759 | BJ59: 20 | BK59: 15 | CH59: 10.6 | CO59: No capital scheme required. Tightening of permit limits. | CS59: 0 | CT59: 0 | CY59: We have highlighted this row in blue to reflect that it was not included within the WINEP uncertainty mechanism at FD and therefore should not be considered.
A60: CLA00484 | F60: WQ | G60: North West | H60: Cumbria and Lancashire | I60: United Utilities | J60: 7UU200468 | K60: Hyndburn WwTW | L60: Calder - Pendle Water to conf Ribble | M60: GB112071065490 | N60: River | O60: Calder | S60: WFD_IMPg | T60: Ammonia | Y60: Continuous Discharge | Z60: 2024-12-22 | AA60: Amber | AB60: 017160008 | AC60: 375751 | AD60: 433759 | BJ60: 4 | BK60: 3 | CH60: 10.6 | CO60: No capital scheme required. Tightening of permit limits. | CS60: 0 | CT60: 0 | CY60: We have highlighted this row in blue to reflect that it was not included within the WINEP uncertainty mechanism at FD and therefore should not be considered.
A61: GMC00020 | F61: WR | G61: North West | H61: Greater Manchester, Merseyside and Cheshire | I61: United Utilities | J61: 7UU100072 | K61: Implementation of flow changes at Clowbridge Reservoir as agreed in the final stage 3 investigation in AMP6. | L61: Clowbridge reservoir | M61: GB31230769 | N61: Lake | O61: Croal Irwell | S61: WFD_IMP_WRHMWB | T61: n/a | Y61: Sustainability Change | Z61: 2024-12-22 | AA61: Amber | AB61: 2569001163 | AC61: 382546 | AD61: 428243 | AG61: Scope to be agreed. It will be based on outputs of existing investigations and will include monitoring requirements agreed between UU and EA. | BU61: Integrated | BV61: X | BW61: MM5 | BX61: 2726.6 | BY61: 13.1 | CA61: N/A | CB61: 0 | CH61: 4.35 | CM61: No | CO61: Changes to the compensation flow at Clowbridge will result in improvement in downstream water body, GB112069064680, Limy Water. The scheme may result in a small increase in yield, of approximately 50Ml/year. Scheme is amber as it is awaiting affordability decision. Benefit length is a maximum of 4.35 km however, the benefits observed may be reduced by the pressence of other physical modifications in Limey Water. | CP61: 40431 | CR61: 76000 | CS61: 1 | CT61: 1 | CU61: 1 | CV61: WR | CW61: £ | CX61: 1e-06
A62: GMC00317 | B62: Changed | F62: WQ | G62: North West | H62: Greater Manchester, Merseyside and Cheshire | I62: United Utilities | J62: 7UU200740 | K62: Kidsgrove WwTW | L62: Kidsgrove Stream (including Day Green Stream) | M62: GB112068055390 | N62: River | O62: Dane | S62: WFD_IMPm | T62: Phosphorus | Y62: Continuous Discharge | Z62: 2024-12-22 | AA62: Amber | AB62: 016810083 | AC62: 383030 | AD62: 355080 | BI62: 25470 | BJ62: 2 | BK62: 0.25 | BL62: Iron 4mg/l LUT 8mg/l UT | BM62: 6500 | CH62: 3.9 | CO62: Review of the economic appraisal for PR19 (March 2018) concluded that this measure could form part of a cost beneficial bundle for the operational catchment. Within class benefits for GB112068055390 (Kidsgrove Stream - including Day Green Stream) but contributes to achieving Moderate status in GB112068055420 (Wheelock - including Hassall Brook) and GB112068055380 (Wheelock - Fowle Brook to Dane) and Good Status in GB112068060470 (Dane - Wheelock to Weaver). | CP62: 38565 | CR62: 106 | CS62: 25470 | CT62: 25470 | CU62: 1 | CV62: WWN | CW62: £ per pe | CX62: 1e-06 | CZ62: Amend to cell CR56 from 342 to 106. In FD, group £342 per p.e. relates to WwTW size band 5 (proposed limit <1mg/l P). Proposed limit in column BK is 0.25 and population is 26,987, therefore sits within FD group £106 per p.e. WwTW size band 6 large works over PE 25k (proposed limit <1mg/l P).
A63: GMC00064 | B63: Changed | F63: WQ | G63: North West | H63: Greater Manchester, Merseyside and Cheshire | I63: United Utilities | J63: 7UU200513 | K63: Knutsford WwTW | L63: Birkin Brook - Source to Mobberley Brook | M63: GB112069061340 | N63: River | O63: Bollin Dean Mersey Upper | S63: U_IMP2 | T63: Phosphorus | Y63: Continuous Discharge | Z63: 2026-05-12 | AA63: Amber | AB63: 016910007 | AC63: 376780 | AD63: 380040 | BI63: 14178 | BK63: 2 | BL63: Iron 4mg/l LUT 8mg/l UT | BM63: 4000 | CH63: 5.5 | CM63: No | CN63: Recovering Salmon River | CO63: Bollin & Birkin Brook Candidate for Sensitive Area (Eutrophic). Waterbodies GB112069061370, GB112069061340, GB112069061320, GB112069061381, GB112069061382 are included in the designation. | CR63: 156 | CS63: 14178 | CT63: 0 | CU63: 1 | CV63: WWN | CW63: £ per pe | CX63: 1e-06 | CY63: This row was previously highlighted blue, but the blue highlight has now been changed to yellow to reflect that it was part of the WINEP UM at FD and should be included in the model. | CZ63: NWT confirm in model (column Z) delivery in AMP8 Year 2026/27 and EA confirm (March 2024) delivery in AMP8 Year 26/27 therefore column CT amended to zero. | DA63: Carry over
A64: GMC00299 | B64: Changed | F64: WQ | G64: North West | H64: Greater Manchester, Merseyside and Cheshire | I64: United Utilities | J64: 7UU200722 | K64: Knutsford WwTW | L64: Birkin Brook - Source to Mobberley Brook | M64: GB112069061340 | N64: River | O64: Bollin Dean Mersey Upper | S64: WFD_IMPg | T64: Phosphorus | Y64: Continuous Discharge | Z64: 2024-12-22 | AA64: Amber | AB64: 016910007 | AC64: 376780 | AD64: 380040 | BI64: 14178 | BK64: 0.4 | BL64: Iron 4mg/l LUT 8mg/l UT | BM64: 4000 | CH64: 5.5 | CN64: Recovering Salmon River | CO64: Review of the economic appraisal for PR19 (March 2018) confirmed that this measure is part of a cost beneficial bundle for the operational catchment. Also impacts on water body GB112069061370 (Birkin Brook - Mobberley Brook to River Bollin, including Rostherne Brook) | CP64: 25767 | CR64: 342 | CS64: 14178 | CT64: 14178 | CU64: 1 | CV64: WWN | CW64: £ per pe | CX64: 1e-06
A65: GMC00318 | B65: Changed | F65: WQ | G65: North West | H65: Greater Manchester, Merseyside and Cheshire | I65: United Utilities | J65: 7UU200741 | K65: Lawton Gate WwTW | L65: Kidsgrove Stream (including Day Green Stream) | M65: GB112068055390 | N65: River | O65: Dane | S65: WFD_IMPm | T65: Phosphorus | Y65: Continuous Discharge | Z65: 2024-12-22 | AA65: Amber | AB65: 016810085 | AC65: 380860 | AD65: 356550 | BI65: 6811 | BK65: 0.3 | BL65: Iron 4mg/l LUT 8mg/l UT | BM65: 2050 | CH65: 9.8 | CO65: Review of the economic appraisal for PR19 (March 2018) concluded that this measure could form part of a cost beneficial bundle for the operational catchment. Within class benefits for GB112068055390 (Kidsgrove Stream - including Day Green Stream) but contributes to achieving Moderate status in GB112068055420 (Wheelock - including Hassall Brook) and GB112068055380 (Wheelock - Fowle Brook to Dane) and Good Status in GB112068060470 (Dane - Wheelock to Weaver). | CP65: 38566 | CR65: 798 | CS65: 6811 | CT65: 6811 | CU65: 1 | CV65: WWN | CW65: £ per pe | CX65: 1e-06
A66: GMC00324 | B66: Changed | F66: WQ | G66: North West | H66: Greater Manchester, Merseyside and Cheshire | I66: United Utilities | J66: 7UU200747 | K66: Leigh WwTW | L66: Pennington Brook (Glaze) | M66: GB112069060760 | N66: River | O66: Glaze | S66: WFD_IMPm | T66: Phosphorus | Y66: Continuous Discharge | Z66: 2024-12-22 | AA66: Amber | AB66: 016920134 | AC66: 366497 | AD66: 398454 | BI66: 80282 | BJ66: 2 | BK66: 0.5 | BL66: Iron 4mg/l LUT 8mg/l UT Aluminium 1mg/l Max | BM66: 22500 | CH66: 3.6 | CO66: Review of the economic appraisal for PR19 (March 2018) concluded that this measure could form part of a cost beneficial bundle for the operational catchment. Also benefits the water body GB112069061420 (Glaze) | CP66: 39165 | CR66: 106 | CS66: 80282 | CT66: 80282 | CU66: 1 | CV66: WWN | CW66: £ per pe | CX66: 1e-06
A67: CLA00489 | B67: Changed | F67: WQ | G67: North West | H67: Cumbria and Lancashire | I67: United Utilities | J67: 7UU200473 | K67: Leyland WwTW | L67: Lostock DS Farington Weir | M67: GB112070064912 | N67: River | O67: Yarrow and Lostock | S67: WFD_IMPm | T67: Phosphorus | Y67: Continuous Discharge | Z67: 2024-12-22 | AA67: Amber | AB67: 017060018 | AC67: 352150 | AD67: 420810 | BI67: 47699 | BJ67: P2 | BK67: 0.6 | BL67: Iron 4000µg/l (95%-ile) 8000µg/l (UTL) | BM67: 10940 | CH67: 6 | CR67: 106 | CS67: 47699 | CT67: 47699 | CU67: 1 | CV67: WWN | CW67: £ per pe | CX67: 1e-06
A68: GMC00015 | B68: Changed | F68: WQ | G68: North West | H68: Greater Manchester, Merseyside and Cheshire | I68: United Utilities | J68: 7UU200502 | K68: Little Budworth North WwTW | L68: Ash Brook (Source to Darley Brook) | M68: GB112068060440 | N68: River | O68: Weaver Lower | S68: WFD_IMPg | T68: Phosphorus | Y68: Continuous Discharge | Z68: 2024-12-22 | AA68: Amber | AB68: 016810086 | AC68: 359820 | AD68: 367130 | BI68: 98 | BK68: 3 | BL68: Iron 4mg/l LUT 8mg/l UT | BN68: 20 | CH68: 3 | CM68: No | CO68: Water body GB112068055451 (Ash Brook (Darley Brook to Weaver) is also impacted by this scheme | CP68: 40375 | CR68: 4155 | CS68: 98 | CT68: 98 | CU68: 1 | CV68: WWN | CW68: £ per pe | CX68: 1e-06
A69: GMC00063 | B69: Changed | F69: WQ | G69: North West | H69: Greater Manchester, Merseyside and Cheshire | I69: United Utilities | J69: 7UU200512 | K69: Macclesfield WwTW | L69: Bollin (Source to Dean) | M69: GB112069061320 | N69: River | O69: Bollin Dean Mersey Upper | S69: U_IMP2 | T69: Phosphorus | Y69: Continuous Discharge | Z69: 2026-05-12 | AA69: Amber | AB69: 016910009 | AC69: 389340 | AD69: 378690 | BI69: 74029 | BK69: 2 | BL69: Iron 4mg/l LUT 8mg/l UT | BM69: 28500 | CH69: 10.1 | CM69: No | CN69: Recovering Salmon River | CO69: Bollin & Birkin Brook Candidate for Sensitive Area (Eutrophic). Waterbodies GB112069061370, GB112069061340, GB112069061320, GB112069061381, GB112069061382 are included in the designation. | CR69: 36 | CS69: 74029 | CT69: 0 | CU69: 1 | CV69: WWN | CW69: £ per pe | CX69: 1e-06 | CY69: This row was previously highlighted blue, but the blue highlight has now been changed to yellow to reflect that it was part of the WINEP UM at FD and should be included in the model. | CZ69: NWT confirm in model (column Z) delivery in AMP8 Year 2026/27 and EA confirm (March 2024) delivery in AMP8 Year 26/27 therefore column CT amended to zero. | DA69: Carry over
A70: GMC00300 | B70: Changed | F70: WQ | G70: North West | H70: Greater Manchester, Merseyside and Cheshire | I70: United Utilities | J70: 7UU200723 | K70: Macclesfield WwTW | L70: Bollin (Source to Dean) | M70: GB112069061320 | N70: River | O70: Bollin Dean Mersey Upper | S70: WFD_IMPm | T70: Phosphorus | Y70: Continuous Discharge | Z70: 2024-12-22 | AA70: Amber | AB70: 016910009 | AC70: 389340 | AD70: 378690 | BI70: 74029 | BK70: 0.4 | BL70: Iron 4mg/l LUT 8mg/l UT | BM70: 28500 | CH70: 10.1 | CN70: Recovering Salmon River | CO70: Review of the economic appraisal for PR19 (March 2018) concluded that this measure is part of a cost beneficial bundle for the operational catchment. Also impacts on water bodies GB112069061381 (Bollin - River Dean to Ashley Mill) and GB112069061382 (Bollin - Ashley Mill to Manchester Ship Canal) | CP70: 19674 | CR70: 106 | CS70: 74029 | CT70: 74029 | CU70: 1 | CV70: WWN | CW70: £ per pe | CX70: 1e-06
A71: GMC00352 | B71: Changed | F71: WQ | G71: North West | H71: Greater Manchester, Merseyside and Cheshire | I71: United Utilities | J71: 7UU200775 | K71: Madeley WwTW | L71: Lea | M71: GB112068055200 | N71: River | O71: Weaver Upper | S71: WFD_IMPg | T71: Phosphorus | Y71: Continuous Discharge | Z71: 2024-12-22 | AA71: Amber | AB71: 016810091 | AC71: 376830 | AD71: 345250 | BI71: 5203 | BK71: 0.25 | BL71: Iron 4mg/l LUT 8mg/l UT | BM71: 2770 | CH71: 25.2 | CO71: Water body GB112068060460 (Weaver - Barnett Brook to Dane) is also impacted by this scheme | CP71: 19935 | CR71: 798 | CS71: 5203 | CT71: 5203 | CU71: 1 | CV71: WWN | CW71: £ per pe | CX71: 1e-06
A72: GMC00494 | B72: Changed | F72: WQ | G72: North West | H72: Greater Manchester, Merseyside and Cheshire | I72: United Utilities | J72: 7UU200911 | K72: Marton North WwTW | L72: Bogart Brook | M72: GB112068060540 | N72: River | O72: Weaver Lower | S72: WFD_IMPg | T72: Phosphorus | Y72: Continuous Discharge | Z72: 2024-12-22 | AA72: Amber | AB72: 016810093 | AC72: 362050 | AD72: 367880 | BI72: 321 | BK72: 1 | BL72: Iron 4mg/l LUT 8mg/l UT | BN72: 77 | CH72: 0.1 | CO72: This action is not included in the 2nd RBMP cost beneficial bundle of measures for this operational catchment. A review of the economic appraisal has concluded that the measure could form part of a cost beneficial bundle for the operational catchment. | CR72: 4155 | CS72: 321 | CT72: 321 | CU72: 1 | CV72: WWN | CW72: £ per pe | CX72: 1e-06
A73: CLA00485 | B73: Changed | F73: WQ | G73: North West | H73: Cumbria and Lancashire | I73: United Utilities | J73: 7UU200469 | K73: Mere Brow WwTW | L73: Three Pool's Waterway | M73: GB112070064830 | N73: River | O73: Crossens System | S73: WFD_IMPm | T73: Phosphorus | Y73: Continuous Discharge | Z73: 2024-12-22 | AA73: Amber | AB73: 017030002 | AC73: 342400 | AD73: 418870 | BI73: 4191 | BK73: 0.5 | BM73: 1300 | CH73: 4 | CO73: Modelling has identified requirement for P 0.1 to achieved Good. 0.5 mg/l will achieve Moderate. | CR73: 798 | CS73: 4191 | CT73: 4191 | CU73: 1 | CV73: WWN | CW73: £ per pe | CX73: 1e-06
A74: GMC00319 | B74: Changed | F74: WQ | G74: North West | H74: Greater Manchester, Merseyside and Cheshire | I74: United Utilities | J74: 7UU200742 | K74: Middlewich WwTW | L74: Croco | M74: GB112068055460 | N74: River | O74: Dane | S74: WFD_IMPm | T74: Phosphorus | Y74: Continuous Discharge | Z74: 2024-12-22 | AA74: Amber | AB74: 016810096 | AC74: 371220 | AD74: 366220 | BI74: 16217 | BJ74: 2 | BK74: 0.4 | BL74: Iron 4mg/l LUT 8mg/l UT Aluminium 1mg/l Max | BM74: 3804 | CH74: 2.1 | CO74: Review of the economic appraisal for PR19 (March 2018) concluded that this measure could form part of a cost beneficial bundle for the operational catchment. Also benefits the water bodies GB112068060190 (Dane - Cow Brook to Wheelock) and GB112068060470 (Dane - Wheelock to Weaver). | CP74: 38572 | CR74: 342 | CS74: 16217 | CT74: 16217 | CU74: 1 | CV74: WWN | CW74: £ per pe | CX74: 1e-06
A75: GMC00301 | B75: Changed | F75: WQ | G75: North West | H75: Greater Manchester, Merseyside and Cheshire | I75: United Utilities | J75: 7UU200724 | K75: Mobberley WwTW | L75: Mobberley Brook | M75: GB112069061330 | N75: River | O75: Bollin Dean Mersey Upper | S75: WFD_IMPm | T75: Phosphorus | Y75: Continuous Discharge | Z75: 2024-12-22 | AA75: Amber | AB75: 016910010 | AC75: 378340 | AD75: 380290 | BI75: 2830 | BK75: 1 | BL75: Iron 4mg/l LUT 8mg/l UT | BM75: 935 | CH75: 9.3 | CN75: Recovering Salmon River | CO75: Review of the economic appraisal for PR19 (March 2018) concluded that this measure is part of a cost beneficial bundle for the operational catchment. Also impacts on water body GB112069061370 (Birkin Brook - Mobberley Brook to River Bollin, including Rostherne Brook) | CP75: 19675 | CR75: 420 | CS75: 2830 | CT75: 2830 | CU75: 1 | CV75: WWN | CW75: £ per pe | CX75: 1e-06
A76: GMC00341 | B76: Changed | F76: WQ | G76: North West | H76: Greater Manchester, Merseyside and Cheshire | I76: United Utilities | J76: 7UU200764 | K76: Mossley WwTW | L76: Tame (Chew Brook to Swineshaw Brook) | M76: GB112069061111 | N76: River | O76: Goyt Etherow Tame | S76: WFD_IMPg | T76: Phosphorus | Y76: Continuous Discharge | Z76: 2024-12-22 | AA76: Amber | AB76: 016940089 | AC76: 397500 | AD76: 400260 | BI76: 12784 | BJ76: 2 | BK76: 0.25 | BL76: Iron 4mg/l LUT 8mg/l UT | BM76: 4219.6 | CH76: 8.1 | CN76: Recovering Salmon River | CO76: Review of the economic appraisal for PR19 (March 2018) concluded that this measure could form part of a cost beneficial bundle for the operational catchment. Also benefits the water body GB112069061112 (Tame - Swineshaw Brook to Mersey). | CP76: 19808 | CR76: 342 | CS76: 12784 | CT76: 12784 | CU76: 1 | CV76: WWN | CW76: £ per pe | CX76: 1e-06
A77: GMC00515 | B77: Addition | F77: WQ | G77: North West | H77: Greater Manchester, Merseyside and Cheshire | I77: United Utilities | J77: 7UU300125 | K77: Mossley WwTW Inlet CSO | L77: Tame (Chew Brook to Swineshaw Brook) | M77: GB112069061111 | N77: River | O77: Goyt Etherow Tame | S77: WFD_IMPg | T77: Ammonia / Dissolved Oxygen for WFD biological standards | Y77: Intermittent Discharge | Z77: 2024-12-22 | AA77: Amber | AB77: 016940089 | AC77: 397290 | AD77: 400890 | BO77: 99%iles FIS | CH77: 1.5 | CN77: Recovering Salmon River | CO77: Review of the economic appraisal for PR19 (March 2018) concluded that this measure could form part of a cost beneficial bundle for the operational catchment. Also benefits the water body GB112069061112 (Tame - Swineshaw Brook to Mersey). | CR77: 5768 | CS77: 500 | CT77: 500 | CU77: 1 | CV77: WWN | CW77: £ per m3 | CX77: 1e-06
A78: GMC00403 | F78: WQ | G78: North West | H78: Greater Manchester, Merseyside and Cheshire | I78: United Utilities | J78: 7UU200826 | K78: Mossley WwTW Storm Tanks | L78: Tame (Chew Brook to Swineshaw Brook) | M78: GB112069061111 | N78: River | O78: Goyt Etherow Tame | S78: WFD_IMPg | T78: Ammonia / Dissolved Oxygen for WFD biological standards | Y78: Intermittent Discharge | Z78: 2024-12-22 | AA78: Amber | AB78: 016940089 | AC78: 397440 | AD78: 400460 | BO78: 99%iles FIS | CH78: 1.7 | CN78: Recovering Salmon River | CO78: Review of the economic appraisal for PR19 (March 2018) concluded that this measure could form part of a cost beneficial bundle for the operational catchment. Also benefits the water body GB112069061112 (Tame - Swineshaw Brook to Mersey). | CP78: 19806 | CR78: 1840 | CS78: 1250 | CT78: 1250 | CU78: 1 | CV78: WWN | CW78: £ per m3 | CX78: 1e-06
A79: GMC00372 | F79: WQ | G79: North West | H79: Greater Manchester, Merseyside and Cheshire | I79: United Utilities | J79: 7UU200795 | K79: Old Eagley CSO BOL0073 | L79: Eagley Brook | M79: GB112069064570 | N79: River | O79: Croal Irwell | S79: WFD_IMPg | T79: Ammonia / Dissolved Oxygen for WFD biological standards | Y79: Intermittent Discharge | Z79: 2024-12-22 | AA79: Amber | AB79: 016983216 | AC79: 372330 | AD79: 412830 | BO79: 99%iles FIS | CH79: 3.4 | CO79: Review of the economic appraisal for PR19 (March 2018) concluded that this measure could form part of a cost beneficial bundle for the operational catchment. Also benefits the water bodies GB112069064530 (River Tonge) and GB112069064550 (Croal - including Blackshaw Brook). | CP79: 25489 | CR79: 3269 | CS79: 570 | CT79: 570 | CU79: 1 | CV79: WWN | CW79: £ per m3 | CX79: 1e-06
A80: GMC00071 | B80: Changed | F80: WQ | G80: North West | H80: Greater Manchester, Merseyside and Cheshire | I80: United Utilities | J80: 7UU200520 | K80: Oldham WwTW | L80: Wince Brook | M80: GB112069061120 | N80: River | O80: Roch Irk Medlock | S80: U_IMP2 | T80: Phosphorus | Y80: Continuous Discharge | Z80: 2026-05-12 | AA80: Amber | AB80: 016950038 | AC80: 389250 | AD80: 404310 | BI80: 161356 | BK80: 1 | BL80: Iron 2.5mg/l LUT 8mg/l UT | BM80: 56400 | CH80: 5.7 | CM80: No | CO80: Medlock & Lower Irwell Candidate for Sensitive Area (Eutrophic). Waterbodies GB112069061452 & GB112069061152 are included in the designation. | CR80: 36 | CS80: 161356 | CT80: 0 | CU80: 1 | CV80: WWN | CW80: £ per pe | CX80: 1e-06 | CY80: This row was previously highlighted blue, but the blue highlight has now been changed to yellow to reflect that it was part of the WINEP UM at FD and should be included in the model. | CZ80: Amends are as follows: Cell CS76 from 313 to 161,356. In FD, group £36 per p.e. relates to WwTW size band 6 large works over PE 25k (proposed limit =>1mg/l P). Proposed limit in column BK is 1 and population is 161,356 therefore sits within correct FD group but column CS required amend. NWT confirm in model (column Z) delivery in AMP8 Year 2026/27 and EA confirm (March 2024) delivery in AMP8 Year 26/27 therefore column CT amended to zero. | DA80: Carry over
A81: CLA00476 | F81: WQ | G81: North West | H81: Cumbria and Lancashire | I81: United Utilities | J81: 7UU200460 | K81: PEN0056 | L81: Calder - Pendle Water to conf Ribble | M81: GB112071065490 | N81: River | O81: Calder | S81: WFD_IMPg | T81: Biochemical Oxygen Demand / Dissolved Oxygen | Y81: Intermittent Discharge | Z81: 2024-12-22 | AA81: Amber | AB81: '017160010 | AC81: 384330 | AD81: 437340 | BK81: 99%ile | CH81: 36 | CR81: 1840 | CS81: 1500 | CT81: 1500 | CU81: 1 | CV81: WWN | CW81: £ per m3 | CX81: 1e-06 | CY81: We have corrected the allowed totex transposition error for this now and can confirm that this row belongs to group 2c.
A82: CLA00477 | F82: WQ | G82: North West | H82: Cumbria and Lancashire | I82: United Utilities | J82: 7UU200461 | K82: PEN0058 | L82: Calder - Pendle Water to conf Ribble | M82: GB112071065490 | N82: River | O82: Calder | S82: WFD_IMPg | T82: Biochemical Oxygen Demand / Dissolved Oxygen | Y82: Intermittent Discharge | Z82: 2024-12-22 | AA82: Amber | AB82: 017160098 | AC82: 384020 | AD82: 436360 | BK82: 99%ile | CH82: 36 | CR82: 5768 | CS82: 350 | CT82: 350 | CU82: 1 | CV82: WWN | CW82: £ per m3 | CX82: 1e-06
A83: GMC00027 | F83: WR | G83: North West | H83: Greater Manchester, Merseyside and Cheshire | I83: United Utilities | J83: 7UU100079 | K83: Readycon Dean Reservoir: Continuation and final Implementation of AMP6 flow changes | L83: Readycon Dean Reservoir | M83: GB31231404 | N83: Lake | O83: Goyt Etherow Tame | S83: WFD_IMP_WRHMWB | T83: n/a | Y83: Sustainability Change | Z83: 2024-12-22 | AA83: Amber | AB83: 2569012108 | AC83: 398615 | AD83: 412273 | AG83: Scope to be agreed during WINEP 3. It will be based on outputs of existing investigations and will include monitoring requirements agreed between UU and EA | BQ83: PRJ-NW25 | BU83: Integrated | BV83: X | BW83: MM5 | BX83: 383.2278 | BY83: 1.04558 | BZ83: Y | CB83: 0.259 | CH83: 1.3 | CM83: No | CO83: Changes to Readycon Dean Reservoir will result in improvements to downstream water body, GB112069064741, Tame (Source to Chew Brook). Benefit length based on length between Readycon and downstream reservoir. Benefit length calculated based on stage 3 options appraisal, but will be finalised from the output of monitoring during AMP7. Estimated sustainability change is worst case assuming full compenstation flow needs to be provided 365 days a year, the reservoir currently spills on some days. | CP83: 36741 | CR83: 50000 | CS83: 1 | CT83: 0 | CU83: 1 | CV83: WR | CW83: £ | CX83: 1e-06 | CY83: Removed from WINEP in agreement with the Environment Agency | CZ83: In addition, the NWT model confirms (column CY) removal from WINEP and EA confirm (March 24) removal from WINEP | DA83: Removal
A84: CLA00531 | B84: changed | F84: WR | G84: North West | H84: Cumbria and Lancashire | I84: United Utilities | J84: 7UU200485 | K84: River Hodder - Investigation to identify and develop measures to mitigate the impact of Stock Reservoir on physical habitat. | L84: Hodder - headwaters to Stocks Reservoir | M84: GB112071065430 | N84: River | O84: Hodder and Loud | S84: WFD_INV_WRHMWB | T84: Land Management / Physical Improvement | Y84: Land Management/ Habitat Restoration/ Physical Improvement | Z84: 2022-03-31 | AA84: Amber | AB84: 2671311004 | AC84: 371900 | AD84: 454700 | AF84: See Additional Comments column | BQ84: PRJ-NW22 | BV84: x | BW84: MM7 | BX84: 38816 | BY84: 127 | BZ84: x | CA84: 0 | CB84: 0 | CC84: 0 | CE84: n/a | CF84: n/a | CG84: n/a | CM84: No | CN84: Pricipal Salmon River | CO84: This investigation is to progress the development of options for mitigating physical habitat issues downstream of Stocks Reservoir so that the feasible options can be implemented during AMP8. Large dams cause the fragmentation of fluxes of water and sediment in river systems and have potentially significant impact on native flora and fauna. Such concerns exist on the River Hodder where the reduction in coarse sediment supply caused by the reservoir dam may be contributing to reductions in the quality of aquatic biodiversity in downstream reaches. This reach of the Hodder is classed as a HMWB and this entry also relates to HMWB Stocks Reservoir GB102076070720. The WBs need to be at Good Ecological Potential 2027. This is undertaken by assessing and putting in place appropriate mitigation measures. The sediment management plan produced during AMP6 (scheme ID 6UUWR0013) concluded that the supply of sediment upstream was not large and not easily accessible. Although there is a review of this SMP in 5 years it leave us with no identified mitigation for this site. Therefore as part of AMP6, a walkover was carried out (Feb 2018) of the River Hodder from Stocks res SD7182554417 to Dunsop Bridge SD6625049989, to review the extent of impacts downstream of the reservoir and determine where the geomorphology and habitat variability is compromised. This walkover has been used to produce an report outlining a range of options to mitigation for sediment depleted reaches below Stocks Reservoir. Mitigation may include habitat improvement (e.g. large woody debris/flow deflectors, berm creation/channel narrowing), flow variation (e.g. possibly though maintenance/scour value tests or high flow management) and/or sediment augmentation (possibly from quarried sources). This Investigation is to take this report and identify/develop/ define viable preferred options for delivery under AMP8. This may be a combination of measures. Feasibility depends on landowner agreement as well as technically feasibility, so this would be undertaken in partnership with stakeholders e.g. Ribble Rivers Trust and/or angling groups or other party as well as landowners. Part of this options development may include trial sediment augmentation. The information gleaned from such trials would contribute understanding both to the AMP8 works and to future best-practice in gravel augmentation projects, both on the Hodder and similar rivers nationally. The Physical works in AMP 8 could deliver environmental benefit to some or all of the length of River Hodder from Stocks Reservoir to Confluence with the Dunsop (10.4km). | CR84: 30000 | CS84: 1 | CT84: 1 | CU84: 1 | CV84: WR | CW84: £ | CX84: 1e-06
A85: GMC00380 | B85: Changed | F85: WQ | G85: North West | H85: Greater Manchester, Merseyside and Cheshire | I85: United Utilities | J85: 7UU200803 | K85: Rossendale WwTW | L85: Irwell (Rossendale STW to Roch) | M85: GB112069064620 | N85: River | O85: Croal Irwell | S85: WFD_IMPg | T85: Ammonia / Dissolved Oxygen for WFD biological standards | Y85: Continuous Discharge | Z85: 2024-12-22 | AA85: Amber | AB85: 016950042 | AC85: 379370 | AD85: 420400 | BI85: 69713 | BJ85: BOD 15 LUT 50 UT | BK85: BOD 12 LUT 50 UT | BM85: 25000 | CH85: 0.3 | CO85: This permit limit is an additional requirement for an integrated solution with CSO improvements and is not included in the 2nd RBMP cost beneficial bundle of measures for this operational catchment. It has been indicated that this permit change does not require a capital scheme. Review of the economic appraisal for PR19 (March 2018) concluded that this measure could form part of a cost beneficial bundle for the operational catchment. | CP85: 25356 | CR85: 146519 | CS85: 1 | CT85: 1 | CU85: 1 | CV85: WWN | CW85: £ | CX85: 1e-06 | CY85: Allowed totex has been split 50/50 across 7UU200803 and 7UU200804
A86: GMC00381 | B86: Changed | F86: WQ | G86: North West | H86: Greater Manchester, Merseyside and Cheshire | I86: United Utilities | J86: 7UU200804 | K86: Rossendale WwTW | L86: Irwell (Rossendale STW to Roch) | M86: GB112069064620 | N86: River | O86: Croal Irwell | S86: WFD_IMPg | T86: Ammonia / Dissolved Oxygen for WFD biological standards | Y86: Continuous Discharge | Z86: 2024-12-22 | AA86: Amber | AB86: 016950042 | AC86: 379370 | AD86: 420400 | BI86: 69713 | BJ86: Ammonia 2 LUT 8 UT | BK86: Ammonia 1 LUT 8 UT | BM86: 25000 | CH86: 0.3 | CO86: This permit limit is an additional requirement for an integrated solution with CSO improvements and is not included in the 2nd RBMP cost beneficial bundle of measures for this operational catchment. It has been indicated that this permit change does not require a capital scheme. Review of the economic appraisal for PR19 (March 2018) concluded that this measure could form part of a cost beneficial bundle for the operational catchment. | CP86: 25356 | CR86: 146519 | CS86: 1 | CT86: 1 | CU86: 1 | CV86: WWN | CW86: £ | CX86: 1e-06 | CY86: Allowed totex has been split 50/50 across 7UU200803 and 7UU200804
A87: GMC00382 | B87: Changed | F87: WQ | G87: North West | H87: Greater Manchester, Merseyside and Cheshire | I87: United Utilities | J87: 7UU200805 | K87: Rossendale WwTW Storm Tanks | L87: Irwell (Rossendale STW to Roch) | M87: GB112069064620 | N87: River | O87: Croal Irwell | S87: WFD_IMPg | T87: Ammonia / Dissolved Oxygen for WFD biological standards | Y87: Intermittent Discharge | Z87: 2024-12-22 | AA87: Amber | AB87: 016950042 | AC87: 379570 | AD87: 420610 | BO87: 99%iles FIS | CH87: 6.4 | CO87: This action is an additional requirement and is not included in the 2nd RBMP cost beneficial bundle of measures for this operational catchment. Review of the economic appraisal for PR19 (March 2018) concluded that this measure could form part of a cost beneficial bundle for the operational catchment. | CR87: 946 | CS87: 10500 | CT87: 10500 | CU87: 1 | CV87: WWN | CW87: £ per m3 | CX87: 1e-06
A88: GMC00373 | F88: WQ | G88: North West | H88: Greater Manchester, Merseyside and Cheshire | I88: United Utilities | J88: 7UU200796 | K88: Royal Oak CSO BOL0129 | L88: Bradshaw Brook | M88: GB112069064580 | N88: River | O88: Croal Irwell | S88: WFD_IMPg | T88: Ammonia / Dissolved Oxygen for WFD biological standards | Y88: Intermittent Discharge | Z88: 2024-12-22 | AA88: Amber | AB88: 016983304 | AC88: 373470 | AD88: 411870 | BO88: 99%iles FIS | CH88: 0.2 | CO88: Review of the economic appraisal for PR19 (March 2018) concluded that this measure could form part of a cost beneficial bundle for the operational catchment. Also benefits the water bodies GB112069064530 (River Tonge) and GB112069064550 (Croal - including Blackshaw Brook). | CP88: 25517 | CR88: 1840 | CS88: 2600 | CT88: 2600 | CU88: 1 | CV88: WWN | CW88: £ per m3 | CX88: 1e-06 | CY88: This row was previously highlighted blue, but the blue highlight has now been changed to yellow to reflect that it was part of the WINEP UM at FD and should be included in the model.
A89: GMC00353 | B89: Changed | F89: WQ | G89: North West | H89: Greater Manchester, Merseyside and Cheshire | I89: United Utilities | J89: 7UU200776 | K89: Rushton WwTW | L89: Wettenhall Brook | M89: GB112068055440 | N89: River | O89: Weaver Upper | S89: WFD_IMPg | T89: Phosphorus | Y89: Continuous Discharge | Z89: 2024-12-22 | AA89: Amber | AB89: 016810105 | AC89: 357800 | AD89: 363180 | BI89: 313 | BK89: 1.5 | BL89: Iron 4mg/l LUT 8mg/l UT | BM89: 98 | CH89: 9.4 | CO89: Water body GB112068055451 (Ash Brook (Darley Brook to Weaver) is also impacted by this scheme. | CP89: 25702 | CR89: 4155 | CS89: 313 | CT89: 313 | CU89: 1 | CV89: WWN | CW89: £ per pe | CX89: 1e-06
A90: GMC00342 | B90: Changed | F90: WQ | G90: North West | H90: Greater Manchester, Merseyside and Cheshire | I90: United Utilities | J90: 7UU200765 | K90: Saddleworth WwTW | L90: Tame (Chew Brook to Swineshaw Brook) | M90: GB112069061111 | N90: River | O90: Goyt Etherow Tame | S90: WFD_IMPg | T90: Phosphorus | Y90: Continuous Discharge | Z90: 2024-12-22 | AA90: Amber | AB90: 016940090 | AC90: 398910 | AD90: 404150 | BI90: 17992 | BJ90: 2 | BK90: 0.3 | BL90: Iron 4mg/l LUT 8mg/l UT | BM90: 7000 | CH90: 5.8 | CN90: Recovering Salmon River | CO90: Review of the economic appraisal for PR19 (March 2018) concluded that this measure could form part of a cost beneficial bundle for the operational catchment. Also benefits the water body GB112069061112 (Tame - Swineshaw Brook to Mersey). | CP90: 19807 | CR90: 342 | CS90: 17992 | CT90: 17992 | CU90: 1 | CV90: WWN | CW90: £ per pe | CX90: 1e-06
A91: GMC00512 | B91: Addition | F91: WQ | G91: North West | H91: Greater Manchester, Merseyside and Cheshire | I91: United Utilities | J91: 7UU300122 | K91: Saddleworth WwTW | L91: Tame (Chew Brook to Swineshaw Brook) | M91: GB112069061111 | N91: River | O91: Goyt Etherow Tame | S91: WFD_IMPg | T91: Ammonia / Dissolved Oxygen for WFD biological standards | Y91: Continuous Discharge | Z91: 2024-12-22 | AA91: Amber | AB91: 016940090 | AC91: 398910 | AD91: 404150 | BI91: 17992 | BJ91: BOD 30 LUT 64 UT | BK91: BOD 20 LUT 56 UT | BM91: 7000 | CH91: 1.5 | CN91: Recovering Salmon River | CO91: Review of the economic appraisal for PR19 (March 2018) concluded that this measure could form part of a cost beneficial bundle for the operational catchment. Also benefits the water body GB112069061112 (Tame - Swineshaw Brook to Mersey). | CR91: 1849323 | CS91: 1 | CT91: 1 | CU91: 1 | CV91: WWN | CW91: £ | CX91: 1e-06
A92: GMC00320 | B92: Changed | F92: WQ | G92: North West | H92: Greater Manchester, Merseyside and Cheshire | I92: United Utilities | J92: 7UU200743 | K92: Sandbach WwTW | L92: Wheelock (including Hassall Brook) | M92: GB112068055420 | N92: River | O92: Dane | S92: WFD_IMPm | T92: Phosphorus | Y92: Continuous Discharge | Z92: 2024-12-22 | AA92: Amber | AB92: 016810106 | AC92: 374200 | AD92: 359290 | BI92: 19439 | BJ92: 2 | BK92: 0.3 | BL92: Iron 4mg/l LUT 8mg/l UT | BN92: tbc | CH92: 13.9 | CO92: Review of the economic appraisal for PR19 (March 2018) concluded that this measure could form part of a cost beneficial bundle for the operational catchment. Also contributes to achieving Moderate status in GB112068055380 (Wheelock - Fowle Brook to Dane) and Good Status in GB112068060470 (Dane - Wheelock to Weaver). | CP92: 38570 | CR92: 342 | CS92: 19439 | CT92: 19439 | CU92: 1 | CV92: WWN | CW92: £ per pe | CX92: 1e-06
A93: CLA00465 | B93: Changed | C93: Yes – alteration made | F93: WQ | G93: Solway Tweed | H93: Cumbria and Lancashire | I93: United Utilities | J93: 7UU200449 | K93: Southwaite WwTW | L93: Petteril d/s Blackrack Beck | M93: GB102076074030 | N93: River | O93: Petteril | S93: WFD_IMPg | T93: Phosphorus | Y93: Continuous Discharge | Z93: 2021-12-22 | AA93: Amber | AB93: 017670112 | AC93: 344950 | AD93: 546350 | BK93: 5 | BL93: Iron 4000µg/l (95%-ile) 8000µg/l (UTL) | BO93: Other permit conditions (including stretch targets and catchment measures) laid out in the operating agreement linked to the permit must be met for this works. | CH93: 17.3 | CO93: Level of certainty 'amber' as details of catchment scheme still to be agreed and finalised. Catchment measures to include measures to reduce diffuse pollution from agriculture. | CR93: 4155 | CS93: 160 | CT93: 160 | CU93: 1 | CV93: WWN | CW93: £ per pe | CX93: 1e-06
A94: GMC00072 | B94: Changed | F94: WQ | G94: North West | H94: Greater Manchester, Merseyside and Cheshire | I94: United Utilities | J94: 7UU200521 | K94: St Helens WwTW | L94: Sankey Brook (Rainford Brook to Mersey) | M94: GB112069061200 | N94: River | O94: Sankey | S94: U_IMP2 | T94: Phosphorus | Y94: Continuous Discharge | Z94: 2026-05-12 | AA94: Amber | AB94: 016920130 | AC94: 353730 | AD94: 395890 | BI94: 137563 | BK94: 1 | BL94: Iron 3.5mg/l LUT 8mg/l UT | BM94: 47670 | CH94: 12.4 | CM94: No | CO94: Sankey Brook - St Helens STW to confluence with the River Mersey Candidate for Sensitive Area (Eutrophic). Waterbody GB112069061200 is included in the designation. | CR94: 36 | CS94: 131610 | CT94: 0 | CU94: 1 | CV94: WWN | CW94: £ per pe | CX94: 1e-06 | CY94: This row was previously highlighted blue, but the blue highlight has now been changed to yellow to reflect that it was part of the WINEP UM at FD and should be included in the model. | CZ94: NWT confirm in model (column Z) delivery in AMP8 Year 2026/27 and EA confirm (March 2024) delivery in AMP8 Year 26/27 therefore column CT amended to zero. | DA94: Carry over
A95: GMC00354 | B95: Changed | F95: WQ | G95: North West | H95: Greater Manchester, Merseyside and Cheshire | I95: United Utilities | J95: 7UU200777 | K95: Tarporley WwTW | L95: Wettenhall Brook | M95: GB112068055440 | N95: River | O95: Weaver Upper | S95: WFD_IMPg | T95: Phosphorus | Y95: Continuous Discharge | Z95: 2024-12-22 | AA95: Amber | AB95: 016810110 | AC95: 356290 | AD95: 361280 | BI95: 2749 | BK95: 0.3 | BL95: Iron 4mg/l LUT 8mg/l UT | BM95: 675 | CH95: 2.7 | CO95: Impact is also downsteam of Rushton WwTW Water body GB112068055451 (Ash Brook (Darley Brook to Weaver) is also impacted by this scheme. | CP95: 25701 | CR95: 798 | CS95: 2749 | CT95: 2749 | CU95: 1 | CV95: WWN | CW95: £ per pe | CX95: 1e-06
A96: GMC00331 | B96: Changed | F96: WQ | G96: North West | H96: Greater Manchester, Merseyside and Cheshire | I96: United Utilities | J96: 7UU200754 | K96: Tarvin WwTW | L96: Milton Brook | M96: GB112068060290 | N96: River | O96: Gowy | S96: WFD_IMPg | T96: Phosphorus | Y96: Continuous Discharge | Z96: 2024-12-22 | AA96: Amber | AB96: 016810035 | AC96: 348750 | AD96: 367700 | BI96: 7361 | BK96: 0.25 | BL96: Iron 4mg/l LUT 8mg/l UT | BM96: 1680 | CH96: 14.8 | CP96: 38585 | CR96: 798 | CS96: 7361 | CT96: 7361 | CU96: 1 | CV96: WWN | CW96: £ per pe | CX96: 1e-06
A97: GMC00376 | F97: WQ | G97: North West | H97: Greater Manchester, Merseyside and Cheshire | I97: United Utilities | J97: 7UU200799 | K97: Thicketford CSO BOL0229 | L97: Bradshaw Brook | M97: GB112069064580 | N97: River | O97: Croal Irwell | S97: WFD_IMPg | T97: Ammonia / Dissolved Oxygen for WFD biological standards | Y97: Intermittent Discharge | Z97: 2024-12-22 | AA97: Amber | AB97: 016982835 | AC97: 373570 | AD97: 410430 | BO97: 99%iles FIS | CH97: 7.5 | CO97: Review of the economic appraisal for PR19 (March 2018) concluded that this measure could form part of a cost beneficial bundle for the operational catchment. Also benefits the water bodies GB112069064530 (River Tonge) and GB112069064550 (Croal - including Blackshaw Brook). | CP97: 25519 | CR97: 5768 | CS97: 240 | CT97: 240 | CU97: 1 | CV97: WWN | CW97: £ per m3 | CX97: 1e-06 | CY97: This row was previously highlighted blue, but the blue highlight has now been changed to yellow to reflect that it was part of the WINEP UM at FD and should be included in the model.
A98: GMC00374 | F98: WQ | G98: North West | H98: Greater Manchester, Merseyside and Cheshire | I98: United Utilities | J98: 7UU200797 | K98: Timberbottom CSO BOL0153 | L98: Bradshaw Brook | M98: GB112069064580 | N98: River | O98: Croal Irwell | S98: WFD_IMPg | T98: Ammonia / Dissolved Oxygen for WFD biological standards | Y98: Intermittent Discharge | Z98: 2024-12-22 | AA98: Amber | AB98: 016982587 | AC98: 373400 | AD98: 411820 | BO98: 99%iles FIS | CH98: 2 | CO98: Review of the economic appraisal for PR19 (March 2018) concluded that this measure could form part of a cost beneficial bundle for the operational catchment. Also benefits the water bodies GB112069064530 (River Tonge) and GB112069064550 (Croal - including Blackshaw Brook). | CP98: 25518 | CR98: 3269 | CS98: 750 | CT98: 750 | CU98: 1 | CV98: WWN | CW98: £ per m3 | CX98: 1e-06 | CY98: This row was previously highlighted blue, but the blue highlight has now been changed to yellow to reflect that it was part of the WINEP UM at FD and should be included in the model.
A99: GMC00325 | B99: Changed | F99: WQ | G99: North West | H99: Greater Manchester, Merseyside and Cheshire | I99: United Utilities | J99: 7UU200748 | K99: Tyldesley WwTW | L99: Astley Brook (Mersey) | M99: GB112069061100 | N99: River | O99: Glaze | S99: WFD_IMPm | T99: Phosphorus | Y99: Continuous Discharge | Z99: 2024-12-22 | AA99: Amber | AB99: 016920135 | AC99: 368950 | AD99: 398520 | BI99: 30929 | BJ99: 2 | BK99: 0.8 | BL99: Aluminium 1mg/l Max | BM99: 6910 | CH99: 1.6 | CO99: Review of the economic appraisal for PR19 (March 2018) concluded that this measure could form part of a cost beneficial bundle for the operational catchment. Within class benefits for GB112069061100 (Astley Brook) and GB112069060810 (Bedford Brook) but contributes to achieving Moderate status in GB112069061420 (Glaze). | CP99: 19764 | CR99: 106 | CS99: 30929 | CT99: 30929 | CU99: 1 | CV99: WWN | CW99: £ per pe | CX99: 1e-06
A100: GMC00028 | F100: WR | G100: North West | H100: Greater Manchester, Merseyside and Cheshire | I100: United Utilities | J100: 7UU100080 | K100: Upper and Lower Castleshaw: Continuation and final implementation of adaptive management improvements at Castleshaw identified in AMP6, options appraisal | L100: Upper and Lower Castleshaw Reservoirs | M100: GB31231531 | N100: Lake | O100: Goyt Etherow Tame | S100: WFD_IMP_WRHMWB | T100: n/a | Y100: Adaptive Management | Z100: 2024-12-22 | AA100: Amber | AB100: 2569012107 | AC100: 399202 | AD100: 409479 | AG100: Scope to be agreed during WINEP 3. It will be based on outputs of existing investigations and will include monitoring requirements agreed between UU and EA | BQ100: PRJ-NW26 | BU100: Integrated | BV100: X | BW100: MM5 | BX100: 2847.341 | BY100: 7.8 | BZ100: N | CB100: TBC | CH100: 5 | CM100: No | CO100: Changes to Upper and Lower Castleshaw reservoir will result in improvements to downstream water body, GB112069064741, Tame ( Source to Chew Brook). Benefit length identified from stage 3 options appraisal, but will be finalised from the output of adpative management monitoring. The current compensation flow changes are likely to have limited impact on yield. | CP100: 36742 | CR100: 93000 | CS100: 1 | CT100: 0 | CU100: 1 | CV100: WR | CW100: £ | CX100: 1e-06 | CY100: Removed from WINEP in agreement with the Environment Agency | CZ100: Amend to cell CR96 from 186,000 to 93,000. This has been split as per the FD. Total totex 186k split between 2 unique references. In addition, the NWT model confirms (column CY) removal from WINEP and EA confirm (March 24) removal from WINEP | DA100: Removal
A101: GMC00332 | B101: Changed | F101: WQ | G101: North West | H101: Greater Manchester, Merseyside and Cheshire | I101: United Utilities | J101: 7UU200755 | K101: Utkinton WwTW | L101: Milton Brook | M101: GB112068060290 | N101: River | O101: Gowy | S101: WFD_IMPg | T101: Phosphorus | Y101: Continuous Discharge | Z101: 2024-12-22 | AA101: Amber | AB101: 016810033 | AC101: 354270 | AD101: 365330 | BI101: 415 | BK101: 1 | BL101: Iron 4mg/l LUT 8mg/l UT | BM101: 82 | CH101: 7.4 | CP101: 38583 | CR101: 4155 | CS101: 415 | CT101: 415 | CU101: 1 | CV101: WWN | CW101: £ per pe | CX101: 1e-06
A102: GMC00333 | B102: Changed | F102: WQ | G102: North West | H102: Greater Manchester, Merseyside and Cheshire | I102: United Utilities | J102: 7UU200756 | K102: Waverton WwTW | L102: Gowy and tribs (Source to Milton Brook) | M102: GB112068060280 | N102: River | O102: Gowy | S102: WFD_IMPg | T102: Phosphorus | Y102: Continuous Discharge | Z102: 2024-12-22 | AA102: Amber | AB102: 016810036 | AC102: 346840 | AD102: 364460 | BI102: 2306 | BK102: 0.4 | BL102: Iron 4mg/l LUT 8mg/l UT | BM102: 522 | CH102: 6.4 | CP102: 19783 | CR102: 798 | CS102: 2306 | CT102: 2306 | CU102: 1 | CV102: WWN | CW102: £ per pe | CX102: 1e-06
A103: CLA00492 | B103: Changed | F103: WQ | G103: North West | H103: Cumbria and Lancashire | I103: United Utilities | J103: 7UU200476 | K103: Westhead WwTW | L103: Eller Brook | M103: GB112070064810 | N103: River | O103: Douglas OC | S103: WFD_IMPg | T103: Phosphorus | Y103: Continuous Discharge | Z103: 2024-12-22 | AA103: Amber | AB103: 017030014 | AC103: 344140 | AD103: 408280 | BI103: 1837 | BK103: 0.6 | BL103: Iron 4000µg/l (95%-ile) 8000µg/l (UTL) | BM103: 521 | CH103: 9 | CR103: 4155 | CS103: 1837 | CT103: 1837 | CU103: 1 | CV103: WWN | CW103: £ per pe | CX103: 1e-06 | CZ103: Amend to cell CR99 from 798 to 4155. In FD, group £798 per p.e. relates to WwTW size band 4 (proposed limit <1mg/l P). Proposed limit in column BK is 0.6 and population is 1837, therefore sits within FD group £4155 per p.e. WwTW size band 1-3.
A104: GMC00326 | B104: Changed | F104: WQ | G104: North West | H104: Greater Manchester, Merseyside and Cheshire | I104: United Utilities | J104: 7UU200749 | K104: Westhoughton WwTW | L104: Westleigh Brook | M104: GB112069060820 | N104: River | O104: Glaze | S104: WFD_IMPm | T104: Phosphorus | Y104: Continuous Discharge | Z104: 2024-12-22 | AA104: Amber | AB104: 016950136 | AC104: 365070 | AD104: 403470 | BI104: 29430 | BJ104: 2 | BK104: 0.25 | BL104: Iron 2.5mg/l LUT 8mg/l UT | BM104: 9100 | CH104: 8.6 | CO104: Review of the economic appraisal for PR19 (March 2018) concluded that this measure could form part of a cost beneficial bundle for the operational catchment. Also benefits the water bodies GB112069060760 (Pennington Brook) and GB112069061420 (Glaze). | CP104: 19776 | CR104: 106 | CS104: 29430 | CT104: 29430 | CU104: 1 | CV104: WWN | CW104: £ per pe | CX104: 1e-06
A105: GMC00069 | B105: Changed | F105: WQ | G105: North West | H105: Greater Manchester, Merseyside and Cheshire | I105: United Utilities | J105: 7UU200518 | K105: Whaley Bridge WwTW | L105: River Goyt (Sett to Etherow) | M105: GB112069060880 | N105: River | O105: Goyt Etherow Tame | S105: U_IMP2 | T105: Phosphorus | Y105: Continuous Discharge | Z105: 2026-05-12 | AA105: Amber | AB105: 016940184 | AC105: 401250 | AD105: 383220 | BI105: 15495 | BK105: 2 | BL105: Iron 4mg/l LUT 8mg/l UT | BM105: 7960 | CH105: 10 | CM105: No | CN105: Recovering Salmon River | CO105: Goyt & Etherow Candidate forSensitive Area (Eutrophic). Waterbodies GB112069061050, GB112069060960, GB112069061000 are included in the designation. | CR105: 36 | CS105: 38483 | CT105: 0 | CU105: 1 | CV105: WWN | CW105: £ per pe | CX105: 1e-06 | CY105: This row was previously highlighted blue, but the blue highlight has now been changed to yellow to reflect that it was part of the WINEP UM at FD and should be included in the model. | CZ105: NWT confirm in model (column Z) delivery in AMP8 Year 2026/27 and EA confirm (March 2024) delivery in AMP8 Year 26/27 therefore column CT amended to zero. | DA105: Carry over
A106: GMC00343 | B106: Changed | F106: WQ | G106: North West | H106: Greater Manchester, Merseyside and Cheshire | I106: United Utilities | J106: 7UU200766 | K106: Whaley Bridge WwTW | L106: River Goyt (Sett to Etherow) | M106: GB112069060880 | N106: River | O106: Goyt Etherow Tame | S106: WFD_IMPg | T106: Phosphorus | Y106: Continuous Discharge | Z106: 2024-12-22 | AA106: Amber | AB106: 016940184 | AC106: 401250 | AD106: 383220 | BI106: 38483 | BK106: 0.25 | BL106: Iron 4mg/l LUT 8mg/l UT | BM106: 7960 | CH106: 12.9 | CN106: Recovering Salmon River | CO106: Review of the economic appraisal for PR19 (March 2018) concluded that this measure could form part of a cost beneficial bundle for the operational catchment. Also benefits the water body GB112069060880. | CP106: 19799 | CR106: 106 | CS106: 38483 | CT106: 38483 | CU106: 1 | CV106: WWN | CW106: £ per pe | CX106: 1e-06
A107: GMC00495 | B107: Changed | F107: WQ | G107: North West | H107: Greater Manchester, Merseyside and Cheshire | I107: United Utilities | J107: 7UU200912 | K107: Whitegate WwTW | L107: Bogart Brook | M107: GB112068060540 | N107: River | O107: Weaver Lower | S107: WFD_IMPg | T107: Phosphorus | Y107: Continuous Discharge | Z107: 2024-12-22 | AA107: Amber | AB107: 016810114 | AC107: 363180 | AD107: 368980 | BI107: 188 | BK107: 1 | BL107: Iron 4mg/l LUT 8mg/l UT | BN107: 44 | CH107: 1.9 | CO107: This action is not included in the 2nd RBMP cost beneficial bundle of measures for this operational catchment. A review of the economic appraisal has concluded that the measure could form part of a cost beneficial bundle for the operational catchment. | CR107: 4155 | CS107: 188 | CT107: 188 | CU107: 1 | CV107: WWN | CW107: £ per pe | CX107: 1e-06
A108: GMC00066 | B108: Changed | F108: WQ | G108: North West | H108: Greater Manchester, Merseyside and Cheshire | I108: United Utilities | J108: 7UU200515 | K108: Wilmslow WwTW | L108: Dean (Bollington to Bollin) | M108: GB112069061360 | N108: River | O108: Bollin Dean Mersey Upper | S108: U_IMP2 | T108: Phosphorus | Y108: Continuous Discharge | Z108: 2026-05-12 | AA108: Amber | AB108: 016910014 | AC108: 384129 | AD108: 382335 | BI108: 23711 | BK108: 2 | BL108: Iron 4mg/l LUT 8mg/l UT | BM108: 9000 | CH108: 27.7 | CM108: No | CN108: Recovering Salmon River | CO108: Bollin & Birkin Brook Candidate for Sensitive Area (Eutrophic). Waterbodies GB112069061370, GB112069061340, GB112069061320, GB112069061381, GB112069061382 are included in the designation. | CR108: 156 | CS108: 23711 | CT108: 0 | CU108: 1 | CV108: WWN | CW108: £ per pe | CX108: 1e-06 | CY108: This row was previously highlighted blue, but the blue highlight has now been changed to yellow to reflect that it was part of the WINEP UM at FD and should be included in the model. | CZ108: NWT confirm in model (column Z) delivery in AMP8 Year 2026/27 and EA confirm (March 2024) delivery in AMP8 Year 26/27 therefore column CT amended to zero. | DA108: Carry over
A109: GMC00306 | B109: Changed | F109: WQ | G109: North West | H109: Greater Manchester, Merseyside and Cheshire | I109: United Utilities | J109: 7UU200729 | K109: Wilmslow WwTW | L109: Dean (Bollington to Bollin) | M109: GB112069061360 | N109: River | O109: Bollin Dean Mersey Upper | S109: WFD_IMPm | T109: Phosphorus | Y109: Continuous Discharge | Z109: 2024-12-22 | AA109: Amber | AB109: 016910014 | AC109: 384129 | AD109: 382335 | BI109: 23711 | BK109: 1 | BL109: Iron 4mg/l LUT 8mg/l UT | BM109: 9000 | CH109: 17.1 | CN109: Recovering Salmon River | CO109: Review of the economic appraisal for PR19 (March 2018) concluded that this measure is part of a cost beneficial bundle for the operational catchment. Also impacts on water bodies GB112069061381 (Bollin - River Dean to Ashley Mill) and GB112069061382 (Bollin - Ashley Mill to Manchester Ship Canal) | CP109: 19683 | CR109: 156 | CS109: 23711 | CT109: 23711 | CU109: 1 | CV109: WWN | CW109: £ per pe | CX109: 1e-06
A110: GMC00327 | B110: Changed | F110: WQ | G110: North West | H110: Greater Manchester, Merseyside and Cheshire | I110: United Utilities | J110: 7UU200750 | K110: Worsley WwTW | L110: Astley Brook (Mersey) | M110: GB112069061100 | N110: River | O110: Glaze | S110: WFD_IMPm | T110: Phosphorus | Y110: Continuous Discharge | Z110: 2024-12-22 | AA110: Amber | AB110: 016940139 | AC110: 372150 | AD110: 402720 | BI110: 22886 | BJ110: 2 | BK110: 0.5 | BL110: Iron 3.5mg/l LUT 8mg/l UT | BM110: 4643 | CH110: 7.3 | CO110: Review of the economic appraisal for PR19 (March 2018) concluded that this measure could form part of a cost beneficial bundle for the operational catchment. Within class benefits for GB112069061100 (Astley Brook) and GB112069060810 (Bedford Brook) but contributes to achieving Moderate status in GB112069061420 (Glaze). | CP110: 19761 | CR110: 342 | CS110: 22886 | CT110: 22886 | CU110: 1 | CV110: WWN | CW110: £ per pe | CX110: 1e-06
A111: GMC00511 | B111: Addition | F111: WQ | G111: North West | H111: Greater Manchester, Merseyside and Cheshire | I111: United Utilities | J111: 7UU300121 | K111: Worsley WwTW | L111: Astley Brook (Mersey) | M111: GB112069061100 | N111: River | O111: Glaze | S111: WFD_IMPg | T111: Ammonia / Dissolved Oxygen for WFD biological standards | Y111: Continuous Discharge | Z111: 2024-12-22 | AA111: Amber | AB111: 016940139 | AC111: 372150 | AD111: 402720 | BI111: 22886 | BJ111: Ammonia 3 LUT 12 UT | BK111: Ammonia 2.5 LUT 12 UT | BM111: 4643 | CH111: 0.2 | CO111: Review of the economic appraisal for PR19 (March 2018) concluded that this measure could form part of a cost beneficial bundle for the operational catchment. | CR111: 254687 | CS111: 1 | CT111: 1 | CU111: 1 | CV111: WWN | CW111: £ | CX111: 1e-06
A112: GMC00391 | F112: WQ | G112: North West | H112: Greater Manchester, Merseyside and Cheshire | I112: United Utilities | J112: 7UU200814 | K112: Worsley WwTW Inlet CSO | L112: Astley Brook (Mersey) | M112: GB112069061100 | N112: River | O112: Glaze | S112: WFD_IMPg | T112: Ammonia / Dissolved Oxygen for WFD biological standards | Y112: Intermittent Discharge | Z112: 2024-12-22 | AA112: Amber | AB112: 016940139 | AC112: 372150 | AD112: 402740 | BO112: 99%iles FIS | CH112: 6.4 | CO112: Review of the economic appraisal for PR19 (March 2018) concluded that this measure could form part of a cost beneficial bundle for the operational catchment. | CP112: 19765 | CR112: 1840 | CS112: 1300 | CT112: 1300 | CU112: 1 | CV112: WWN | CW112: £ per m3 | CX112: 1e-06 | CY112: This row was previously highlighted blue, but the blue highlight has now been changed to yellow to reflect that it was part of the WINEP UM at FD and should be included in the model.
A113: GMC00392 | F113: WQ | G113: North West | H113: Greater Manchester, Merseyside and Cheshire | I113: United Utilities | J113: 7UU200815 | K113: Worsley WwTW Storm Tank | L113: Astley Brook (Mersey) | M113: GB112069061100 | N113: River | O113: Glaze | S113: WFD_IMPg | T113: Ammonia / Dissolved Oxygen for WFD biological standards | Y113: Intermittent Discharge | Z113: 2024-12-22 | AA113: Amber | AB113: 016940139 | AC113: 372150 | AD113: 402740 | BO113: 99%iles FIS | CH113: 0.2 | CO113: Review of the economic appraisal for PR19 (March 2018) concluded that this measure could form part of a cost beneficial bundle for the operational catchment. | CP113: 19760 | CR113: 3269 | CS113: 675 | CT113: 675 | CU113: 1 | CV113: WWN | CW113: £ per m3 | CX113: 1e-06 | CY113: We can confirm that the allowed totex, quantity proposed and quantity delivered are now correct. We have assigned this row to its correct sub-grouping in column CZ.
A114: GMC00367 | F114: WQ | G114: North West | H114: Greater Manchester Merseyside and Cheshire | I114: United Utilities | J114: 7UU200790 | K114: Bolton WwTW | L114: Irwell (Croal to Irk) | M114: GB112069061451 | N114: River | O114: Croal Irwell | S114: WFD_IMPg | T114: Ammonia | U114: WFD_IMPg | V114: Ammonia / Dissolved Oxygen for WFD biological standards | Y114: Continuous Discharge | Z114: 2025-03-31 | AA114: Green | AB114: 016950032 | AC114: 376950 | AD114: 404520 | BI114: 388565 | BJ114: Ammonia 6LUT 23UT | BK114: Ammonia 2LUT 12UT | BM114: 101000 | CH114: 31.3 | CO114: Core obligation is to contribute to meeting Fresh Water Fish Directive in the Manchester Ship Canal. | CP114: 19728 | CR114: =36500000/3 -> 12166666.67 | CS114: 1 | CT114: 1 | CU114: 0 | CV114: WWN | CW114: £ | CX114: 1e-06 | CY114: Allowed totex has been split equally across rows for 7UU200790, 7UU300118 and 7UU200730. Quantity delivered has been inputted.
A115: GMC00508 | F115: WQ | G115: North West | H115: Greater Manchester Merseyside and Cheshire | I115: United Utilities | J115: 7UU300118 | K115: Bolton WwTW | L115: Irwell (Croal to Irk) | M115: GB112069061451 | N115: River | O115: Croal Irwell | S115: WFD_IMPg | T115: Ammonia / Dissolved Oxygen for WFD biological standards | Y115: Continuous Discharge | Z115: 2025-03-31 | AA115: Green | AB115: 016950032 | AC115: 376950 | AD115: 404520 | BI115: 388565 | BJ115: BOD 20LUT 56UT | BK115: BOD 15LUT 50UT | BM115: 101000 | CH115: 10.2 | CO115: Core obligation is to contribute to meeting Fresh Water Fish Directive in the Manchester Ship Canal. | CR115: =36500000/3 -> 12166666.67 | CS115: 1 | CT115: 1 | CU115: 0 | CV115: WWN | CW115: £ | CX115: 1e-06 | CY115: Allowed totex has been split equally across rows for 7UU200790, 7UU300118 and 7UU200730. Quantity delivered has been inputted.
A116: GMC00307 | F116: WQ | G116: North West | H116: Greater Manchester Merseyside and Cheshire | I116: United Utilities | J116: 7UU200730 | K116: Bolton WwTW | L116: Irwell (Croal to Irk) | M116: GB112069061451 | N116: River | O116: Croal Irwell | S116: WFD_ND | T116: Phosphorus | U116: WFD_IMPm | V116: Phosphorus | Y116: Continuous Discharge | Z116: 2025-03-31 | AA116: Green | AB116: 016950032 | AC116: 376950 | AD116: 404520 | BI116: 388565 | BJ116: 1 | BM116: 101000 | BO116: Stretch Limit - 0.4mg/l | BP116: This site will be part of the catchment permit for the River Irwell that will achieve an overall P load reduction through stretch permit limits within operating techniques at named WwTWs within the catchment. Investigations and trials to be undertaken during AMP7 | CH116: 14.4 | CO116: Required to reverse and prevent deterioration downstream of Davyhulme WwTW but also results in the length improved to Moderate Status in the River Irwell. | CP116: 19729 | CR116: =36500000/3 -> 12166666.67 | CS116: 1 | CT116: 1 | CU116: 0 | CV116: WWN | CW116: £ | CX116: 1e-06 | CY116: Allowed totex has been split equally across rows for 7UU200790, 7UU300118 and 7UU200730. Quantity delivered has been inputted.
A117: GMC00368 | F117: WQ | G117: North West | H117: Greater Manchester Merseyside and Cheshire | I117: United Utilities | J117: 7UU200791 | K117: Bolton WwTW Storm Tanks | L117: Irwell (Croal to Irk) | M117: GB112069061451 | N117: River | O117: Croal Irwell | S117: WFD_IMPg | T117: Ammonia / Dissolved Oxygen for WFD biological standards | Y117: Intermittent Discharge | Z117: 2025-03-31 | AA117: Green | AB117: 016950032 | AC117: 376550 | AD117: 404690 | BO117: 99%iles FIS | CH117: 10.2 | CO117: Core obligation is to contribute to meeting Fresh Water Fish Directive in the Manchester Ship Canal. | CP117: 19726 | CR117: 41800000 | CS117: 1 | CT117: 1 | CU117: 0 | CV117: WWN | CW117: £ | CX117: 1e-06 | CY117: As per PR19 FD, Ofwat agreed an uncertainty mechanism for Bolton WwTW. In agreement with the Environment Agency this scheme has been added to the WINEP.

Sheet InpActive
A1: =RIGHT(CELL("filename", $A$1), LEN(CELL("filename", $A$1)) - SEARCH("]", CELL("filename", $A$1))) -> 
E2: =Time!E25 -> Model period ending | F2: =Check!F2 -> 0 | G2: Checks | J2: =Time!J$25 -> 2019-03-31 | K2: =Time!K$25 -> 2020-03-31 | L2: =Time!L$25 -> 2021-03-31 | M2: =Time!M$25 -> 2022-03-31 | N2: =Time!N$25 -> 2023-03-31 | O2: =Time!O$25 -> 2024-03-31 | P2: =Time!P$25 -> 2025-03-31 | Q2: =Time!Q$25 -> 2026-03-31 | R2: =Time!R$25 -> 2027-03-31 | S2: =Time!S$25 -> 2028-03-31
E3: =Time!E107 -> Timeline label | F3: =Check!F3 -> 5 | G3: Track chgs | J3: =Time!J$107 -> Pre-Fcst | K3: =Time!K$107 -> Pre-Fcst | L3: =Time!L$107 -> Forecast | M3: =Time!M$107 -> Forecast | N3: =Time!N$107 -> Forecast | O3: =Time!O$107 -> Forecast | P3: =Time!P$107 -> Forecast | Q3: =Time!Q$107 -> Post-Fcst | R3: =Time!R$107 -> Post-Fcst | S3: =Time!S$107 -> Post-Fcst
E4: =Time!E130 -> Financial year ending | J4: =Time!J$130 -> 2019 | K4: =Time!K$130 -> 2020 | L4: =Time!L$130 -> 2021 | M4: =Time!M$130 -> 2022 | N4: =Time!N$130 -> 2023 | O4: =Time!O$130 -> 2024 | P4: =Time!P$130 -> 2025 | Q4: =Time!Q$130 -> 2026 | R4: =Time!R$130 -> 2027 | S4: =Time!S$130 -> 2028
E5: =Time!E10 -> Model column counter | F5: Constant | G5: Unit | H5: Total | J5: =Time!J$10 -> 1 | K5: =Time!K$10 -> 2 | L5: =Time!L$10 -> 3 | M5: =Time!M$10 -> 4 | N5: =Time!N$10 -> 5 | O5: =Time!O$10 -> 6 | P5: =Time!P$10 -> 7 | Q5: =Time!Q$10 -> 8 | R5: =Time!R$10 -> 9 | S5: =Time!S$10 -> 10
A7: A: TIME
B9: Timeline setup
C11: Timeline start dates
E12: 1st model column start date | F12: 2018-04-01 | G12: date | H12: Date should be the first date of the financial year
C14: Financial year inputs
E15: First modelling column financial year # | F15: 2019 | G15: year # | H15: Financial model start year
E16: Financial year end month number # | F16: 3 | G16: month # | H16: Month of financial year end for financial model
C18: Timeline labels
E19: Pre - forecast period | F19: Pre-Fcst | G19: label
E20: Forecast period | F20: Forecast | G20: label
E21: Post - forecast period | F21: Post-Fcst | G21: label
B23: Project dates
E25: Forecast start date | F25: 2020-04-01 | G25: date
E26: Forecast duration | F26: 5 | G26: years
E27: Forecast duration (text) | F27: 2020-25 | G27: years # | H27: For Info only
E29: Forecast period reconcilation is profiled from | F29: 3 | G29: year
A31: B: FINANCING INPUTS
E33: Financing cost index | G33: Index | L33: 4 | M33: 3 | N33: 2 | O33: 1 | P33: 0
E35: Financing Cost | F35: 0.0292 | G35: %
A37: C: NON CHANGEABLE MODEL TECHNICAL INPUTS
E39: Months per model period | F39: 12 | G39: months
E41: Track Tolerance Level | F41: 0.001 | G41: tolerance
E42: Check Tolerance Level | F42: 1e-07 | G42: tolerance
E44: Thousands in a million | F44: 1000 | G44: thousands
E45: Units in a million | F45: 1000000 | G45: unit
E46: Unit conversion to percentage | F46: 100 | G46: unit
A48: End of sheet

Sheet Calcs >>

Sheet WINEP_Schemes
A1: =RIGHT(CELL("filename", $A$1), LEN(CELL("filename", $A$1)) - SEARCH("]", CELL("filename", $A$1))) -> 
F2: =Check!F2 -> 0 | G2: Checks
F3: =Check!F3 -> 5 | G3: Track chgs
A5: AMBER WINEP SCHEMES
C7: List of WINEP schemes that were unconfirmed at FD
C9: WINEPID | D9: Unique ID | E9: Scheme category / name | F9: Unit | G9: Unit Conversion to £m | I9: Allowed totex unit rate | J9: Quantity in PR19 FD | K9: Quantity Delivered | L9: 1 = In FD, funded 0 = In FD, not funded | M9: Price Control | N9: Proportion Confirmed
C10: =WINEP_Inputs!A5 -> CLA00478 | D10: =WINEP_Inputs!J5 -> 7UU200462 | E10: =WINEP_Inputs!K5 -> Burnley WwTW | F10: =WINEP_Inputs!CW5 -> £ | G10: =WINEP_Inputs!CX5 -> 1e-06 | I10: =WINEP_Inputs!CR5 -> 1880959 | J10: =WINEP_Inputs!CS5 -> 1 | K10: =WINEP_Inputs!CT5 -> 1 | L10: =WINEP_Inputs!CU5 -> 1 | M10: =WINEP_Inputs!CV5 -> WWN | N10: =IF(K10 = 0, 0, K10 / J10) -> 1
C11: =WINEP_Inputs!A6 -> CLA00479 | D11: =WINEP_Inputs!J6 -> 7UU200463 | E11: =WINEP_Inputs!K6 -> Burnley WwTW | F11: =WINEP_Inputs!CW6 -> £ | G11: =WINEP_Inputs!CX6 -> 1e-06 | I11: =WINEP_Inputs!CR6 -> 1880959 | J11: =WINEP_Inputs!CS6 -> 1 | K11: =WINEP_Inputs!CT6 -> 1 | L11: =WINEP_Inputs!CU6 -> 1 | M11: =WINEP_Inputs!CV6 -> WWN | N11: 1
C12: =WINEP_Inputs!A7 -> GMC00513 | D12: =WINEP_Inputs!J7 -> 7UU300123 | E12: =WINEP_Inputs!K7 -> Mossley WwTW | F12: =WINEP_Inputs!CW7 -> £ | G12: =WINEP_Inputs!CX7 -> 1e-06 | I12: =WINEP_Inputs!CR7 -> 2456836.5 | J12: =WINEP_Inputs!CS7 -> 1 | K12: =WINEP_Inputs!CT7 -> 1 | L12: =WINEP_Inputs!CU7 -> 1 | M12: =WINEP_Inputs!CV7 -> WWN | N12: 1
C13: =WINEP_Inputs!A8 -> GMC00514 | D13: =WINEP_Inputs!J8 -> 7UU300124 | E13: =WINEP_Inputs!K8 -> Mossley WwTW | F13: =WINEP_Inputs!CW8 -> £ | G13: =WINEP_Inputs!CX8 -> 1e-06 | I13: =WINEP_Inputs!CR8 -> 2456836.5 | J13: =WINEP_Inputs!CS8 -> 1 | K13: =WINEP_Inputs!CT8 -> 1 | L13: =WINEP_Inputs!CU8 -> 1 | M13: =WINEP_Inputs!CV8 -> WWN | N13: 1
C14: =WINEP_Inputs!A9 -> CLA00478 | D14: =WINEP_Inputs!J9 -> 7UU200462 | E14: =WINEP_Inputs!K9 -> Burnley WwTW | F14: =WINEP_Inputs!CW9 -> £ | G14: =WINEP_Inputs!CX9 -> 1e-06 | I14: =WINEP_Inputs!CR9 -> 1880958.5 | J14: =WINEP_Inputs!CS9 -> 1 | K14: =WINEP_Inputs!CT9 -> 1 | L14: =WINEP_Inputs!CU9 -> 1 | M14: =WINEP_Inputs!CV9 -> WWN | N14: 1
C15: =WINEP_Inputs!A10 -> CLA00479 | D15: =WINEP_Inputs!J10 -> 7UU200463 | E15: =WINEP_Inputs!K10 -> Burnley WwTW | F15: =WINEP_Inputs!CW10 -> £ | G15: =WINEP_Inputs!CX10 -> 1e-06 | I15: =WINEP_Inputs!CR10 -> 1880958.5 | J15: =WINEP_Inputs!CS10 -> 1 | K15: =WINEP_Inputs!CT10 -> 1 | L15: =WINEP_Inputs!CU10 -> 1 | M15: =WINEP_Inputs!CV10 -> WWN | N15: =IF(K15 = 0, 0, K15 / J15) -> 1
C16: =WINEP_Inputs!A11 -> GMC00513 | D16: =WINEP_Inputs!J11 -> 7UU300123 | E16: =WINEP_Inputs!K11 -> Mossley WwTW | F16: =WINEP_Inputs!CW11 -> £ | G16: =WINEP_Inputs!CX11 -> 1e-06 | I16: =WINEP_Inputs!CR11 -> 1228418 | J16: =WINEP_Inputs!CS11 -> 1 | K16: =WINEP_Inputs!CT11 -> 1 | L16: =WINEP_Inputs!CU11 -> 1 | M16: =WINEP_Inputs!CV11 -> WWN | N16: 1
C17: =WINEP_Inputs!A12 -> GMC00514 | D17: =WINEP_Inputs!J12 -> 7UU300124 | E17: =WINEP_Inputs!K12 -> Mossley WwTW | F17: =WINEP_Inputs!CW12 -> £ | G17: =WINEP_Inputs!CX12 -> 1e-06 | I17: =WINEP_Inputs!CR12 -> 1228418 | J17: =WINEP_Inputs!CS12 -> 1 | K17: =WINEP_Inputs!CT12 -> 1 | L17: =WINEP_Inputs!CU12 -> 1 | M17: =WINEP_Inputs!CV12 -> WWN | N17: 1
C18: =WINEP_Inputs!A13 -> GMC00411 | D18: =WINEP_Inputs!J13 -> 7UU200834 | E18: =WINEP_Inputs!K13 -> Adj M62 Castleton CSO ROC0094 | F18: =WINEP_Inputs!CW13 -> £ per m3 | G18: =WINEP_Inputs!CX13 -> 1e-06 | I18: =WINEP_Inputs!CR13 -> 5768 | J18: =WINEP_Inputs!CS13 -> 450 | K18: =WINEP_Inputs!CT13 -> 450 | L18: =WINEP_Inputs!CU13 -> 1 | M18: =WINEP_Inputs!CV13 -> WWN | N18: 1
C19: =WINEP_Inputs!A14 -> GMC00509 | D19: =WINEP_Inputs!J14 -> 7UU300119 | E19: =WINEP_Inputs!K14 -> Albert Road CSO BOL0095 | F19: =WINEP_Inputs!CW14 -> 0 | G19: =WINEP_Inputs!CX14 -> 1e-06 | I19: =WINEP_Inputs!CR14 -> 0 | J19: =WINEP_Inputs!CS14 -> 0 | K19: =WINEP_Inputs!CT14 -> 0 | L19: =WINEP_Inputs!CU14 -> 1 | M19: =WINEP_Inputs!CV14 -> WWN | N19: 0
C20: =WINEP_Inputs!A15 -> GMC00065 | D20: =WINEP_Inputs!J15 -> 7UU200514 | E20: =WINEP_Inputs!K15 -> Alderley Edge WwTW | F20: =WINEP_Inputs!CW15 -> £ per pe | G20: =WINEP_Inputs!CX15 -> 1e-06 | I20: =WINEP_Inputs!CR15 -> 156 | J20: =WINEP_Inputs!CS15 -> 15495 | K20: =WINEP_Inputs!CT15 -> 15495 | L20: =WINEP_Inputs!CU15 -> 1 | M20: =WINEP_Inputs!CV15 -> WWN | N20: 1
C21: =WINEP_Inputs!A16 -> GMC00294 | D21: =WINEP_Inputs!J16 -> 7UU200717 | E21: =WINEP_Inputs!K16 -> Alderley Edge WwTW | F21: =WINEP_Inputs!CW16 -> £ per pe | G21: =WINEP_Inputs!CX16 -> 1e-06 | I21: =WINEP_Inputs!CR16 -> 342 | J21: =WINEP_Inputs!CS16 -> 15495 | K21: =WINEP_Inputs!CT16 -> 15495 | L21: =WINEP_Inputs!CU16 -> 1 | M21: =WINEP_Inputs!CV16 -> WWN | N21: 1
C22: =WINEP_Inputs!A17 -> GMC00313 | D22: =WINEP_Inputs!J17 -> 7UU200736 | E22: =WINEP_Inputs!K17 -> Alsager WwTW | F22: =WINEP_Inputs!CW17 -> £ per pe | G22: =WINEP_Inputs!CX17 -> 1e-06 | I22: =WINEP_Inputs!CR17 -> 342 | J22: =WINEP_Inputs!CS17 -> 13114 | K22: =WINEP_Inputs!CT17 -> 13114 | L22: =WINEP_Inputs!CU17 -> 1 | M22: =WINEP_Inputs!CV17 -> WWN | N22: 1
C23: =WINEP_Inputs!A18 -> GMC00371 | D23: =WINEP_Inputs!J18 -> 7UU200794 | E23: =WINEP_Inputs!K18 -> Astley Bridge CSO BOL0056 | F23: =WINEP_Inputs!CW18 -> £ per m3 | G23: =WINEP_Inputs!CX18 -> 1e-06 | I23: =WINEP_Inputs!CR18 -> 1840 | J23: =WINEP_Inputs!CS18 -> 2600 | K23: =WINEP_Inputs!CT18 -> 2600 | L23: =WINEP_Inputs!CU18 -> 1 | M23: =WINEP_Inputs!CV18 -> WWN | N23: 1
C24: =WINEP_Inputs!A19 -> GMC00349 | D24: =WINEP_Inputs!J19 -> 7UU200772 | E24: =WINEP_Inputs!K19 -> Audlem WwTW | F24: =WINEP_Inputs!CW19 -> £ per pe | G24: =WINEP_Inputs!CX19 -> 1e-06 | I24: =WINEP_Inputs!CR19 -> 4155 | J24: =WINEP_Inputs!CS19 -> 1563 | K24: =WINEP_Inputs!CT19 -> 1563 | L24: =WINEP_Inputs!CU19 -> 1 | M24: =WINEP_Inputs!CV19 -> WWN | N24: 1
C25: =WINEP_Inputs!A20 -> GMC00008 | D25: =WINEP_Inputs!J20 -> 7UU200501 | E25: =WINEP_Inputs!K20 -> Audley WwTW | F25: =WINEP_Inputs!CW20 -> £ | G25: =WINEP_Inputs!CX20 -> 1e-06 | I25: =WINEP_Inputs!CR20 -> 2133357 | J25: =WINEP_Inputs!CS20 -> 1 | K25: =WINEP_Inputs!CT20 -> 1 | L25: =WINEP_Inputs!CU20 -> 1 | M25: =WINEP_Inputs!CV20 -> WWN | N25: 1
C26: =WINEP_Inputs!A21 -> GMC00350 | D26: =WINEP_Inputs!J21 -> 7UU200773 | E26: =WINEP_Inputs!K21 -> Audley WwTW | F26: =WINEP_Inputs!CW21 -> £ per pe | G26: =WINEP_Inputs!CX21 -> 1e-06 | I26: =WINEP_Inputs!CR21 -> 798 | J26: =WINEP_Inputs!CS21 -> 8052 | K26: =WINEP_Inputs!CT21 -> 8052 | L26: =WINEP_Inputs!CU21 -> 1 | M26: =WINEP_Inputs!CV21 -> WWN | N26: 1
C27: =WINEP_Inputs!A22 -> CLA00378 | D27: =WINEP_Inputs!J22 -> 7UU100001 | E27: =WINEP_Inputs!K22 -> Barnoldswick WwTW | F27: =WINEP_Inputs!CW22 -> £ per pe | G27: =WINEP_Inputs!CX22 -> 1e-06 | I27: =WINEP_Inputs!CR22 -> 342 | J27: =WINEP_Inputs!CS22 -> 13092 | K27: =WINEP_Inputs!CT22 -> 13092 | L27: =WINEP_Inputs!CU22 -> 1 | M27: =WINEP_Inputs!CV22 -> WWN | N27: 1
C28: =WINEP_Inputs!A23 -> GMC00351 | D28: =WINEP_Inputs!J23 -> 7UU200774 | E28: =WINEP_Inputs!K23 -> Betley WwTW | F28: =WINEP_Inputs!CW23 -> £ per pe | G28: =WINEP_Inputs!CX23 -> 1e-06 | I28: =WINEP_Inputs!CR23 -> 4155 | J28: =WINEP_Inputs!CS23 -> 966 | K28: =WINEP_Inputs!CT23 -> 966 | L28: =WINEP_Inputs!CU23 -> 1 | M28: =WINEP_Inputs!CV23 -> WWN | N28: 1
C29: =WINEP_Inputs!A24 -> GMC00314 | D29: =WINEP_Inputs!J24 -> 7UU200737 | E29: =WINEP_Inputs!K24 -> Biddulph WwTW | F29: =WINEP_Inputs!CW24 -> £ per pe | G29: =WINEP_Inputs!CX24 -> 1e-06 | I29: =WINEP_Inputs!CR24 -> 342 | J29: =WINEP_Inputs!CS24 -> 16730 | K29: =WINEP_Inputs!CT24 -> 16730 | L29: =WINEP_Inputs!CU24 -> 1 | M29: =WINEP_Inputs!CV24 -> WWN | N29: 1
C30: =WINEP_Inputs!A25 -> CLA00486 | D30: =WINEP_Inputs!J25 -> 7UU200470 | E30: =WINEP_Inputs!K25 -> Blackburn WwTW | F30: =WINEP_Inputs!CW25 -> £ per pe | G30: =WINEP_Inputs!CX25 -> 1e-06 | I30: =WINEP_Inputs!CR25 -> 106 | J30: =WINEP_Inputs!CS25 -> 267950 | K30: =WINEP_Inputs!CT25 -> 267950 | L30: =WINEP_Inputs!CU25 -> 1 | M30: =WINEP_Inputs!CV25 -> WWN | N30: 1
C31: =WINEP_Inputs!A26 -> CLA00536 | D31: =WINEP_Inputs!J26 -> 7UU200486 | E31: =WINEP_Inputs!K26 -> Blea Water - Removal of weir | F31: =WINEP_Inputs!CW26 -> £ | G31: =WINEP_Inputs!CX26 -> 1e-06 | I31: =WINEP_Inputs!CR26 -> 600000 | J31: =WINEP_Inputs!CS26 -> 1 | K31: =WINEP_Inputs!CT26 -> 1 | L31: =WINEP_Inputs!CU26 -> 1 | M31: =WINEP_Inputs!CV26 -> WR | N31: 1
C32: =WINEP_Inputs!A27 -> GMC00296 | D32: =WINEP_Inputs!J27 -> 7UU200719 | E32: =WINEP_Inputs!K27 -> Bowdon WwTW | F32: =WINEP_Inputs!CW27 -> £ per pe | G32: =WINEP_Inputs!CX27 -> 1e-06 | I32: =WINEP_Inputs!CR27 -> 420 | J32: =WINEP_Inputs!CS27 -> 7542 | K32: =WINEP_Inputs!CT27 -> 7542 | L32: =WINEP_Inputs!CU27 -> 1 | M32: =WINEP_Inputs!CV27 -> WWN | N32: 1
C33: =WINEP_Inputs!A28 -> GMC00328 | D33: =WINEP_Inputs!J28 -> 7UU200751 | E33: =WINEP_Inputs!K28 -> Bunbury WwTW | F33: =WINEP_Inputs!CW28 -> £ per pe | G33: =WINEP_Inputs!CX28 -> 1e-06 | I33: =WINEP_Inputs!CR28 -> 4155 | J33: =WINEP_Inputs!CS28 -> 1462 | K33: =WINEP_Inputs!CT28 -> 1462 | L33: =WINEP_Inputs!CU28 -> 1 | M33: =WINEP_Inputs!CV28 -> WWN | N33: 1
C34: =WINEP_Inputs!A29 -> CLA00474 | D34: =WINEP_Inputs!J29 -> 7UU200458 | E34: =WINEP_Inputs!K29 -> BUR0026 | F34: =WINEP_Inputs!CW29 -> £ per m3 | G34: =WINEP_Inputs!CX29 -> 1e-06 | I34: =WINEP_Inputs!CR29 -> 946 | J34: =WINEP_Inputs!CS29 -> 5500 | K34: =WINEP_Inputs!CT29 -> 5500 | L34: =WINEP_Inputs!CU29 -> 1 | M34: =WINEP_Inputs!CV29 -> WWN | N34: 1
C35: =WINEP_Inputs!A30 -> CLA00475 | D35: =WINEP_Inputs!J30 -> 7UU200459 | E35: =WINEP_Inputs!K30 -> BUR0036 | F35: =WINEP_Inputs!CW30 -> £ per m3 | G35: =WINEP_Inputs!CX30 -> 1e-06 | I35: =WINEP_Inputs!CR30 -> 1840 | J35: =WINEP_Inputs!CS30 -> 1500 | K35: =WINEP_Inputs!CT30 -> 1500 | L35: =WINEP_Inputs!CU30 -> 1 | M35: =WINEP_Inputs!CV30 -> WWN | N35: 1
C36: =WINEP_Inputs!A31 -> CLA00480 | D36: =WINEP_Inputs!J31 -> 7UU200464 | E36: =WINEP_Inputs!K31 -> Burnley WwTW | F36: =WINEP_Inputs!CW31 -> £ per pe | G36: =WINEP_Inputs!CX31 -> 1e-06 | I36: =WINEP_Inputs!CR31 -> 106 | J36: =WINEP_Inputs!CS31 -> 131744 | K36: =WINEP_Inputs!CT31 -> 131744 | L36: =WINEP_Inputs!CU31 -> 1 | M36: =WINEP_Inputs!CV31 -> WWN | N36: 1
C37: =WINEP_Inputs!A32 -> CLA00481 | D37: =WINEP_Inputs!J32 -> 7UU200465 | E37: =WINEP_Inputs!K32 -> Burnley WwTW Storm Tanks | F37: =WINEP_Inputs!CW32 -> £ per m3 | G37: =WINEP_Inputs!CX32 -> 1e-06 | I37: =WINEP_Inputs!CR32 -> 946 | J37: =WINEP_Inputs!CS32 -> 25000 | K37: =WINEP_Inputs!CT32 -> 25000 | L37: =WINEP_Inputs!CU32 -> 1 | M37: =WINEP_Inputs!CV32 -> WWN | N37: 1
C38: =WINEP_Inputs!A33 -> CLA00564 | D38: =WINEP_Inputs!J33 -> 7UU300107 | E38: =WINEP_Inputs!K33 -> Burscough STW Wetland Solution | F38: =WINEP_Inputs!CW33 -> £ per pe | G38: =WINEP_Inputs!CX33 -> 1e-06 | I38: =WINEP_Inputs!CR33 -> 420 | J38: =WINEP_Inputs!CS33 -> 3885 | K38: =WINEP_Inputs!CT33 -> 3885 | L38: =WINEP_Inputs!CU33 -> 1 | M38: =WINEP_Inputs!CV33 -> WWN | N38: 1
C39: =WINEP_Inputs!A34 -> GMC00408 | D39: =WINEP_Inputs!J34 -> 7UU200831 | E39: =WINEP_Inputs!K34 -> Castleton WwTW | F39: =WINEP_Inputs!CW34 -> 0 | G39: =WINEP_Inputs!CX34 -> 0 | I39: =WINEP_Inputs!CR34 -> 0 | J39: =WINEP_Inputs!CS34 -> 0 | K39: =WINEP_Inputs!CT34 -> 0 | L39: =WINEP_Inputs!CU34 -> 0 | M39: =WINEP_Inputs!CV34 -> 0 | N39: 0
C40: =WINEP_Inputs!A35 -> GMC00409 | D40: =WINEP_Inputs!J35 -> 7UU200832 | E40: =WINEP_Inputs!K35 -> Castleton WwTW | F40: =WINEP_Inputs!CW35 -> 0 | G40: =WINEP_Inputs!CX35 -> 0 | I40: =WINEP_Inputs!CR35 -> 0 | J40: =WINEP_Inputs!CS35 -> 0 | K40: =WINEP_Inputs!CT35 -> 0 | L40: =WINEP_Inputs!CU35 -> 0 | M40: =WINEP_Inputs!CV35 -> 0 | N40: 0
C41: =WINEP_Inputs!A36 -> GMC00344 | D41: =WINEP_Inputs!J36 -> 7UU200767 | E41: =WINEP_Inputs!K36 -> Castleton WwTW | F41: =WINEP_Inputs!CW36 -> £ per pe | G41: =WINEP_Inputs!CX36 -> 1e-06 | I41: =WINEP_Inputs!CR36 -> 798 | J41: =WINEP_Inputs!CS36 -> 5646 | K41: =WINEP_Inputs!CT36 -> 5646 | L41: =WINEP_Inputs!CU36 -> 1 | M41: =WINEP_Inputs!CV36 -> WWN | N41: 1
C42: =WINEP_Inputs!A37 -> GMC00412 | D42: =WINEP_Inputs!J37 -> 7UU200835 | E42: =WINEP_Inputs!K37 -> Castleton WwTW Storm Tanks | F42: =WINEP_Inputs!CW37 -> £ per m3 | G42: =WINEP_Inputs!CX37 -> 1e-06 | I42: =WINEP_Inputs!CR37 -> 946 | J42: =WINEP_Inputs!CS37 -> 5250 | K42: =WINEP_Inputs!CT37 -> 5250 | L42: =WINEP_Inputs!CU37 -> 1 | M42: =WINEP_Inputs!CV37 -> WWN | N42: 1
C43: =WINEP_Inputs!A38 -> GMC00335 | D43: =WINEP_Inputs!J38 -> 7UU200758 | E43: =WINEP_Inputs!K38 -> Chapel-en-le-Frith WwTW | F43: =WINEP_Inputs!CW38 -> £ per pe | G43: =WINEP_Inputs!CX38 -> 1e-06 | I43: =WINEP_Inputs!CR38 -> 798 | J43: =WINEP_Inputs!CS38 -> 7287 | K43: =WINEP_Inputs!CT38 -> 7287 | L43: =WINEP_Inputs!CU38 -> 1 | M43: =WINEP_Inputs!CV38 -> WWN | N43: 1
C44: =WINEP_Inputs!A39 -> CLA00487 | D44: =WINEP_Inputs!J39 -> 7UU200471 | E44: =WINEP_Inputs!K39 -> Chorley WwTW | F44: =WINEP_Inputs!CW39 -> £ per pe | G44: =WINEP_Inputs!CX39 -> 1e-06 | I44: =WINEP_Inputs!CR39 -> 106 | J44: =WINEP_Inputs!CS39 -> 62080 | K44: =WINEP_Inputs!CT39 -> 62080 | L44: =WINEP_Inputs!CU39 -> 1 | M44: =WINEP_Inputs!CV39 -> WWN | N44: 1
C45: =WINEP_Inputs!A40 -> GMC00315 | D45: =WINEP_Inputs!J40 -> 7UU200738 | E45: =WINEP_Inputs!K40 -> Congleton WwTW | F45: =WINEP_Inputs!CW40 -> £ per pe | G45: =WINEP_Inputs!CX40 -> 1e-06 | I45: =WINEP_Inputs!CR40 -> 106 | J45: =WINEP_Inputs!CS40 -> 37106 | K45: =WINEP_Inputs!CT40 -> 37106 | L45: =WINEP_Inputs!CU40 -> 1 | M45: =WINEP_Inputs!CV40 -> WWN | N45: 1
C46: =WINEP_Inputs!A41 -> GMC00329 | D46: =WINEP_Inputs!J41 -> 7UU200752 | E46: =WINEP_Inputs!K41 -> Duddon WwTW | F46: =WINEP_Inputs!CW41 -> £ per pe | G46: =WINEP_Inputs!CX41 -> 1e-06 | I46: =WINEP_Inputs!CR41 -> 4155 | J46: =WINEP_Inputs!CS41 -> 357 | K46: =WINEP_Inputs!CT41 -> 357 | L46: =WINEP_Inputs!CU41 -> 1 | M46: =WINEP_Inputs!CV41 -> WWN | N46: 1
C47: =WINEP_Inputs!A42 -> GMC00375 | D47: =WINEP_Inputs!J42 -> 7UU200798 | E47: =WINEP_Inputs!K42 -> Duncar Bridge CSO BOL0176 | F47: =WINEP_Inputs!CW42 -> £ per m3 | G47: =WINEP_Inputs!CX42 -> 1e-06 | I47: =WINEP_Inputs!CR42 -> 5768 | J47: =WINEP_Inputs!CS42 -> 400 | K47: =WINEP_Inputs!CT42 -> 400 | L47: =WINEP_Inputs!CU42 -> 1 | M47: =WINEP_Inputs!CV42 -> WWN | N47: 1
C48: =WINEP_Inputs!A43 -> GMC00070 | D48: =WINEP_Inputs!J43 -> 7UU200519 | E48: =WINEP_Inputs!K43 -> Failsworth WwTW | F48: =WINEP_Inputs!CW43 -> £ per pe | G48: =WINEP_Inputs!CX43 -> 1e-06 | I48: =WINEP_Inputs!CR43 -> 156 | J48: =WINEP_Inputs!CS43 -> 21412 | K48: =WINEP_Inputs!CT43 -> 0 | L48: =WINEP_Inputs!CU43 -> 1 | M48: =WINEP_Inputs!CV43 -> WWN | N48: 0
C49: =WINEP_Inputs!A44 -> GMC00029 | D49: =WINEP_Inputs!J44 -> 7UU100082 | E49: =WINEP_Inputs!K44 -> Fernilee Reservoir: Continuation and final implementation of adaptive management improvements at Fernilee identified in AMP6, options appraisal | F49: =WINEP_Inputs!CW44 -> £ | G49: =WINEP_Inputs!CX44 -> 1e-06 | I49: =WINEP_Inputs!CR44 -> 93000 | J49: =WINEP_Inputs!CS44 -> 1 | K49: =WINEP_Inputs!CT44 -> 0 | L49: =WINEP_Inputs!CU44 -> 1 | M49: =WINEP_Inputs!CV44 -> WR | N49: 0
C50: =WINEP_Inputs!A45 -> GMC00510 | D50: =WINEP_Inputs!J45 -> 7UU300120 | E50: =WINEP_Inputs!K45 -> Ginger Fold CSO BOL0144 | F50: =WINEP_Inputs!CW45 -> £ per m3 | G50: =WINEP_Inputs!CX45 -> 1e-06 | I50: =WINEP_Inputs!CR45 -> 5768 | J50: =WINEP_Inputs!CS45 -> 400 | K50: =WINEP_Inputs!CT45 -> 400 | L50: =WINEP_Inputs!CU45 -> 1 | M50: =WINEP_Inputs!CV45 -> WWN | N50: 1
C51: =WINEP_Inputs!A46 -> GMC00323 | D51: =WINEP_Inputs!J46 -> 7UU200746 | E51: =WINEP_Inputs!K46 -> Glazebury WwTW | F51: =WINEP_Inputs!CW46 -> £ per pe | G51: =WINEP_Inputs!CX46 -> 1e-06 | I51: =WINEP_Inputs!CR46 -> 106 | J51: =WINEP_Inputs!CS46 -> 29977 | K51: =WINEP_Inputs!CT46 -> 29977 | L51: =WINEP_Inputs!CU46 -> 1 | M51: =WINEP_Inputs!CV46 -> WWN | N51: 1
C52: =WINEP_Inputs!A47 -> GMC00068 | D52: =WINEP_Inputs!J47 -> 7UU200517 | E52: =WINEP_Inputs!K47 -> Glossop WwTW | F52: =WINEP_Inputs!CW47 -> £ per pe | G52: =WINEP_Inputs!CX47 -> 1e-06 | I52: =WINEP_Inputs!CR47 -> 36 | J52: =WINEP_Inputs!CS47 -> 35994 | K52: =WINEP_Inputs!CT47 -> 0 | L52: =WINEP_Inputs!CU47 -> 1 | M52: =WINEP_Inputs!CV47 -> WWN | N52: 0
C53: =WINEP_Inputs!A48 -> GMC00337 | D53: =WINEP_Inputs!J48 -> 7UU200760 | E53: =WINEP_Inputs!K48 -> Glossop WwTW | F53: =WINEP_Inputs!CW48 -> £ per pe | G53: =WINEP_Inputs!CX48 -> 1e-06 | I53: =WINEP_Inputs!CR48 -> 106 | J53: =WINEP_Inputs!CS48 -> 35994 | K53: =WINEP_Inputs!CT48 -> 35994 | L53: =WINEP_Inputs!CU48 -> 1 | M53: =WINEP_Inputs!CV48 -> WWN | N53: 1
C54: =WINEP_Inputs!A49 -> GMC00395 | D54: =WINEP_Inputs!J49 -> 7UU200818 | E54: =WINEP_Inputs!K49 -> Glossop WwTW | F54: =WINEP_Inputs!CW49 -> £ | G54: =WINEP_Inputs!CX49 -> 1e-06 | I54: =WINEP_Inputs!CR49 -> 1584793 | J54: =WINEP_Inputs!CS49 -> 1 | K54: =WINEP_Inputs!CT49 -> 1 | L54: =WINEP_Inputs!CU49 -> 1 | M54: =WINEP_Inputs!CV49 -> WWN | N54: 1
C55: =WINEP_Inputs!A50 -> GMC00389 | D55: =WINEP_Inputs!J50 -> 7UU200812 | E55: =WINEP_Inputs!K50 -> Gloucester Street/Wigan Road CSO WIG0207 | F55: =WINEP_Inputs!CW50 -> £ per m3 | G55: =WINEP_Inputs!CX50 -> 1e-06 | I55: =WINEP_Inputs!CR50 -> 5768 | J55: =WINEP_Inputs!CS50 -> 400 | K55: =WINEP_Inputs!CT50 -> 400 | L55: =WINEP_Inputs!CU50 -> 1 | M55: =WINEP_Inputs!CV50 -> WWN | N55: 1
C56: =WINEP_Inputs!A51 -> GMC00297 | D56: =WINEP_Inputs!J51 -> 7UU200720 | E56: =WINEP_Inputs!K51 -> Great Warford WwTW | F56: =WINEP_Inputs!CW51 -> £ per pe | G56: =WINEP_Inputs!CX51 -> 1e-06 | I56: =WINEP_Inputs!CR51 -> 420 | J56: =WINEP_Inputs!CS51 -> 2866 | K56: =WINEP_Inputs!CT51 -> 2866 | L56: =WINEP_Inputs!CU51 -> 1 | M56: =WINEP_Inputs!CV51 -> WWN | N56: 1
C57: =WINEP_Inputs!A52 -> GMC00067 | D57: =WINEP_Inputs!J52 -> 7UU200516 | E57: =WINEP_Inputs!K52 -> Hazel Grove WwTW | F57: =WINEP_Inputs!CW52 -> £ per pe | G57: =WINEP_Inputs!CX52 -> 1e-06 | I57: =WINEP_Inputs!CR52 -> 36 | J57: =WINEP_Inputs!CS52 -> 46662 | K57: =WINEP_Inputs!CT52 -> 0 | L57: =WINEP_Inputs!CU52 -> 1 | M57: =WINEP_Inputs!CV52 -> WWN | N57: 0
C58: =WINEP_Inputs!A53 -> GMC00330 | D58: =WINEP_Inputs!J53 -> 7UU200753 | E58: =WINEP_Inputs!K53 -> Helsby WwTW | F58: =WINEP_Inputs!CW53 -> £ per pe | G58: =WINEP_Inputs!CX53 -> 1e-06 | I58: =WINEP_Inputs!CR53 -> 342 | J58: =WINEP_Inputs!CS53 -> 19789 | K58: =WINEP_Inputs!CT53 -> 19789 | L58: =WINEP_Inputs!CU53 -> 1 | M58: =WINEP_Inputs!CV53 -> WWN | N58: 1
C59: =WINEP_Inputs!A54 -> GMC00393 | D59: =WINEP_Inputs!J54 -> 7UU200816 | E59: =WINEP_Inputs!K54 -> Helsby WwTW | F59: =WINEP_Inputs!CW54 -> £ | G59: =WINEP_Inputs!CX54 -> 1e-06 | I59: =WINEP_Inputs!CR54 -> 4194 | J59: =WINEP_Inputs!CS54 -> 1 | K59: =WINEP_Inputs!CT54 -> 1 | L59: =WINEP_Inputs!CU54 -> 1 | M59: =WINEP_Inputs!CV54 -> WWN | N59: 1
C60: =WINEP_Inputs!A55 -> GMC00394 | D60: =WINEP_Inputs!J55 -> 7UU200817 | E60: =WINEP_Inputs!K55 -> Helsby WwTW | F60: =WINEP_Inputs!CW55 -> £ | G60: =WINEP_Inputs!CX55 -> 1e-06 | I60: =WINEP_Inputs!CR55 -> 4194 | J60: =WINEP_Inputs!CS55 -> 1 | K60: =WINEP_Inputs!CT55 -> 1 | L60: =WINEP_Inputs!CU55 -> 1 | M60: =WINEP_Inputs!CV55 -> WWN | N60: 1
C61: =WINEP_Inputs!A56 -> GMC00298 | D61: =WINEP_Inputs!J56 -> 7UU200721 | E61: =WINEP_Inputs!K56 -> High Legh WwTW | F61: =WINEP_Inputs!CW56 -> £ per pe | G61: =WINEP_Inputs!CX56 -> 1e-06 | I61: =WINEP_Inputs!CR56 -> 4155 | J61: =WINEP_Inputs!CS56 -> 850 | K61: =WINEP_Inputs!CT56 -> 850 | L61: =WINEP_Inputs!CU56 -> 1 | M61: =WINEP_Inputs!CV56 -> WWN | N61: 1
C62: =WINEP_Inputs!A57 -> GMC00316 | D62: =WINEP_Inputs!J57 -> 7UU200739 | E62: =WINEP_Inputs!K57 -> Holmes Chapel WwTW | F62: =WINEP_Inputs!CW57 -> £ per pe | G62: =WINEP_Inputs!CX57 -> 1e-06 | I62: =WINEP_Inputs!CR57 -> 342 | J62: =WINEP_Inputs!CS57 -> 11090 | K62: =WINEP_Inputs!CT57 -> 11090 | L62: =WINEP_Inputs!CU57 -> 1 | M62: =WINEP_Inputs!CV57 -> WWN | N62: 1
C63: =WINEP_Inputs!A58 -> CLA00488 | D63: =WINEP_Inputs!J58 -> 7UU200472 | E63: =WINEP_Inputs!K58 -> Horwich WwTW | F63: =WINEP_Inputs!CW58 -> £ per pe | G63: =WINEP_Inputs!CX58 -> 1e-06 | I63: =WINEP_Inputs!CR58 -> 106 | J63: =WINEP_Inputs!CS58 -> 26987 | K63: =WINEP_Inputs!CT58 -> 26987 | L63: =WINEP_Inputs!CU58 -> 1 | M63: =WINEP_Inputs!CV58 -> WWN | N63: 1
C64: =WINEP_Inputs!A59 -> CLA00483 | D64: =WINEP_Inputs!J59 -> 7UU200467 | E64: =WINEP_Inputs!K59 -> Hyndburn WwTW | F64: =WINEP_Inputs!CW59 -> 0 | G64: =WINEP_Inputs!CX59 -> 0 | I64: =WINEP_Inputs!CR59 -> 0 | J64: =WINEP_Inputs!CS59 -> 0 | K64: =WINEP_Inputs!CT59 -> 0 | L64: =WINEP_Inputs!CU59 -> 0 | M64: =WINEP_Inputs!CV59 -> 0 | N64: 0
C65: =WINEP_Inputs!A60 -> CLA00484 | D65: =WINEP_Inputs!J60 -> 7UU200468 | E65: =WINEP_Inputs!K60 -> Hyndburn WwTW | F65: =WINEP_Inputs!CW60 -> 0 | G65: =WINEP_Inputs!CX60 -> 0 | I65: =WINEP_Inputs!CR60 -> 0 | J65: =WINEP_Inputs!CS60 -> 0 | K65: =WINEP_Inputs!CT60 -> 0 | L65: =WINEP_Inputs!CU60 -> 0 | M65: =WINEP_Inputs!CV60 -> 0 | N65: 0
C66: =WINEP_Inputs!A61 -> GMC00020 | D66: =WINEP_Inputs!J61 -> 7UU100072 | E66: =WINEP_Inputs!K61 -> Implementation of flow changes at Clowbridge Reservoir as agreed in the final stage 3 investigation in AMP6. | F66: =WINEP_Inputs!CW61 -> £ | G66: =WINEP_Inputs!CX61 -> 1e-06 | I66: =WINEP_Inputs!CR61 -> 76000 | J66: =WINEP_Inputs!CS61 -> 1 | K66: =WINEP_Inputs!CT61 -> 1 | L66: =WINEP_Inputs!CU61 -> 1 | M66: =WINEP_Inputs!CV61 -> WR | N66: 1
C67: =WINEP_Inputs!A62 -> GMC00317 | D67: =WINEP_Inputs!J62 -> 7UU200740 | E67: =WINEP_Inputs!K62 -> Kidsgrove WwTW | F67: =WINEP_Inputs!CW62 -> £ per pe | G67: =WINEP_Inputs!CX62 -> 1e-06 | I67: =WINEP_Inputs!CR62 -> 106 | J67: =WINEP_Inputs!CS62 -> 25470 | K67: =WINEP_Inputs!CT62 -> 25470 | L67: =WINEP_Inputs!CU62 -> 1 | M67: =WINEP_Inputs!CV62 -> WWN | N67: 1
C68: =WINEP_Inputs!A63 -> GMC00064 | D68: =WINEP_Inputs!J63 -> 7UU200513 | E68: =WINEP_Inputs!K63 -> Knutsford WwTW | F68: =WINEP_Inputs!CW63 -> £ per pe | G68: =WINEP_Inputs!CX63 -> 1e-06 | I68: =WINEP_Inputs!CR63 -> 156 | J68: =WINEP_Inputs!CS63 -> 14178 | K68: =WINEP_Inputs!CT63 -> 0 | L68: =WINEP_Inputs!CU63 -> 1 | M68: =WINEP_Inputs!CV63 -> WWN | N68: 0
C69: =WINEP_Inputs!A64 -> GMC00299 | D69: =WINEP_Inputs!J64 -> 7UU200722 | E69: =WINEP_Inputs!K64 -> Knutsford WwTW | F69: =WINEP_Inputs!CW64 -> £ per pe | G69: =WINEP_Inputs!CX64 -> 1e-06 | I69: =WINEP_Inputs!CR64 -> 342 | J69: =WINEP_Inputs!CS64 -> 14178 | K69: =WINEP_Inputs!CT64 -> 14178 | L69: =WINEP_Inputs!CU64 -> 1 | M69: =WINEP_Inputs!CV64 -> WWN | N69: 1
C70: =WINEP_Inputs!A65 -> GMC00318 | D70: =WINEP_Inputs!J65 -> 7UU200741 | E70: =WINEP_Inputs!K65 -> Lawton Gate WwTW | F70: =WINEP_Inputs!CW65 -> £ per pe | G70: =WINEP_Inputs!CX65 -> 1e-06 | I70: =WINEP_Inputs!CR65 -> 798 | J70: =WINEP_Inputs!CS65 -> 6811 | K70: =WINEP_Inputs!CT65 -> 6811 | L70: =WINEP_Inputs!CU65 -> 1 | M70: =WINEP_Inputs!CV65 -> WWN | N70: 1
C71: =WINEP_Inputs!A66 -> GMC00324 | D71: =WINEP_Inputs!J66 -> 7UU200747 | E71: =WINEP_Inputs!K66 -> Leigh WwTW | F71: =WINEP_Inputs!CW66 -> £ per pe | G71: =WINEP_Inputs!CX66 -> 1e-06 | I71: =WINEP_Inputs!CR66 -> 106 | J71: =WINEP_Inputs!CS66 -> 80282 | K71: =WINEP_Inputs!CT66 -> 80282 | L71: =WINEP_Inputs!CU66 -> 1 | M71: =WINEP_Inputs!CV66 -> WWN | N71: 1
C72: =WINEP_Inputs!A67 -> CLA00489 | D72: =WINEP_Inputs!J67 -> 7UU200473 | E72: =WINEP_Inputs!K67 -> Leyland WwTW | F72: =WINEP_Inputs!CW67 -> £ per pe | G72: =WINEP_Inputs!CX67 -> 1e-06 | I72: =WINEP_Inputs!CR67 -> 106 | J72: =WINEP_Inputs!CS67 -> 47699 | K72: =WINEP_Inputs!CT67 -> 47699 | L72: =WINEP_Inputs!CU67 -> 1 | M72: =WINEP_Inputs!CV67 -> WWN | N72: 1
C73: =WINEP_Inputs!A68 -> GMC00015 | D73: =WINEP_Inputs!J68 -> 7UU200502 | E73: =WINEP_Inputs!K68 -> Little Budworth North WwTW | F73: =WINEP_Inputs!CW68 -> £ per pe | G73: =WINEP_Inputs!CX68 -> 1e-06 | I73: =WINEP_Inputs!CR68 -> 4155 | J73: =WINEP_Inputs!CS68 -> 98 | K73: =WINEP_Inputs!CT68 -> 98 | L73: =WINEP_Inputs!CU68 -> 1 | M73: =WINEP_Inputs!CV68 -> WWN | N73: 1
C74: =WINEP_Inputs!A69 -> GMC00063 | D74: =WINEP_Inputs!J69 -> 7UU200512 | E74: =WINEP_Inputs!K69 -> Macclesfield WwTW | F74: =WINEP_Inputs!CW69 -> £ per pe | G74: =WINEP_Inputs!CX69 -> 1e-06 | I74: =WINEP_Inputs!CR69 -> 36 | J74: =WINEP_Inputs!CS69 -> 74029 | K74: =WINEP_Inputs!CT69 -> 0 | L74: =WINEP_Inputs!CU69 -> 1 | M74: =WINEP_Inputs!CV69 -> WWN | N74: 0
C75: =WINEP_Inputs!A70 -> GMC00300 | D75: =WINEP_Inputs!J70 -> 7UU200723 | E75: =WINEP_Inputs!K70 -> Macclesfield WwTW | F75: =WINEP_Inputs!CW70 -> £ per pe | G75: =WINEP_Inputs!CX70 -> 1e-06 | I75: =WINEP_Inputs!CR70 -> 106 | J75: =WINEP_Inputs!CS70 -> 74029 | K75: =WINEP_Inputs!CT70 -> 74029 | L75: =WINEP_Inputs!CU70 -> 1 | M75: =WINEP_Inputs!CV70 -> WWN | N75: 1
C76: =WINEP_Inputs!A71 -> GMC00352 | D76: =WINEP_Inputs!J71 -> 7UU200775 | E76: =WINEP_Inputs!K71 -> Madeley WwTW | F76: =WINEP_Inputs!CW71 -> £ per pe | G76: =WINEP_Inputs!CX71 -> 1e-06 | I76: =WINEP_Inputs!CR71 -> 798 | J76: =WINEP_Inputs!CS71 -> 5203 | K76: =WINEP_Inputs!CT71 -> 5203 | L76: =WINEP_Inputs!CU71 -> 1 | M76: =WINEP_Inputs!CV71 -> WWN | N76: 1
C77: =WINEP_Inputs!A72 -> GMC00494 | D77: =WINEP_Inputs!J72 -> 7UU200911 | E77: =WINEP_Inputs!K72 -> Marton North WwTW | F77: =WINEP_Inputs!CW72 -> £ per pe | G77: =WINEP_Inputs!CX72 -> 1e-06 | I77: =WINEP_Inputs!CR72 -> 4155 | J77: =WINEP_Inputs!CS72 -> 321 | K77: =WINEP_Inputs!CT72 -> 321 | L77: =WINEP_Inputs!CU72 -> 1 | M77: =WINEP_Inputs!CV72 -> WWN | N77: 1
C78: =WINEP_Inputs!A73 -> CLA00485 | D78: =WINEP_Inputs!J73 -> 7UU200469 | E78: =WINEP_Inputs!K73 -> Mere Brow WwTW | F78: =WINEP_Inputs!CW73 -> £ per pe | G78: =WINEP_Inputs!CX73 -> 1e-06 | I78: =WINEP_Inputs!CR73 -> 798 | J78: =WINEP_Inputs!CS73 -> 4191 | K78: =WINEP_Inputs!CT73 -> 4191 | L78: =WINEP_Inputs!CU73 -> 1 | M78: =WINEP_Inputs!CV73 -> WWN | N78: 1
C79: =WINEP_Inputs!A74 -> GMC00319 | D79: =WINEP_Inputs!J74 -> 7UU200742 | E79: =WINEP_Inputs!K74 -> Middlewich WwTW | F79: =WINEP_Inputs!CW74 -> £ per pe | G79: =WINEP_Inputs!CX74 -> 1e-06 | I79: =WINEP_Inputs!CR74 -> 342 | J79: =WINEP_Inputs!CS74 -> 16217 | K79: =WINEP_Inputs!CT74 -> 16217 | L79: =WINEP_Inputs!CU74 -> 1 | M79: =WINEP_Inputs!CV74 -> WWN | N79: =IF(K79 = 0, 0, K79 / J79) -> 1
C80: =WINEP_Inputs!A75 -> GMC00301 | D80: =WINEP_Inputs!J75 -> 7UU200724 | E80: =WINEP_Inputs!K75 -> Mobberley WwTW | F80: =WINEP_Inputs!CW75 -> £ per pe | G80: =WINEP_Inputs!CX75 -> 1e-06 | I80: =WINEP_Inputs!CR75 -> 420 | J80: =WINEP_Inputs!CS75 -> 2830 | K80: =WINEP_Inputs!CT75 -> 2830 | L80: =WINEP_Inputs!CU75 -> 1 | M80: =WINEP_Inputs!CV75 -> WWN | N80: 1
C81: =WINEP_Inputs!A76 -> GMC00341 | D81: =WINEP_Inputs!J76 -> 7UU200764 | E81: =WINEP_Inputs!K76 -> Mossley WwTW | F81: =WINEP_Inputs!CW76 -> £ per pe | G81: =WINEP_Inputs!CX76 -> 1e-06 | I81: =WINEP_Inputs!CR76 -> 342 | J81: =WINEP_Inputs!CS76 -> 12784 | K81: =WINEP_Inputs!CT76 -> 12784 | L81: =WINEP_Inputs!CU76 -> 1 | M81: =WINEP_Inputs!CV76 -> WWN | N81: 1
C82: =WINEP_Inputs!A77 -> GMC00515 | D82: =WINEP_Inputs!J77 -> 7UU300125 | E82: =WINEP_Inputs!K77 -> Mossley WwTW Inlet CSO | F82: =WINEP_Inputs!CW77 -> £ per m3 | G82: =WINEP_Inputs!CX77 -> 1e-06 | I82: =WINEP_Inputs!CR77 -> 5768 | J82: =WINEP_Inputs!CS77 -> 500 | K82: =WINEP_Inputs!CT77 -> 500 | L82: =WINEP_Inputs!CU77 -> 1 | M82: =WINEP_Inputs!CV77 -> WWN | N82: 1
C83: =WINEP_Inputs!A78 -> GMC00403 | D83: =WINEP_Inputs!J78 -> 7UU200826 | E83: =WINEP_Inputs!K78 -> Mossley WwTW Storm Tanks | F83: =WINEP_Inputs!CW78 -> £ per m3 | G83: =WINEP_Inputs!CX78 -> 1e-06 | I83: =WINEP_Inputs!CR78 -> 1840 | J83: =WINEP_Inputs!CS78 -> 1250 | K83: =WINEP_Inputs!CT78 -> 1250 | L83: =WINEP_Inputs!CU78 -> 1 | M83: =WINEP_Inputs!CV78 -> WWN | N83: 1
C84: =WINEP_Inputs!A79 -> GMC00372 | D84: =WINEP_Inputs!J79 -> 7UU200795 | E84: =WINEP_Inputs!K79 -> Old Eagley CSO BOL0073 | F84: =WINEP_Inputs!CW79 -> £ per m3 | G84: =WINEP_Inputs!CX79 -> 1e-06 | I84: =WINEP_Inputs!CR79 -> 3269 | J84: =WINEP_Inputs!CS79 -> 570 | K84: =WINEP_Inputs!CT79 -> 570 | L84: =WINEP_Inputs!CU79 -> 1 | M84: =WINEP_Inputs!CV79 -> WWN | N84: 1
C85: =WINEP_Inputs!A80 -> GMC00071 | D85: =WINEP_Inputs!J80 -> 7UU200520 | E85: =WINEP_Inputs!K80 -> Oldham WwTW | F85: =WINEP_Inputs!CW80 -> £ per pe | G85: =WINEP_Inputs!CX80 -> 1e-06 | I85: =WINEP_Inputs!CR80 -> 36 | J85: =WINEP_Inputs!CS80 -> 161356 | K85: =WINEP_Inputs!CT80 -> 0 | L85: =WINEP_Inputs!CU80 -> 1 | M85: =WINEP_Inputs!CV80 -> WWN | N85: 0
C86: =WINEP_Inputs!A81 -> CLA00476 | D86: =WINEP_Inputs!J81 -> 7UU200460 | E86: =WINEP_Inputs!K81 -> PEN0056 | F86: =WINEP_Inputs!CW81 -> £ per m3 | G86: =WINEP_Inputs!CX81 -> 1e-06 | I86: =WINEP_Inputs!CR81 -> 1840 | J86: =WINEP_Inputs!CS81 -> 1500 | K86: =WINEP_Inputs!CT81 -> 1500 | L86: =WINEP_Inputs!CU81 -> 1 | M86: =WINEP_Inputs!CV81 -> WWN | N86: 1
C87: =WINEP_Inputs!A82 -> CLA00477 | D87: =WINEP_Inputs!J82 -> 7UU200461 | E87: =WINEP_Inputs!K82 -> PEN0058 | F87: =WINEP_Inputs!CW82 -> £ per m3 | G87: =WINEP_Inputs!CX82 -> 1e-06 | I87: =WINEP_Inputs!CR82 -> 5768 | J87: =WINEP_Inputs!CS82 -> 350 | K87: =WINEP_Inputs!CT82 -> 350 | L87: =WINEP_Inputs!CU82 -> 1 | M87: =WINEP_Inputs!CV82 -> WWN | N87: 1
C88: =WINEP_Inputs!A83 -> GMC00027 | D88: =WINEP_Inputs!J83 -> 7UU100079 | E88: =WINEP_Inputs!K83 -> Readycon Dean Reservoir: Continuation and final Implementation of AMP6 flow changes | F88: =WINEP_Inputs!CW83 -> £ | G88: =WINEP_Inputs!CX83 -> 1e-06 | I88: =WINEP_Inputs!CR83 -> 50000 | J88: =WINEP_Inputs!CS83 -> 1 | K88: =WINEP_Inputs!CT83 -> 0 | L88: =WINEP_Inputs!CU83 -> 1 | M88: =WINEP_Inputs!CV83 -> WR | N88: 0
C89: =WINEP_Inputs!A84 -> CLA00531 | D89: =WINEP_Inputs!J84 -> 7UU200485 | E89: =WINEP_Inputs!K84 -> River Hodder - Investigation to identify and develop measures to mitigate the impact of Stock Reservoir on physical habitat. | F89: =WINEP_Inputs!CW84 -> £ | G89: =WINEP_Inputs!CX84 -> 1e-06 | I89: =WINEP_Inputs!CR84 -> 30000 | J89: =WINEP_Inputs!CS84 -> 1 | K89: =WINEP_Inputs!CT84 -> 1 | L89: =WINEP_Inputs!CU84 -> 1 | M89: =WINEP_Inputs!CV84 -> WR | N89: 1
C90: =WINEP_Inputs!A85 -> GMC00380 | D90: =WINEP_Inputs!J85 -> 7UU200803 | E90: =WINEP_Inputs!K85 -> Rossendale WwTW | F90: =WINEP_Inputs!CW85 -> £ | G90: =WINEP_Inputs!CX85 -> 1e-06 | I90: =WINEP_Inputs!CR85 -> 146519 | J90: =WINEP_Inputs!CS85 -> 1 | K90: =WINEP_Inputs!CT85 -> 1 | L90: =WINEP_Inputs!CU85 -> 1 | M90: =WINEP_Inputs!CV85 -> WWN | N90: 1
C91: =WINEP_Inputs!A86 -> GMC00381 | D91: =WINEP_Inputs!J86 -> 7UU200804 | E91: =WINEP_Inputs!K86 -> Rossendale WwTW | F91: =WINEP_Inputs!CW86 -> £ | G91: =WINEP_Inputs!CX86 -> 1e-06 | I91: =WINEP_Inputs!CR86 -> 146519 | J91: =WINEP_Inputs!CS86 -> 1 | K91: =WINEP_Inputs!CT86 -> 1 | L91: =WINEP_Inputs!CU86 -> 1 | M91: =WINEP_Inputs!CV86 -> WWN | N91: 1
C92: =WINEP_Inputs!A87 -> GMC00382 | D92: =WINEP_Inputs!J87 -> 7UU200805 | E92: =WINEP_Inputs!K87 -> Rossendale WwTW Storm Tanks | F92: =WINEP_Inputs!CW87 -> £ per m3 | G92: =WINEP_Inputs!CX87 -> 1e-06 | I92: =WINEP_Inputs!CR87 -> 946 | J92: =WINEP_Inputs!CS87 -> 10500 | K92: =WINEP_Inputs!CT87 -> 10500 | L92: =WINEP_Inputs!CU87 -> 1 | M92: =WINEP_Inputs!CV87 -> WWN | N92: 1
C93: =WINEP_Inputs!A88 -> GMC00373 | D93: =WINEP_Inputs!J88 -> 7UU200796 | E93: =WINEP_Inputs!K88 -> Royal Oak CSO BOL0129 | F93: =WINEP_Inputs!CW88 -> £ per m3 | G93: =WINEP_Inputs!CX88 -> 1e-06 | I93: =WINEP_Inputs!CR88 -> 1840 | J93: =WINEP_Inputs!CS88 -> 2600 | K93: =WINEP_Inputs!CT88 -> 2600 | L93: =WINEP_Inputs!CU88 -> 1 | M93: =WINEP_Inputs!CV88 -> WWN | N93: 1
C94: =WINEP_Inputs!A89 -> GMC00353 | D94: =WINEP_Inputs!J89 -> 7UU200776 | E94: =WINEP_Inputs!K89 -> Rushton WwTW | F94: =WINEP_Inputs!CW89 -> £ per pe | G94: =WINEP_Inputs!CX89 -> 1e-06 | I94: =WINEP_Inputs!CR89 -> 4155 | J94: =WINEP_Inputs!CS89 -> 313 | K94: =WINEP_Inputs!CT89 -> 313 | L94: =WINEP_Inputs!CU89 -> 1 | M94: =WINEP_Inputs!CV89 -> WWN | N94: 1
C95: =WINEP_Inputs!A90 -> GMC00342 | D95: =WINEP_Inputs!J90 -> 7UU200765 | E95: =WINEP_Inputs!K90 -> Saddleworth WwTW | F95: =WINEP_Inputs!CW90 -> £ per pe | G95: =WINEP_Inputs!CX90 -> 1e-06 | I95: =WINEP_Inputs!CR90 -> 342 | J95: =WINEP_Inputs!CS90 -> 17992 | K95: =WINEP_Inputs!CT90 -> 17992 | L95: =WINEP_Inputs!CU90 -> 1 | M95: =WINEP_Inputs!CV90 -> WWN | N95: 1
C96: =WINEP_Inputs!A91 -> GMC00512 | D96: =WINEP_Inputs!J91 -> 7UU300122 | E96: =WINEP_Inputs!K91 -> Saddleworth WwTW | F96: =WINEP_Inputs!CW91 -> £ | G96: =WINEP_Inputs!CX91 -> 1e-06 | I96: =WINEP_Inputs!CR91 -> 1849323 | J96: =WINEP_Inputs!CS91 -> 1 | K96: =WINEP_Inputs!CT91 -> 1 | L96: =WINEP_Inputs!CU91 -> 1 | M96: =WINEP_Inputs!CV91 -> WWN | N96: 1
C97: =WINEP_Inputs!A92 -> GMC00320 | D97: =WINEP_Inputs!J92 -> 7UU200743 | E97: =WINEP_Inputs!K92 -> Sandbach WwTW | F97: =WINEP_Inputs!CW92 -> £ per pe | G97: =WINEP_Inputs!CX92 -> 1e-06 | I97: =WINEP_Inputs!CR92 -> 342 | J97: =WINEP_Inputs!CS92 -> 19439 | K97: =WINEP_Inputs!CT92 -> 19439 | L97: =WINEP_Inputs!CU92 -> 1 | M97: =WINEP_Inputs!CV92 -> WWN | N97: 1
C98: =WINEP_Inputs!A93 -> CLA00465 | D98: =WINEP_Inputs!J93 -> 7UU200449 | E98: =WINEP_Inputs!K93 -> Southwaite WwTW | F98: =WINEP_Inputs!CW93 -> £ per pe | G98: =WINEP_Inputs!CX93 -> 1e-06 | I98: =WINEP_Inputs!CR93 -> 4155 | J98: =WINEP_Inputs!CS93 -> 160 | K98: =WINEP_Inputs!CT93 -> 160 | L98: =WINEP_Inputs!CU93 -> 1 | M98: =WINEP_Inputs!CV93 -> WWN | N98: 1
C99: =WINEP_Inputs!A94 -> GMC00072 | D99: =WINEP_Inputs!J94 -> 7UU200521 | E99: =WINEP_Inputs!K94 -> St Helens WwTW | F99: =WINEP_Inputs!CW94 -> £ per pe | G99: =WINEP_Inputs!CX94 -> 1e-06 | I99: =WINEP_Inputs!CR94 -> 36 | J99: =WINEP_Inputs!CS94 -> 131610 | K99: =WINEP_Inputs!CT94 -> 0 | L99: =WINEP_Inputs!CU94 -> 1 | M99: =WINEP_Inputs!CV94 -> WWN | N99: 0
C100: =WINEP_Inputs!A95 -> GMC00354 | D100: =WINEP_Inputs!J95 -> 7UU200777 | E100: =WINEP_Inputs!K95 -> Tarporley WwTW | F100: =WINEP_Inputs!CW95 -> £ per pe | G100: =WINEP_Inputs!CX95 -> 1e-06 | I100: =WINEP_Inputs!CR95 -> 798 | J100: =WINEP_Inputs!CS95 -> 2749 | K100: =WINEP_Inputs!CT95 -> 2749 | L100: =WINEP_Inputs!CU95 -> 1 | M100: =WINEP_Inputs!CV95 -> WWN | N100: 1
C101: =WINEP_Inputs!A96 -> GMC00331 | D101: =WINEP_Inputs!J96 -> 7UU200754 | E101: =WINEP_Inputs!K96 -> Tarvin WwTW | F101: =WINEP_Inputs!CW96 -> £ per pe | G101: =WINEP_Inputs!CX96 -> 1e-06 | I101: =WINEP_Inputs!CR96 -> 798 | J101: =WINEP_Inputs!CS96 -> 7361 | K101: =WINEP_Inputs!CT96 -> 7361 | L101: =WINEP_Inputs!CU96 -> 1 | M101: =WINEP_Inputs!CV96 -> WWN | N101: 1
C102: =WINEP_Inputs!A97 -> GMC00376 | D102: =WINEP_Inputs!J97 -> 7UU200799 | E102: =WINEP_Inputs!K97 -> Thicketford CSO BOL0229 | F102: =WINEP_Inputs!CW97 -> £ per m3 | G102: =WINEP_Inputs!CX97 -> 1e-06 | I102: =WINEP_Inputs!CR97 -> 5768 | J102: =WINEP_Inputs!CS97 -> 240 | K102: =WINEP_Inputs!CT97 -> 240 | L102: =WINEP_Inputs!CU97 -> 1 | M102: =WINEP_Inputs!CV97 -> WWN | N102: 1
C103: =WINEP_Inputs!A98 -> GMC00374 | D103: =WINEP_Inputs!J98 -> 7UU200797 | E103: =WINEP_Inputs!K98 -> Timberbottom CSO BOL0153 | F103: =WINEP_Inputs!CW98 -> £ per m3 | G103: =WINEP_Inputs!CX98 -> 1e-06 | I103: =WINEP_Inputs!CR98 -> 3269 | J103: =WINEP_Inputs!CS98 -> 750 | K103: =WINEP_Inputs!CT98 -> 750 | L103: =WINEP_Inputs!CU98 -> 1 | M103: =WINEP_Inputs!CV98 -> WWN | N103: 1
C104: =WINEP_Inputs!A99 -> GMC00325 | D104: =WINEP_Inputs!J99 -> 7UU200748 | E104: =WINEP_Inputs!K99 -> Tyldesley WwTW | F104: =WINEP_Inputs!CW99 -> £ per pe | G104: =WINEP_Inputs!CX99 -> 1e-06 | I104: =WINEP_Inputs!CR99 -> 106 | J104: =WINEP_Inputs!CS99 -> 30929 | K104: =WINEP_Inputs!CT99 -> 30929 | L104: =WINEP_Inputs!CU99 -> 1 | M104: =WINEP_Inputs!CV99 -> WWN | N104: 1
C105: =WINEP_Inputs!A100 -> GMC00028 | D105: =WINEP_Inputs!J100 -> 7UU100080 | E105: =WINEP_Inputs!K100 -> Upper and Lower Castleshaw: Continuation and final implementation of adaptive management improvements at Castleshaw identified in AMP6, options appraisal | F105: =WINEP_Inputs!CW100 -> £ | G105: =WINEP_Inputs!CX100 -> 1e-06 | I105: =WINEP_Inputs!CR100 -> 93000 | J105: =WINEP_Inputs!CS100 -> 1 | K105: =WINEP_Inputs!CT100 -> 0 | L105: =WINEP_Inputs!CU100 -> 1 | M105: =WINEP_Inputs!CV100 -> WR | N105: 0
C106: =WINEP_Inputs!A101 -> GMC00332 | D106: =WINEP_Inputs!J101 -> 7UU200755 | E106: =WINEP_Inputs!K101 -> Utkinton WwTW | F106: =WINEP_Inputs!CW101 -> £ per pe | G106: =WINEP_Inputs!CX101 -> 1e-06 | I106: =WINEP_Inputs!CR101 -> 4155 | J106: =WINEP_Inputs!CS101 -> 415 | K106: =WINEP_Inputs!CT101 -> 415 | L106: =WINEP_Inputs!CU101 -> 1 | M106: =WINEP_Inputs!CV101 -> WWN | N106: 1
C107: =WINEP_Inputs!A102 -> GMC00333 | D107: =WINEP_Inputs!J102 -> 7UU200756 | E107: =WINEP_Inputs!K102 -> Waverton WwTW | F107: =WINEP_Inputs!CW102 -> £ per pe | G107: =WINEP_Inputs!CX102 -> 1e-06 | I107: =WINEP_Inputs!CR102 -> 798 | J107: =WINEP_Inputs!CS102 -> 2306 | K107: =WINEP_Inputs!CT102 -> 2306 | L107: =WINEP_Inputs!CU102 -> 1 | M107: =WINEP_Inputs!CV102 -> WWN | N107: 1
C108: =WINEP_Inputs!A103 -> CLA00492 | D108: =WINEP_Inputs!J103 -> 7UU200476 | E108: =WINEP_Inputs!K103 -> Westhead WwTW | F108: =WINEP_Inputs!CW103 -> £ per pe | G108: =WINEP_Inputs!CX103 -> 1e-06 | I108: =WINEP_Inputs!CR103 -> 4155 | J108: =WINEP_Inputs!CS103 -> 1837 | K108: =WINEP_Inputs!CT103 -> 1837 | L108: =WINEP_Inputs!CU103 -> 1 | M108: =WINEP_Inputs!CV103 -> WWN | N108: 1
C109: =WINEP_Inputs!A104 -> GMC00326 | D109: =WINEP_Inputs!J104 -> 7UU200749 | E109: =WINEP_Inputs!K104 -> Westhoughton WwTW | F109: =WINEP_Inputs!CW104 -> £ per pe | G109: =WINEP_Inputs!CX104 -> 1e-06 | I109: =WINEP_Inputs!CR104 -> 106 | J109: =WINEP_Inputs!CS104 -> 29430 | K109: =WINEP_Inputs!CT104 -> 29430 | L109: =WINEP_Inputs!CU104 -> 1 | M109: =WINEP_Inputs!CV104 -> WWN | N109: 1
C110: =WINEP_Inputs!A105 -> GMC00069 | D110: =WINEP_Inputs!J105 -> 7UU200518 | E110: =WINEP_Inputs!K105 -> Whaley Bridge WwTW | F110: =WINEP_Inputs!CW105 -> £ per pe | G110: =WINEP_Inputs!CX105 -> 1e-06 | I110: =WINEP_Inputs!CR105 -> 36 | J110: =WINEP_Inputs!CS105 -> 38483 | K110: =WINEP_Inputs!CT105 -> 0 | L110: =WINEP_Inputs!CU105 -> 1 | M110: =WINEP_Inputs!CV105 -> WWN | N110: 0
C111: =WINEP_Inputs!A106 -> GMC00343 | D111: =WINEP_Inputs!J106 -> 7UU200766 | E111: =WINEP_Inputs!K106 -> Whaley Bridge WwTW | F111: =WINEP_Inputs!CW106 -> £ per pe | G111: =WINEP_Inputs!CX106 -> 1e-06 | I111: =WINEP_Inputs!CR106 -> 106 | J111: =WINEP_Inputs!CS106 -> 38483 | K111: =WINEP_Inputs!CT106 -> 38483 | L111: =WINEP_Inputs!CU106 -> 1 | M111: =WINEP_Inputs!CV106 -> WWN | N111: 1
C112: =WINEP_Inputs!A107 -> GMC00495 | D112: =WINEP_Inputs!J107 -> 7UU200912 | E112: =WINEP_Inputs!K107 -> Whitegate WwTW | F112: =WINEP_Inputs!CW107 -> £ per pe | G112: =WINEP_Inputs!CX107 -> 1e-06 | I112: =WINEP_Inputs!CR107 -> 4155 | J112: =WINEP_Inputs!CS107 -> 188 | K112: =WINEP_Inputs!CT107 -> 188 | L112: =WINEP_Inputs!CU107 -> 1 | M112: =WINEP_Inputs!CV107 -> WWN | N112: 1
C113: =WINEP_Inputs!A108 -> GMC00066 | D113: =WINEP_Inputs!J108 -> 7UU200515 | E113: =WINEP_Inputs!K108 -> Wilmslow WwTW | F113: =WINEP_Inputs!CW108 -> £ per pe | G113: =WINEP_Inputs!CX108 -> 1e-06 | I113: =WINEP_Inputs!CR108 -> 156 | J113: =WINEP_Inputs!CS108 -> 23711 | K113: =WINEP_Inputs!CT108 -> 0 | L113: =WINEP_Inputs!CU108 -> 1 | M113: =WINEP_Inputs!CV108 -> WWN | N113: 0
C114: =WINEP_Inputs!A109 -> GMC00306 | D114: =WINEP_Inputs!J109 -> 7UU200729 | E114: =WINEP_Inputs!K109 -> Wilmslow WwTW | F114: =WINEP_Inputs!CW109 -> £ per pe | G114: =WINEP_Inputs!CX109 -> 1e-06 | I114: =WINEP_Inputs!CR109 -> 156 | J114: =WINEP_Inputs!CS109 -> 23711 | K114: =WINEP_Inputs!CT109 -> 23711 | L114: =WINEP_Inputs!CU109 -> 1 | M114: =WINEP_Inputs!CV109 -> WWN | N114: 1
C115: =WINEP_Inputs!A110 -> GMC00327 | D115: =WINEP_Inputs!J110 -> 7UU200750 | E115: =WINEP_Inputs!K110 -> Worsley WwTW | F115: =WINEP_Inputs!CW110 -> £ per pe | G115: =WINEP_Inputs!CX110 -> 1e-06 | I115: =WINEP_Inputs!CR110 -> 342 | J115: =WINEP_Inputs!CS110 -> 22886 | K115: =WINEP_Inputs!CT110 -> 22886 | L115: =WINEP_Inputs!CU110 -> 1 | M115: =WINEP_Inputs!CV110 -> WWN | N115: 1
C116: =WINEP_Inputs!A111 -> GMC00511 | D116: =WINEP_Inputs!J111 -> 7UU300121 | E116: =WINEP_Inputs!K111 -> Worsley WwTW | F116: =WINEP_Inputs!CW111 -> £ | G116: =WINEP_Inputs!CX111 -> 1e-06 | I116: =WINEP_Inputs!CR111 -> 254687 | J116: =WINEP_Inputs!CS111 -> 1 | K116: =WINEP_Inputs!CT111 -> 1 | L116: =WINEP_Inputs!CU111 -> 1 | M116: =WINEP_Inputs!CV111 -> WWN | N116: 1
C117: =WINEP_Inputs!A112 -> GMC00391 | D117: =WINEP_Inputs!J112 -> 7UU200814 | E117: =WINEP_Inputs!K112 -> Worsley WwTW Inlet CSO | F117: =WINEP_Inputs!CW112 -> £ per m3 | G117: =WINEP_Inputs!CX112 -> 1e-06 | I117: =WINEP_Inputs!CR112 -> 1840 | J117: =WINEP_Inputs!CS112 -> 1300 | K117: =WINEP_Inputs!CT112 -> 1300 | L117: =WINEP_Inputs!CU112 -> 1 | M117: =WINEP_Inputs!CV112 -> WWN | N117: 1
C118: =WINEP_Inputs!A113 -> GMC00392 | D118: =WINEP_Inputs!J113 -> 7UU200815 | E118: =WINEP_Inputs!K113 -> Worsley WwTW Storm Tank | F118: =WINEP_Inputs!CW113 -> £ per m3 | G118: =WINEP_Inputs!CX113 -> 1e-06 | I118: =WINEP_Inputs!CR113 -> 3269 | J118: =WINEP_Inputs!CS113 -> 675 | K118: =WINEP_Inputs!CT113 -> 675 | L118: =WINEP_Inputs!CU113 -> 1 | M118: =WINEP_Inputs!CV113 -> WWN | N118: 1
C119: =WINEP_Inputs!A114 -> GMC00367 | D119: =WINEP_Inputs!J114 -> 7UU200790 | E119: =WINEP_Inputs!K114 -> Bolton WwTW | F119: =WINEP_Inputs!CW114 -> £ | G119: =WINEP_Inputs!CX114 -> 1e-06 | I119: =WINEP_Inputs!CR114 -> 12166666.67 | J119: =WINEP_Inputs!CS114 -> 1 | K119: =WINEP_Inputs!CT114 -> 1 | L119: =WINEP_Inputs!CU114 -> 0 | M119: =WINEP_Inputs!CV114 -> WWN | N119: =IF(K119 = 0, 0, K119 / J119) -> 1
C120: =WINEP_Inputs!A115 -> GMC00508 | D120: =WINEP_Inputs!J115 -> 7UU300118 | E120: =WINEP_Inputs!K115 -> Bolton WwTW | F120: =WINEP_Inputs!CW115 -> £ | G120: =WINEP_Inputs!CX115 -> 1e-06 | I120: =WINEP_Inputs!CR115 -> 12166666.67 | J120: =WINEP_Inputs!CS115 -> 1 | K120: =WINEP_Inputs!CT115 -> 1 | L120: =WINEP_Inputs!CU115 -> 0 | M120: =WINEP_Inputs!CV115 -> WWN | N120: 1
C121: =WINEP_Inputs!A116 -> GMC00307 | D121: =WINEP_Inputs!J116 -> 7UU200730 | E121: =WINEP_Inputs!K116 -> Bolton WwTW | F121: =WINEP_Inputs!CW116 -> £ | G121: =WINEP_Inputs!CX116 -> 1e-06 | I121: =WINEP_Inputs!CR116 -> 12166666.67 | J121: =WINEP_Inputs!CS116 -> 1 | K121: =WINEP_Inputs!CT116 -> 1 | L121: =WINEP_Inputs!CU116 -> 0 | M121: =WINEP_Inputs!CV116 -> WWN | N121: 1
C122: =WINEP_Inputs!A117 -> GMC00368 | D122: =WINEP_Inputs!J117 -> 7UU200791 | E122: =WINEP_Inputs!K117 -> Bolton WwTW Storm Tanks | F122: =WINEP_Inputs!CW117 -> £ | G122: =WINEP_Inputs!CX117 -> 1e-06 | I122: =WINEP_Inputs!CR117 -> 41800000 | J122: =WINEP_Inputs!CS117 -> 1 | K122: =WINEP_Inputs!CT117 -> 1 | L122: =WINEP_Inputs!CU117 -> 0 | M122: =WINEP_Inputs!CV117 -> WWN | N122: 1
C123: =WINEP_Inputs!A118 -> 0 | D123: =WINEP_Inputs!J118 -> 0 | E123: =WINEP_Inputs!K118 -> 0 | F123: =WINEP_Inputs!CW118 -> 0 | G123: =WINEP_Inputs!CX118 -> 0 | I123: =WINEP_Inputs!CR118 -> 0 | J123: =WINEP_Inputs!CS118 -> 0 | K123: =WINEP_Inputs!CT118 -> 0 | L123: =WINEP_Inputs!CU118 -> 0 | M123: =WINEP_Inputs!CV118 -> 0 | N123: 0
C124: =WINEP_Inputs!A119 -> 0 | D124: =WINEP_Inputs!J119 -> 0 | E124: =WINEP_Inputs!K119 -> 0 | F124: =WINEP_Inputs!CW119 -> 0 | G124: =WINEP_Inputs!CX119 -> 0 | I124: =WINEP_Inputs!CR119 -> 0 | J124: =WINEP_Inputs!CS119 -> 0 | K124: =WINEP_Inputs!CT119 -> 0 | L124: =WINEP_Inputs!CU119 -> 0 | M124: =WINEP_Inputs!CV119 -> 0 | N124: =IF(K124 = 0, 0, K124 / J124) -> 0
A128: End of sheet

Sheet WINEP_Allowance
A1: =RIGHT(CELL("filename", $A$1), LEN(CELL("filename", $A$1)) - SEARCH("]", CELL("filename", $A$1))) -> 
F2: =Check!F2 -> 0 | G2: Checks
F3: =Check!F3 -> 5 | G3: Track chgs
A5: CALCULATION OF ADJUSTED ALLOWED COST FOR CONFIRMED SCHEMES
A7: List of Amber Schemes
B8: Calculate the adjusted allowed cost per scheme, £m and the WINEP reconciliation per control, £m
R9: WR | S9: WN | T9: WWN | U9: BR | V9: DMY
C10: =WINEP_Schemes!C9 -> WINEPID | D10: =WINEP_Schemes!D9 -> Unique ID | E10: =WINEP_Schemes!E9 -> Scheme category / name | F10: =WINEP_Schemes!F9 -> Unit | G10: =WINEP_Schemes!G9 -> Unit Conversion to £m | H10: =WINEP_Schemes!H9 -> 0 | I10: =WINEP_Schemes!J9 -> Quantity in PR19 FD | J10: =WINEP_Schemes!I9 -> Allowed totex unit rate | K10: =WINEP_Schemes!K9 -> Quantity Delivered | L10: =WINEP_Schemes!L9 -> 1 = In FD, funded 0 = In FD, not funded | M10: =WINEP_Schemes!M9 -> Price Control | N10: =WINEP_Schemes!N9 -> Proportion Confirmed | O10: FD Allowance, £m | P10: Adjusted Allowance (Delivered), £m | Q10: WINEP Reconciliation, £m | R10: Water Resources £m | S10: Water Network £m | T10: Wastewater Network £m | U10: Bioresources £m | V10: Dummy £m
C11: =WINEP_Schemes!C10 -> CLA00478 | D11: =WINEP_Schemes!D10 -> 7UU200462 | E11: =WINEP_Schemes!E10 -> Burnley WwTW | F11: =WINEP_Schemes!F10 -> £ | G11: =WINEP_Schemes!G10 -> 1e-06 | H11: =WINEP_Schemes!H10 -> 0 | I11: =WINEP_Schemes!J10 -> 1 | J11: =WINEP_Schemes!I10 -> 1880959 | K11: =WINEP_Schemes!K10 -> 1 | L11: =WINEP_Schemes!L10 -> 1 | M11: =WINEP_Schemes!M10 -> WWN | N11: =WINEP_Schemes!N10 -> 1 | O11: =I11 * J11 * G11 -> 1.880959 | P11: =N11 * O11 -> 1.880959 | Q11: =IF(L11 = 0, P11, (N11 - 1) * O11) -> 0 | R11: =IF($M11 = R$9, $Q11, 0) -> 0 | S11: =IF($M11 = S$9, $Q11, 0) -> 0 | T11: =IF($M11 = T$9, $Q11, 0) -> 0 | U11: =IF($M11 = U$9, $Q11, 0) -> 0 | V11: =IF($M11 = V$9, $Q11, 0) -> 0
C12: =WINEP_Schemes!C11 -> CLA00479 | D12: =WINEP_Schemes!D11 -> 7UU200463 | E12: =WINEP_Schemes!E11 -> Burnley WwTW | F12: =WINEP_Schemes!F11 -> £ | G12: =WINEP_Schemes!G11 -> 1e-06 | H12: =WINEP_Schemes!H11 -> 0 | I12: =WINEP_Schemes!J11 -> 1 | J12: =WINEP_Schemes!I11 -> 1880959 | K12: =WINEP_Schemes!K11 -> 1 | L12: =WINEP_Schemes!L11 -> 1 | M12: =WINEP_Schemes!M11 -> WWN | N12: =WINEP_Schemes!N11 -> 1 | O12: =I12 * J12 * G12 -> 1.880959 | P12: =N12 * O12 -> 1.880959 | Q12: =IF(L12 = 0, P12, (N12 - 1) * O12) -> 0 | R12: =IF($M12 = R$9, $Q12, 0) -> 0 | S12: 0 | T12: 0 | U12: 0 | V12: 0
C13: =WINEP_Schemes!C12 -> GMC00513 | D13: =WINEP_Schemes!D12 -> 7UU300123 | E13: =WINEP_Schemes!E12 -> Mossley WwTW | F13: =WINEP_Schemes!F12 -> £ | G13: =WINEP_Schemes!G12 -> 1e-06 | H13: =WINEP_Schemes!H12 -> 0 | I13: =WINEP_Schemes!J12 -> 1 | J13: =WINEP_Schemes!I12 -> 2456836.5 | K13: =WINEP_Schemes!K12 -> 1 | L13: =WINEP_Schemes!L12 -> 1 | M13: =WINEP_Schemes!M12 -> WWN | N13: =WINEP_Schemes!N12 -> 1 | O13: =I13 * J13 * G13 -> 2.4568365 | P13: =N13 * O13 -> 2.4568365 | Q13: =IF(L13 = 0, P13, (N13 - 1) * O13) -> 0 | R13: 0 | S13: 0 | T13: 0 | U13: 0 | V13: 0
C14: =WINEP_Schemes!C13 -> GMC00514 | D14: =WINEP_Schemes!D13 -> 7UU300124 | E14: =WINEP_Schemes!E13 -> Mossley WwTW | F14: =WINEP_Schemes!F13 -> £ | G14: =WINEP_Schemes!G13 -> 1e-06 | H14: =WINEP_Schemes!H13 -> 0 | I14: =WINEP_Schemes!J13 -> 1 | J14: =WINEP_Schemes!I13 -> 2456836.5 | K14: =WINEP_Schemes!K13 -> 1 | L14: =WINEP_Schemes!L13 -> 1 | M14: =WINEP_Schemes!M13 -> WWN | N14: =WINEP_Schemes!N13 -> 1 | O14: =I14 * J14 * G14 -> 2.4568365 | P14: =N14 * O14 -> 2.4568365 | Q14: =IF(L14 = 0, P14, (N14 - 1) * O14) -> 0 | R14: 0 | S14: 0 | T14: 0 | U14: 0 | V14: 0
C15: =WINEP_Schemes!C14 -> CLA00478 | D15: =WINEP_Schemes!D14 -> 7UU200462 | E15: =WINEP_Schemes!E14 -> Burnley WwTW | F15: =WINEP_Schemes!F14 -> £ | G15: =WINEP_Schemes!G14 -> 1e-06 | H15: =WINEP_Schemes!H14 -> 0 | I15: =WINEP_Schemes!J14 -> 1 | J15: =WINEP_Schemes!I14 -> 1880958.5 | K15: =WINEP_Schemes!K14 -> 1 | L15: =WINEP_Schemes!L14 -> 1 | M15: =WINEP_Schemes!M14 -> WWN | N15: =WINEP_Schemes!N14 -> 1 | O15: 1.8809585 | P15: 1.8809585 | Q15: 0 | R15: 0 | S15: 0 | T15: 0 | U15: 0 | V15: 0
C16: =WINEP_Schemes!C15 -> CLA00479 | D16: =WINEP_Schemes!D15 -> 7UU200463 | E16: =WINEP_Schemes!E15 -> Burnley WwTW | F16: =WINEP_Schemes!F15 -> £ | G16: =WINEP_Schemes!G15 -> 1e-06 | H16: =WINEP_Schemes!H15 -> 0 | I16: =WINEP_Schemes!J15 -> 1 | J16: =WINEP_Schemes!I15 -> 1880958.5 | K16: =WINEP_Schemes!K15 -> 1 | L16: =WINEP_Schemes!L15 -> 1 | M16: =WINEP_Schemes!M15 -> WWN | N16: =WINEP_Schemes!N15 -> 1 | O16: =I16 * J16 * G16 -> 1.8809585 | P16: =N16 * O16 -> 1.8809585 | Q16: =IF(L16 = 0, P16, (N16 - 1) * O16) -> 0 | R16: 0 | S16: 0 | T16: 0 | U16: 0 | V16: 0
C17: =WINEP_Schemes!C16 -> GMC00513 | D17: =WINEP_Schemes!D16 -> 7UU300123 | E17: =WINEP_Schemes!E16 -> Mossley WwTW | F17: =WINEP_Schemes!F16 -> £ | G17: =WINEP_Schemes!G16 -> 1e-06 | H17: =WINEP_Schemes!H16 -> 0 | I17: =WINEP_Schemes!J16 -> 1 | J17: =WINEP_Schemes!I16 -> 1228418 | K17: =WINEP_Schemes!K16 -> 1 | L17: =WINEP_Schemes!L16 -> 1 | M17: =WINEP_Schemes!M16 -> WWN | N17: =WINEP_Schemes!N16 -> 1 | O17: 1.228418 | P17: 1.228418 | Q17: 0 | R17: 0 | S17: 0 | T17: 0 | U17: 0 | V17: 0
C18: =WINEP_Schemes!C17 -> GMC00514 | D18: =WINEP_Schemes!D17 -> 7UU300124 | E18: =WINEP_Schemes!E17 -> Mossley WwTW | F18: =WINEP_Schemes!F17 -> £ | G18: =WINEP_Schemes!G17 -> 1e-06 | H18: =WINEP_Schemes!H17 -> 0 | I18: =WINEP_Schemes!J17 -> 1 | J18: =WINEP_Schemes!I17 -> 1228418 | K18: =WINEP_Schemes!K17 -> 1 | L18: =WINEP_Schemes!L17 -> 1 | M18: =WINEP_Schemes!M17 -> WWN | N18: =WINEP_Schemes!N17 -> 1 | O18: 1.228418 | P18: 1.228418 | Q18: 0 | R18: 0 | S18: 0 | T18: 0 | U18: 0 | V18: 0
C19: =WINEP_Schemes!C18 -> GMC00411 | D19: =WINEP_Schemes!D18 -> 7UU200834 | E19: =WINEP_Schemes!E18 -> Adj M62 Castleton CSO ROC0094 | F19: =WINEP_Schemes!F18 -> £ per m3 | G19: =WINEP_Schemes!G18 -> 1e-06 | H19: =WINEP_Schemes!H18 -> 0 | I19: =WINEP_Schemes!J18 -> 450 | J19: =WINEP_Schemes!I18 -> 5768 | K19: =WINEP_Schemes!K18 -> 450 | L19: =WINEP_Schemes!L18 -> 1 | M19: =WINEP_Schemes!M18 -> WWN | N19: =WINEP_Schemes!N18 -> 1 | O19: 2.5956 | P19: 2.5956 | Q19: 0 | R19: 0 | S19: 0 | T19: 0 | U19: 0 | V19: 0
C20: =WINEP_Schemes!C19 -> GMC00509 | D20: =WINEP_Schemes!D19 -> 7UU300119 | E20: =WINEP_Schemes!E19 -> Albert Road CSO BOL0095 | F20: =WINEP_Schemes!F19 -> 0 | G20: =WINEP_Schemes!G19 -> 1e-06 | H20: =WINEP_Schemes!H19 -> 0 | I20: =WINEP_Schemes!J19 -> 0 | J20: =WINEP_Schemes!I19 -> 0 | K20: =WINEP_Schemes!K19 -> 0 | L20: =WINEP_Schemes!L19 -> 1 | M20: =WINEP_Schemes!M19 -> WWN | N20: =WINEP_Schemes!N19 -> 0 | O20: 0 | P20: 0 | Q20: 0 | R20: 0 | S20: 0 | T20: 0 | U20: 0 | V20: 0
C21: =WINEP_Schemes!C20 -> GMC00065 | D21: =WINEP_Schemes!D20 -> 7UU200514 | E21: =WINEP_Schemes!E20 -> Alderley Edge WwTW | F21: =WINEP_Schemes!F20 -> £ per pe | G21: =WINEP_Schemes!G20 -> 1e-06 | H21: =WINEP_Schemes!H20 -> 0 | I21: =WINEP_Schemes!J20 -> 15495 | J21: =WINEP_Schemes!I20 -> 156 | K21: =WINEP_Schemes!K20 -> 15495 | L21: =WINEP_Schemes!L20 -> 1 | M21: =WINEP_Schemes!M20 -> WWN | N21: =WINEP_Schemes!N20 -> 1 | O21: 2.41722 | P21: 2.41722 | Q21: 0 | R21: 0 | S21: 0 | T21: 0 | U21: 0 | V21: 0
C22: =WINEP_Schemes!C21 -> GMC00294 | D22: =WINEP_Schemes!D21 -> 7UU200717 | E22: =WINEP_Schemes!E21 -> Alderley Edge WwTW | F22: =WINEP_Schemes!F21 -> £ per pe | G22: =WINEP_Schemes!G21 -> 1e-06 | H22: =WINEP_Schemes!H21 -> 0 | I22: =WINEP_Schemes!J21 -> 15495 | J22: =WINEP_Schemes!I21 -> 342 | K22: =WINEP_Schemes!K21 -> 15495 | L22: =WINEP_Schemes!L21 -> 1 | M22: =WINEP_Schemes!M21 -> WWN | N22: =WINEP_Schemes!N21 -> 1 | O22: 5.29929 | P22: 5.29929 | Q22: 0 | R22: 0 | S22: 0 | T22: 0 | U22: 0 | V22: 0
C23: =WINEP_Schemes!C22 -> GMC00313 | D23: =WINEP_Schemes!D22 -> 7UU200736 | E23: =WINEP_Schemes!E22 -> Alsager WwTW | F23: =WINEP_Schemes!F22 -> £ per pe | G23: =WINEP_Schemes!G22 -> 1e-06 | H23: =WINEP_Schemes!H22 -> 0 | I23: =WINEP_Schemes!J22 -> 13114 | J23: =WINEP_Schemes!I22 -> 342 | K23: =WINEP_Schemes!K22 -> 13114 | L23: =WINEP_Schemes!L22 -> 1 | M23: =WINEP_Schemes!M22 -> WWN | N23: =WINEP_Schemes!N22 -> 1 | O23: 4.484988 | P23: 4.484988 | Q23: 0 | R23: 0 | S23: 0 | T23: 0 | U23: 0 | V23: 0
C24: =WINEP_Schemes!C23 -> GMC00371 | D24: =WINEP_Schemes!D23 -> 7UU200794 | E24: =WINEP_Schemes!E23 -> Astley Bridge CSO BOL0056 | F24: =WINEP_Schemes!F23 -> £ per m3 | G24: =WINEP_Schemes!G23 -> 1e-06 | H24: =WINEP_Schemes!H23 -> 0 | I24: =WINEP_Schemes!J23 -> 2600 | J24: =WINEP_Schemes!I23 -> 1840 | K24: =WINEP_Schemes!K23 -> 2600 | L24: =WINEP_Schemes!L23 -> 1 | M24: =WINEP_Schemes!M23 -> WWN | N24: =WINEP_Schemes!N23 -> 1 | O24: 4.784 | P24: 4.784 | Q24: 0 | R24: 0 | S24: 0 | T24: 0 | U24: 0 | V24: 0
C25: =WINEP_Schemes!C24 -> GMC00349 | D25: =WINEP_Schemes!D24 -> 7UU200772 | E25: =WINEP_Schemes!E24 -> Audlem WwTW | F25: =WINEP_Schemes!F24 -> £ per pe | G25: =WINEP_Schemes!G24 -> 1e-06 | H25: =WINEP_Schemes!H24 -> 0 | I25: =WINEP_Schemes!J24 -> 1563 | J25: =WINEP_Schemes!I24 -> 4155 | K25: =WINEP_Schemes!K24 -> 1563 | L25: =WINEP_Schemes!L24 -> 1 | M25: =WINEP_Schemes!M24 -> WWN | N25: =WINEP_Schemes!N24 -> 1 | O25: 6.494265 | P25: 6.494265 | Q25: 0 | R25: 0 | S25: 0 | T25: 0 | U25: 0 | V25: 0
C26: =WINEP_Schemes!C25 -> GMC00008 | D26: =WINEP_Schemes!D25 -> 7UU200501 | E26: =WINEP_Schemes!E25 -> Audley WwTW | F26: =WINEP_Schemes!F25 -> £ | G26: =WINEP_Schemes!G25 -> 1e-06 | H26: =WINEP_Schemes!H25 -> 0 | I26: =WINEP_Schemes!J25 -> 1 | J26: =WINEP_Schemes!I25 -> 2133357 | K26: =WINEP_Schemes!K25 -> 1 | L26: =WINEP_Schemes!L25 -> 1 | M26: =WINEP_Schemes!M25 -> WWN | N26: =WINEP_Schemes!N25 -> 1 | O26: 2.133357 | P26: 2.133357 | Q26: 0 | R26: 0 | S26: 0 | T26: 0 | U26: 0 | V26: 0
C27: =WINEP_Schemes!C26 -> GMC00350 | D27: =WINEP_Schemes!D26 -> 7UU200773 | E27: =WINEP_Schemes!E26 -> Audley WwTW | F27: =WINEP_Schemes!F26 -> £ per pe | G27: =WINEP_Schemes!G26 -> 1e-06 | H27: =WINEP_Schemes!H26 -> 0 | I27: =WINEP_Schemes!J26 -> 8052 | J27: =WINEP_Schemes!I26 -> 798 | K27: =WINEP_Schemes!K26 -> 8052 | L27: =WINEP_Schemes!L26 -> 1 | M27: =WINEP_Schemes!M26 -> WWN | N27: =WINEP_Schemes!N26 -> 1 | O27: 6.425496 | P27: 6.425496 | Q27: 0 | R27: 0 | S27: 0 | T27: 0 | U27: 0 | V27: 0
C28: =WINEP_Schemes!C27 -> CLA00378 | D28: =WINEP_Schemes!D27 -> 7UU100001 | E28: =WINEP_Schemes!E27 -> Barnoldswick WwTW | F28: =WINEP_Schemes!F27 -> £ per pe | G28: =WINEP_Schemes!G27 -> 1e-06 | H28: =WINEP_Schemes!H27 -> 0 | I28: =WINEP_Schemes!J27 -> 13092 | J28: =WINEP_Schemes!I27 -> 342 | K28: =WINEP_Schemes!K27 -> 13092 | L28: =WINEP_Schemes!L27 -> 1 | M28: =WINEP_Schemes!M27 -> WWN | N28: =WINEP_Schemes!N27 -> 1 | O28: 4.477464 | P28: 4.477464 | Q28: 0 | R28: 0 | S28: 0 | T28: 0 | U28: 0 | V28: 0
C29: =WINEP_Schemes!C28 -> GMC00351 | D29: =WINEP_Schemes!D28 -> 7UU200774 | E29: =WINEP_Schemes!E28 -> Betley WwTW | F29: =WINEP_Schemes!F28 -> £ per pe | G29: =WINEP_Schemes!G28 -> 1e-06 | H29: =WINEP_Schemes!H28 -> 0 | I29: =WINEP_Schemes!J28 -> 966 | J29: =WINEP_Schemes!I28 -> 4155 | K29: =WINEP_Schemes!K28 -> 966 | L29: =WINEP_Schemes!L28 -> 1 | M29: =WINEP_Schemes!M28 -> WWN | N29: =WINEP_Schemes!N28 -> 1 | O29: 4.01373 | P29: 4.01373 | Q29: 0 | R29: 0 | S29: 0 | T29: 0 | U29: 0 | V29: 0
C30: =WINEP_Schemes!C29 -> GMC00314 | D30: =WINEP_Schemes!D29 -> 7UU200737 | E30: =WINEP_Schemes!E29 -> Biddulph WwTW | F30: =WINEP_Schemes!F29 -> £ per pe | G30: =WINEP_Schemes!G29 -> 1e-06 | H30: =WINEP_Schemes!H29 -> 0 | I30: =WINEP_Schemes!J29 -> 16730 | J30: =WINEP_Schemes!I29 -> 342 | K30: =WINEP_Schemes!K29 -> 16730 | L30: =WINEP_Schemes!L29 -> 1 | M30: =WINEP_Schemes!M29 -> WWN | N30: =WINEP_Schemes!N29 -> 1 | O30: 5.72166 | P30: 5.72166 | Q30: 0 | R30: 0 | S30: 0 | T30: 0 | U30: 0 | V30: 0
C31: =WINEP_Schemes!C30 -> CLA00486 | D31: =WINEP_Schemes!D30 -> 7UU200470 | E31: =WINEP_Schemes!E30 -> Blackburn WwTW | F31: =WINEP_Schemes!F30 -> £ per pe | G31: =WINEP_Schemes!G30 -> 1e-06 | H31: =WINEP_Schemes!H30 -> 0 | I31: =WINEP_Schemes!J30 -> 267950 | J31: =WINEP_Schemes!I30 -> 106 | K31: =WINEP_Schemes!K30 -> 267950 | L31: =WINEP_Schemes!L30 -> 1 | M31: =WINEP_Schemes!M30 -> WWN | N31: =WINEP_Schemes!N30 -> 1 | O31: 28.4027 | P31: 28.4027 | Q31: 0 | R31: 0 | S31: 0 | T31: 0 | U31: 0 | V31: 0
C32: =WINEP_Schemes!C31 -> CLA00536 | D32: =WINEP_Schemes!D31 -> 7UU200486 | E32: =WINEP_Schemes!E31 -> Blea Water - Removal of weir | F32: =WINEP_Schemes!F31 -> £ | G32: =WINEP_Schemes!G31 -> 1e-06 | H32: =WINEP_Schemes!H31 -> 0 | I32: =WINEP_Schemes!J31 -> 1 | J32: =WINEP_Schemes!I31 -> 600000 | K32: =WINEP_Schemes!K31 -> 1 | L32: =WINEP_Schemes!L31 -> 1 | M32: =WINEP_Schemes!M31 -> WR | N32: =WINEP_Schemes!N31 -> 1 | O32: 0.6 | P32: 0.6 | Q32: 0 | R32: 0 | S32: 0 | T32: 0 | U32: 0 | V32: 0
C33: =WINEP_Schemes!C32 -> GMC00296 | D33: =WINEP_Schemes!D32 -> 7UU200719 | E33: =WINEP_Schemes!E32 -> Bowdon WwTW | F33: =WINEP_Schemes!F32 -> £ per pe | G33: =WINEP_Schemes!G32 -> 1e-06 | H33: =WINEP_Schemes!H32 -> 0 | I33: =WINEP_Schemes!J32 -> 7542 | J33: =WINEP_Schemes!I32 -> 420 | K33: =WINEP_Schemes!K32 -> 7542 | L33: =WINEP_Schemes!L32 -> 1 | M33: =WINEP_Schemes!M32 -> WWN | N33: =WINEP_Schemes!N32 -> 1 | O33: 3.16764 | P33: 3.16764 | Q33: 0 | R33: 0 | S33: 0 | T33: 0 | U33: 0 | V33: 0
C34: =WINEP_Schemes!C33 -> GMC00328 | D34: =WINEP_Schemes!D33 -> 7UU200751 | E34: =WINEP_Schemes!E33 -> Bunbury WwTW | F34: =WINEP_Schemes!F33 -> £ per pe | G34: =WINEP_Schemes!G33 -> 1e-06 | H34: =WINEP_Schemes!H33 -> 0 | I34: =WINEP_Schemes!J33 -> 1462 | J34: =WINEP_Schemes!I33 -> 4155 | K34: =WINEP_Schemes!K33 -> 1462 | L34: =WINEP_Schemes!L33 -> 1 | M34: =WINEP_Schemes!M33 -> WWN | N34: =WINEP_Schemes!N33 -> 1 | O34: 6.07461 | P34: 6.07461 | Q34: 0 | R34: 0 | S34: 0 | T34: 0 | U34: 0 | V34: 0
C35: =WINEP_Schemes!C34 -> CLA00474 | D35: =WINEP_Schemes!D34 -> 7UU200458 | E35: =WINEP_Schemes!E34 -> BUR0026 | F35: =WINEP_Schemes!F34 -> £ per m3 | G35: =WINEP_Schemes!G34 -> 1e-06 | H35: =WINEP_Schemes!H34 -> 0 | I35: =WINEP_Schemes!J34 -> 5500 | J35: =WINEP_Schemes!I34 -> 946 | K35: =WINEP_Schemes!K34 -> 5500 | L35: =WINEP_Schemes!L34 -> 1 | M35: =WINEP_Schemes!M34 -> WWN | N35: =WINEP_Schemes!N34 -> 1 | O35: 5.203 | P35: 5.203 | Q35: 0 | R35: 0 | S35: 0 | T35: 0 | U35: 0 | V35: 0
C36: =WINEP_Schemes!C35 -> CLA00475 | D36: =WINEP_Schemes!D35 -> 7UU200459 | E36: =WINEP_Schemes!E35 -> BUR0036 | F36: =WINEP_Schemes!F35 -> £ per m3 | G36: =WINEP_Schemes!G35 -> 1e-06 | H36: =WINEP_Schemes!H35 -> 0 | I36: =WINEP_Schemes!J35 -> 1500 | J36: =WINEP_Schemes!I35 -> 1840 | K36: =WINEP_Schemes!K35 -> 1500 | L36: =WINEP_Schemes!L35 -> 1 | M36: =WINEP_Schemes!M35 -> WWN | N36: =WINEP_Schemes!N35 -> 1 | O36: 2.76 | P36: 2.76 | Q36: 0 | R36: 0 | S36: 0 | T36: 0 | U36: 0 | V36: 0
C37: =WINEP_Schemes!C36 -> CLA00480 | D37: =WINEP_Schemes!D36 -> 7UU200464 | E37: =WINEP_Schemes!E36 -> Burnley WwTW | F37: =WINEP_Schemes!F36 -> £ per pe | G37: =WINEP_Schemes!G36 -> 1e-06 | H37: =WINEP_Schemes!H36 -> 0 | I37: =WINEP_Schemes!J36 -> 131744 | J37: =WINEP_Schemes!I36 -> 106 | K37: =WINEP_Schemes!K36 -> 131744 | L37: =WINEP_Schemes!L36 -> 1 | M37: =WINEP_Schemes!M36 -> WWN | N37: =WINEP_Schemes!N36 -> 1 | O37: 13.964864 | P37: 13.964864 | Q37: 0 | R37: 0 | S37: 0 | T37: 0 | U37: 0 | V37: 0
C38: =WINEP_Schemes!C37 -> CLA00481 | D38: =WINEP_Schemes!D37 -> 7UU200465 | E38: =WINEP_Schemes!E37 -> Burnley WwTW Storm Tanks | F38: =WINEP_Schemes!F37 -> £ per m3 | G38: =WINEP_Schemes!G37 -> 1e-06 | H38: =WINEP_Schemes!H37 -> 0 | I38: =WINEP_Schemes!J37 -> 25000 | J38: =WINEP_Schemes!I37 -> 946 | K38: =WINEP_Schemes!K37 -> 25000 | L38: =WINEP_Schemes!L37 -> 1 | M38: =WINEP_Schemes!M37 -> WWN | N38: =WINEP_Schemes!N37 -> 1 | O38: 23.65 | P38: 23.65 | Q38: 0 | R38: 0 | S38: 0 | T38: 0 | U38: 0 | V38: 0
C39: =WINEP_Schemes!C38 -> CLA00564 | D39: =WINEP_Schemes!D38 -> 7UU300107 | E39: =WINEP_Schemes!E38 -> Burscough STW Wetland Solution | F39: =WINEP_Schemes!F38 -> £ per pe | G39: =WINEP_Schemes!G38 -> 1e-06 | H39: =WINEP_Schemes!H38 -> 0 | I39: =WINEP_Schemes!J38 -> 3885 | J39: =WINEP_Schemes!I38 -> 420 | K39: =WINEP_Schemes!K38 -> 3885 | L39: =WINEP_Schemes!L38 -> 1 | M39: =WINEP_Schemes!M38 -> WWN | N39: =WINEP_Schemes!N38 -> 1 | O39: 1.6317 | P39: 1.6317 | Q39: 0 | R39: 0 | S39: 0 | T39: 0 | U39: 0 | V39: 0
C40: =WINEP_Schemes!C39 -> GMC00408 | D40: =WINEP_Schemes!D39 -> 7UU200831 | E40: =WINEP_Schemes!E39 -> Castleton WwTW | F40: =WINEP_Schemes!F39 -> 0 | G40: =WINEP_Schemes!G39 -> 0 | H40: =WINEP_Schemes!H39 -> 0 | I40: =WINEP_Schemes!J39 -> 0 | J40: =WINEP_Schemes!I39 -> 0 | K40: =WINEP_Schemes!K39 -> 0 | L40: =WINEP_Schemes!L39 -> 0 | M40: =WINEP_Schemes!M39 -> 0 | N40: =WINEP_Schemes!N39 -> 0 | O40: 0 | P40: 0 | Q40: 0 | R40: 0 | S40: 0 | T40: 0 | U40: 0 | V40: 0
C41: =WINEP_Schemes!C40 -> GMC00409 | D41: =WINEP_Schemes!D40 -> 7UU200832 | E41: =WINEP_Schemes!E40 -> Castleton WwTW | F41: =WINEP_Schemes!F40 -> 0 | G41: =WINEP_Schemes!G40 -> 0 | H41: =WINEP_Schemes!H40 -> 0 | I41: =WINEP_Schemes!J40 -> 0 | J41: =WINEP_Schemes!I40 -> 0 | K41: =WINEP_Schemes!K40 -> 0 | L41: =WINEP_Schemes!L40 -> 0 | M41: =WINEP_Schemes!M40 -> 0 | N41: =WINEP_Schemes!N40 -> 0 | O41: 0 | P41: 0 | Q41: 0 | R41: 0 | S41: 0 | T41: 0 | U41: 0 | V41: 0
C42: =WINEP_Schemes!C41 -> GMC00344 | D42: =WINEP_Schemes!D41 -> 7UU200767 | E42: =WINEP_Schemes!E41 -> Castleton WwTW | F42: =WINEP_Schemes!F41 -> £ per pe | G42: =WINEP_Schemes!G41 -> 1e-06 | H42: =WINEP_Schemes!H41 -> 0 | I42: =WINEP_Schemes!J41 -> 5646 | J42: =WINEP_Schemes!I41 -> 798 | K42: =WINEP_Schemes!K41 -> 5646 | L42: =WINEP_Schemes!L41 -> 1 | M42: =WINEP_Schemes!M41 -> WWN | N42: =WINEP_Schemes!N41 -> 1 | O42: 4.505508 | P42: 4.505508 | Q42: 0 | R42: 0 | S42: 0 | T42: 0 | U42: 0 | V42: 0
C43: =WINEP_Schemes!C42 -> GMC00412 | D43: =WINEP_Schemes!D42 -> 7UU200835 | E43: =WINEP_Schemes!E42 -> Castleton WwTW Storm Tanks | F43: =WINEP_Schemes!F42 -> £ per m3 | G43: =WINEP_Schemes!G42 -> 1e-06 | H43: =WINEP_Schemes!H42 -> 0 | I43: =WINEP_Schemes!J42 -> 5250 | J43: =WINEP_Schemes!I42 -> 946 | K43: =WINEP_Schemes!K42 -> 5250 | L43: =WINEP_Schemes!L42 -> 1 | M43: =WINEP_Schemes!M42 -> WWN | N43: =WINEP_Schemes!N42 -> 1 | O43: 4.9665 | P43: 4.9665 | Q43: 0 | R43: 0 | S43: 0 | T43: 0 | U43: 0 | V43: 0
C44: =WINEP_Schemes!C43 -> GMC00335 | D44: =WINEP_Schemes!D43 -> 7UU200758 | E44: =WINEP_Schemes!E43 -> Chapel-en-le-Frith WwTW | F44: =WINEP_Schemes!F43 -> £ per pe | G44: =WINEP_Schemes!G43 -> 1e-06 | H44: =WINEP_Schemes!H43 -> 0 | I44: =WINEP_Schemes!J43 -> 7287 | J44: =WINEP_Schemes!I43 -> 798 | K44: =WINEP_Schemes!K43 -> 7287 | L44: =WINEP_Schemes!L43 -> 1 | M44: =WINEP_Schemes!M43 -> WWN | N44: =WINEP_Schemes!N43 -> 1 | O44: 5.815026 | P44: 5.815026 | Q44: 0 | R44: 0 | S44: 0 | T44: 0 | U44: 0 | V44: 0
C45: =WINEP_Schemes!C44 -> CLA00487 | D45: =WINEP_Schemes!D44 -> 7UU200471 | E45: =WINEP_Schemes!E44 -> Chorley WwTW | F45: =WINEP_Schemes!F44 -> £ per pe | G45: =WINEP_Schemes!G44 -> 1e-06 | H45: =WINEP_Schemes!H44 -> 0 | I45: =WINEP_Schemes!J44 -> 62080 | J45: =WINEP_Schemes!I44 -> 106 | K45: =WINEP_Schemes!K44 -> 62080 | L45: =WINEP_Schemes!L44 -> 1 | M45: =WINEP_Schemes!M44 -> WWN | N45: =WINEP_Schemes!N44 -> 1 | O45: 6.58048 | P45: 6.58048 | Q45: 0 | R45: 0 | S45: 0 | T45: 0 | U45: 0 | V45: 0
C46: =WINEP_Schemes!C45 -> GMC00315 | D46: =WINEP_Schemes!D45 -> 7UU200738 | E46: =WINEP_Schemes!E45 -> Congleton WwTW | F46: =WINEP_Schemes!F45 -> £ per pe | G46: =WINEP_Schemes!G45 -> 1e-06 | H46: =WINEP_Schemes!H45 -> 0 | I46: =WINEP_Schemes!J45 -> 37106 | J46: =WINEP_Schemes!I45 -> 106 | K46: =WINEP_Schemes!K45 -> 37106 | L46: =WINEP_Schemes!L45 -> 1 | M46: =WINEP_Schemes!M45 -> WWN | N46: =WINEP_Schemes!N45 -> 1 | O46: 3.933236 | P46: 3.933236 | Q46: 0 | R46: 0 | S46: 0 | T46: 0 | U46: 0 | V46: 0
C47: =WINEP_Schemes!C46 -> GMC00329 | D47: =WINEP_Schemes!D46 -> 7UU200752 | E47: =WINEP_Schemes!E46 -> Duddon WwTW | F47: =WINEP_Schemes!F46 -> £ per pe | G47: =WINEP_Schemes!G46 -> 1e-06 | H47: =WINEP_Schemes!H46 -> 0 | I47: =WINEP_Schemes!J46 -> 357 | J47: =WINEP_Schemes!I46 -> 4155 | K47: =WINEP_Schemes!K46 -> 357 | L47: =WINEP_Schemes!L46 -> 1 | M47: =WINEP_Schemes!M46 -> WWN | N47: =WINEP_Schemes!N46 -> 1 | O47: 1.483335 | P47: 1.483335 | Q47: 0 | R47: 0 | S47: 0 | T47: 0 | U47: 0 | V47: 0
C48: =WINEP_Schemes!C47 -> GMC00375 | D48: =WINEP_Schemes!D47 -> 7UU200798 | E48: =WINEP_Schemes!E47 -> Duncar Bridge CSO BOL0176 | F48: =WINEP_Schemes!F47 -> £ per m3 | G48: =WINEP_Schemes!G47 -> 1e-06 | H48: =WINEP_Schemes!H47 -> 0 | I48: =WINEP_Schemes!J47 -> 400 | J48: =WINEP_Schemes!I47 -> 5768 | K48: =WINEP_Schemes!K47 -> 400 | L48: =WINEP_Schemes!L47 -> 1 | M48: =WINEP_Schemes!M47 -> WWN | N48: =WINEP_Schemes!N47 -> 1 | O48: 2.3072 | P48: 2.3072 | Q48: 0 | R48: 0 | S48: 0 | T48: 0 | U48: 0 | V48: 0
C49: =WINEP_Schemes!C48 -> GMC00070 | D49: =WINEP_Schemes!D48 -> 7UU200519 | E49: =WINEP_Schemes!E48 -> Failsworth WwTW | F49: =WINEP_Schemes!F48 -> £ per pe | G49: =WINEP_Schemes!G48 -> 1e-06 | H49: =WINEP_Schemes!H48 -> 0 | I49: =WINEP_Schemes!J48 -> 21412 | J49: =WINEP_Schemes!I48 -> 156 | K49: =WINEP_Schemes!K48 -> 0 | L49: =WINEP_Schemes!L48 -> 1 | M49: =WINEP_Schemes!M48 -> WWN | N49: =WINEP_Schemes!N48 -> 0 | O49: 3.340272 | P49: 0 | Q49: -3.340272 | R49: 0 | S49: 0 | T49: -3.340272 | U49: 0 | V49: 0
C50: =WINEP_Schemes!C49 -> GMC00029 | D50: =WINEP_Schemes!D49 -> 7UU100082 | E50: =WINEP_Schemes!E49 -> Fernilee Reservoir: Continuation and final implementation of adaptive management improvements at Fernilee identified in AMP6, options appraisal | F50: =WINEP_Schemes!F49 -> £ | G50: =WINEP_Schemes!G49 -> 1e-06 | H50: =WINEP_Schemes!H49 -> 0 | I50: =WINEP_Schemes!J49 -> 1 | J50: =WINEP_Schemes!I49 -> 93000 | K50: =WINEP_Schemes!K49 -> 0 | L50: =WINEP_Schemes!L49 -> 1 | M50: =WINEP_Schemes!M49 -> WR | N50: =WINEP_Schemes!N49 -> 0 | O50: 0.093 | P50: 0 | Q50: -0.093 | R50: -0.093 | S50: 0 | T50: 0 | U50: 0 | V50: 0
C51: =WINEP_Schemes!C50 -> GMC00510 | D51: =WINEP_Schemes!D50 -> 7UU300120 | E51: =WINEP_Schemes!E50 -> Ginger Fold CSO BOL0144 | F51: =WINEP_Schemes!F50 -> £ per m3 | G51: =WINEP_Schemes!G50 -> 1e-06 | H51: =WINEP_Schemes!H50 -> 0 | I51: =WINEP_Schemes!J50 -> 400 | J51: =WINEP_Schemes!I50 -> 5768 | K51: =WINEP_Schemes!K50 -> 400 | L51: =WINEP_Schemes!L50 -> 1 | M51: =WINEP_Schemes!M50 -> WWN | N51: =WINEP_Schemes!N50 -> 1 | O51: 2.3072 | P51: 2.3072 | Q51: 0 | R51: 0 | S51: 0 | T51: 0 | U51: 0 | V51: 0
C52: =WINEP_Schemes!C51 -> GMC00323 | D52: =WINEP_Schemes!D51 -> 7UU200746 | E52: =WINEP_Schemes!E51 -> Glazebury WwTW | F52: =WINEP_Schemes!F51 -> £ per pe | G52: =WINEP_Schemes!G51 -> 1e-06 | H52: =WINEP_Schemes!H51 -> 0 | I52: =WINEP_Schemes!J51 -> 29977 | J52: =WINEP_Schemes!I51 -> 106 | K52: =WINEP_Schemes!K51 -> 29977 | L52: =WINEP_Schemes!L51 -> 1 | M52: =WINEP_Schemes!M51 -> WWN | N52: =WINEP_Schemes!N51 -> 1 | O52: 3.177562 | P52: 3.177562 | Q52: 0 | R52: 0 | S52: 0 | T52: 0 | U52: 0 | V52: 0
C53: =WINEP_Schemes!C52 -> GMC00068 | D53: =WINEP_Schemes!D52 -> 7UU200517 | E53: =WINEP_Schemes!E52 -> Glossop WwTW | F53: =WINEP_Schemes!F52 -> £ per pe | G53: =WINEP_Schemes!G52 -> 1e-06 | H53: =WINEP_Schemes!H52 -> 0 | I53: =WINEP_Schemes!J52 -> 35994 | J53: =WINEP_Schemes!I52 -> 36 | K53: =WINEP_Schemes!K52 -> 0 | L53: =WINEP_Schemes!L52 -> 1 | M53: =WINEP_Schemes!M52 -> WWN | N53: =WINEP_Schemes!N52 -> 0 | O53: 1.295784 | P53: 0 | Q53: -1.295784 | R53: 0 | S53: 0 | T53: -1.295784 | U53: 0 | V53: 0
C54: =WINEP_Schemes!C53 -> GMC00337 | D54: =WINEP_Schemes!D53 -> 7UU200760 | E54: =WINEP_Schemes!E53 -> Glossop WwTW | F54: =WINEP_Schemes!F53 -> £ per pe | G54: =WINEP_Schemes!G53 -> 1e-06 | H54: =WINEP_Schemes!H53 -> 0 | I54: =WINEP_Schemes!J53 -> 35994 | J54: =WINEP_Schemes!I53 -> 106 | K54: =WINEP_Schemes!K53 -> 35994 | L54: =WINEP_Schemes!L53 -> 1 | M54: =WINEP_Schemes!M53 -> WWN | N54: =WINEP_Schemes!N53 -> 1 | O54: 3.815364 | P54: 3.815364 | Q54: 0 | R54: 0 | S54: 0 | T54: 0 | U54: 0 | V54: 0
C55: =WINEP_Schemes!C54 -> GMC00395 | D55: =WINEP_Schemes!D54 -> 7UU200818 | E55: =WINEP_Schemes!E54 -> Glossop WwTW | F55: =WINEP_Schemes!F54 -> £ | G55: =WINEP_Schemes!G54 -> 1e-06 | H55: =WINEP_Schemes!H54 -> 0 | I55: =WINEP_Schemes!J54 -> 1 | J55: =WINEP_Schemes!I54 -> 1584793 | K55: =WINEP_Schemes!K54 -> 1 | L55: =WINEP_Schemes!L54 -> 1 | M55: =WINEP_Schemes!M54 -> WWN | N55: =WINEP_Schemes!N54 -> 1 | O55: 1.584793 | P55: 1.584793 | Q55: 0 | R55: 0 | S55: 0 | T55: 0 | U55: 0 | V55: 0
C56: =WINEP_Schemes!C55 -> GMC00389 | D56: =WINEP_Schemes!D55 -> 7UU200812 | E56: =WINEP_Schemes!E55 -> Gloucester Street/Wigan Road CSO WIG0207 | F56: =WINEP_Schemes!F55 -> £ per m3 | G56: =WINEP_Schemes!G55 -> 1e-06 | H56: =WINEP_Schemes!H55 -> 0 | I56: =WINEP_Schemes!J55 -> 400 | J56: =WINEP_Schemes!I55 -> 5768 | K56: =WINEP_Schemes!K55 -> 400 | L56: =WINEP_Schemes!L55 -> 1 | M56: =WINEP_Schemes!M55 -> WWN | N56: =WINEP_Schemes!N55 -> 1 | O56: 2.3072 | P56: 2.3072 | Q56: 0 | R56: 0 | S56: 0 | T56: 0 | U56: 0 | V56: 0
C57: =WINEP_Schemes!C56 -> GMC00297 | D57: =WINEP_Schemes!D56 -> 7UU200720 | E57: =WINEP_Schemes!E56 -> Great Warford WwTW | F57: =WINEP_Schemes!F56 -> £ per pe | G57: =WINEP_Schemes!G56 -> 1e-06 | H57: =WINEP_Schemes!H56 -> 0 | I57: =WINEP_Schemes!J56 -> 2866 | J57: =WINEP_Schemes!I56 -> 420 | K57: =WINEP_Schemes!K56 -> 2866 | L57: =WINEP_Schemes!L56 -> 1 | M57: =WINEP_Schemes!M56 -> WWN | N57: =WINEP_Schemes!N56 -> 1 | O57: 1.20372 | P57: 1.20372 | Q57: 0 | R57: 0 | S57: 0 | T57: 0 | U57: 0 | V57: 0
C58: =WINEP_Schemes!C57 -> GMC00067 | D58: =WINEP_Schemes!D57 -> 7UU200516 | E58: =WINEP_Schemes!E57 -> Hazel Grove WwTW | F58: =WINEP_Schemes!F57 -> £ per pe | G58: =WINEP_Schemes!G57 -> 1e-06 | H58: =WINEP_Schemes!H57 -> 0 | I58: =WINEP_Schemes!J57 -> 46662 | J58: =WINEP_Schemes!I57 -> 36 | K58: =WINEP_Schemes!K57 -> 0 | L58: =WINEP_Schemes!L57 -> 1 | M58: =WINEP_Schemes!M57 -> WWN | N58: =WINEP_Schemes!N57 -> 0 | O58: 1.679832 | P58: 0 | Q58: -1.679832 | R58: 0 | S58: 0 | T58: -1.679832 | U58: 0 | V58: 0
C59: =WINEP_Schemes!C58 -> GMC00330 | D59: =WINEP_Schemes!D58 -> 7UU200753 | E59: =WINEP_Schemes!E58 -> Helsby WwTW | F59: =WINEP_Schemes!F58 -> £ per pe | G59: =WINEP_Schemes!G58 -> 1e-06 | H59: =WINEP_Schemes!H58 -> 0 | I59: =WINEP_Schemes!J58 -> 19789 | J59: =WINEP_Schemes!I58 -> 342 | K59: =WINEP_Schemes!K58 -> 19789 | L59: =WINEP_Schemes!L58 -> 1 | M59: =WINEP_Schemes!M58 -> WWN | N59: =WINEP_Schemes!N58 -> 1 | O59: 6.767838 | P59: 6.767838 | Q59: 0 | R59: 0 | S59: 0 | T59: 0 | U59: 0 | V59: 0
C60: =WINEP_Schemes!C59 -> GMC00393 | D60: =WINEP_Schemes!D59 -> 7UU200816 | E60: =WINEP_Schemes!E59 -> Helsby WwTW | F60: =WINEP_Schemes!F59 -> £ | G60: =WINEP_Schemes!G59 -> 1e-06 | H60: =WINEP_Schemes!H59 -> 0 | I60: =WINEP_Schemes!J59 -> 1 | J60: =WINEP_Schemes!I59 -> 4194 | K60: =WINEP_Schemes!K59 -> 1 | L60: =WINEP_Schemes!L59 -> 1 | M60: =WINEP_Schemes!M59 -> WWN | N60: =WINEP_Schemes!N59 -> 1 | O60: 0.004194 | P60: 0.004194 | Q60: 0 | R60: 0 | S60: 0 | T60: 0 | U60: 0 | V60: 0
C61: =WINEP_Schemes!C60 -> GMC00394 | D61: =WINEP_Schemes!D60 -> 7UU200817 | E61: =WINEP_Schemes!E60 -> Helsby WwTW | F61: =WINEP_Schemes!F60 -> £ | G61: =WINEP_Schemes!G60 -> 1e-06 | H61: =WINEP_Schemes!H60 -> 0 | I61: =WINEP_Schemes!J60 -> 1 | J61: =WINEP_Schemes!I60 -> 4194 | K61: =WINEP_Schemes!K60 -> 1 | L61: =WINEP_Schemes!L60 -> 1 | M61: =WINEP_Schemes!M60 -> WWN | N61: =WINEP_Schemes!N60 -> 1 | O61: 0.004194 | P61: 0.004194 | Q61: 0 | R61: 0 | S61: 0 | T61: 0 | U61: 0 | V61: 0
C62: =WINEP_Schemes!C61 -> GMC00298 | D62: =WINEP_Schemes!D61 -> 7UU200721 | E62: =WINEP_Schemes!E61 -> High Legh WwTW | F62: =WINEP_Schemes!F61 -> £ per pe | G62: =WINEP_Schemes!G61 -> 1e-06 | H62: =WINEP_Schemes!H61 -> 0 | I62: =WINEP_Schemes!J61 -> 850 | J62: =WINEP_Schemes!I61 -> 4155 | K62: =WINEP_Schemes!K61 -> 850 | L62: =WINEP_Schemes!L61 -> 1 | M62: =WINEP_Schemes!M61 -> WWN | N62: =WINEP_Schemes!N61 -> 1 | O62: 3.53175 | P62: 3.53175 | Q62: 0 | R62: =IF($M62 = R$9, $Q62, 0) -> 0 | S62: 0 | T62: 0 | U62: 0 | V62: 0
C63: =WINEP_Schemes!C62 -> GMC00316 | D63: =WINEP_Schemes!D62 -> 7UU200739 | E63: =WINEP_Schemes!E62 -> Holmes Chapel WwTW | F63: =WINEP_Schemes!F62 -> £ per pe | G63: =WINEP_Schemes!G62 -> 1e-06 | H63: =WINEP_Schemes!H62 -> 0 | I63: =WINEP_Schemes!J62 -> 11090 | J63: =WINEP_Schemes!I62 -> 342 | K63: =WINEP_Schemes!K62 -> 11090 | L63: =WINEP_Schemes!L62 -> 1 | M63: =WINEP_Schemes!M62 -> WWN | N63: =WINEP_Schemes!N62 -> 1 | O63: 3.79278 | P63: 3.79278 | Q63: 0 | R63: 0 | S63: 0 | T63: 0 | U63: 0 | V63: 0
C64: =WINEP_Schemes!C63 -> CLA00488 | D64: =WINEP_Schemes!D63 -> 7UU200472 | E64: =WINEP_Schemes!E63 -> Horwich WwTW | F64: =WINEP_Schemes!F63 -> £ per pe | G64: =WINEP_Schemes!G63 -> 1e-06 | H64: =WINEP_Schemes!H63 -> 0 | I64: =WINEP_Schemes!J63 -> 26987 | J64: =WINEP_Schemes!I63 -> 106 | K64: =WINEP_Schemes!K63 -> 26987 | L64: =WINEP_Schemes!L63 -> 1 | M64: =WINEP_Schemes!M63 -> WWN | N64: =WINEP_Schemes!N63 -> 1 | O64: 2.860622 | P64: 2.860622 | Q64: 0 | R64: 0 | S64: 0 | T64: 0 | U64: 0 | V64: 0
C65: =WINEP_Schemes!C64 -> CLA00483 | D65: =WINEP_Schemes!D64 -> 7UU200467 | E65: =WINEP_Schemes!E64 -> Hyndburn WwTW | F65: =WINEP_Schemes!F64 -> 0 | G65: =WINEP_Schemes!G64 -> 0 | H65: =WINEP_Schemes!H64 -> 0 | I65: =WINEP_Schemes!J64 -> 0 | J65: =WINEP_Schemes!I64 -> 0 | K65: =WINEP_Schemes!K64 -> 0 | L65: =WINEP_Schemes!L64 -> 0 | M65: =WINEP_Schemes!M64 -> 0 | N65: =WINEP_Schemes!N64 -> 0 | O65: 0 | P65: 0 | Q65: 0 | R65: 0 | S65: 0 | T65: 0 | U65: 0 | V65: 0
C66: =WINEP_Schemes!C65 -> CLA00484 | D66: =WINEP_Schemes!D65 -> 7UU200468 | E66: =WINEP_Schemes!E65 -> Hyndburn WwTW | F66: =WINEP_Schemes!F65 -> 0 | G66: =WINEP_Schemes!G65 -> 0 | H66: =WINEP_Schemes!H65 -> 0 | I66: =WINEP_Schemes!J65 -> 0 | J66: =WINEP_Schemes!I65 -> 0 | K66: =WINEP_Schemes!K65 -> 0 | L66: =WINEP_Schemes!L65 -> 0 | M66: =WINEP_Schemes!M65 -> 0 | N66: =WINEP_Schemes!N65 -> 0 | O66: 0 | P66: 0 | Q66: 0 | R66: 0 | S66: 0 | T66: 0 | U66: 0 | V66: 0
C67: =WINEP_Schemes!C66 -> GMC00020 | D67: =WINEP_Schemes!D66 -> 7UU100072 | E67: =WINEP_Schemes!E66 -> Implementation of flow changes at Clowbridge Reservoir as agreed in the final stage 3 investigation in AMP6. | F67: =WINEP_Schemes!F66 -> £ | G67: =WINEP_Schemes!G66 -> 1e-06 | H67: =WINEP_Schemes!H66 -> 0 | I67: =WINEP_Schemes!J66 -> 1 | J67: =WINEP_Schemes!I66 -> 76000 | K67: =WINEP_Schemes!K66 -> 1 | L67: =WINEP_Schemes!L66 -> 1 | M67: =WINEP_Schemes!M66 -> WR | N67: =WINEP_Schemes!N66 -> 1 | O67: 0.076 | P67: 0.076 | Q67: 0 | R67: 0 | S67: 0 | T67: 0 | U67: 0 | V67: 0
C68: =WINEP_Schemes!C67 -> GMC00317 | D68: =WINEP_Schemes!D67 -> 7UU200740 | E68: =WINEP_Schemes!E67 -> Kidsgrove WwTW | F68: =WINEP_Schemes!F67 -> £ per pe | G68: =WINEP_Schemes!G67 -> 1e-06 | H68: =WINEP_Schemes!H67 -> 0 | I68: =WINEP_Schemes!J67 -> 25470 | J68: =WINEP_Schemes!I67 -> 106 | K68: =WINEP_Schemes!K67 -> 25470 | L68: =WINEP_Schemes!L67 -> 1 | M68: =WINEP_Schemes!M67 -> WWN | N68: =WINEP_Schemes!N67 -> 1 | O68: 2.69982 | P68: 2.69982 | Q68: 0 | R68: 0 | S68: 0 | T68: 0 | U68: 0 | V68: 0
C69: =WINEP_Schemes!C68 -> GMC00064 | D69: =WINEP_Schemes!D68 -> 7UU200513 | E69: =WINEP_Schemes!E68 -> Knutsford WwTW | F69: =WINEP_Schemes!F68 -> £ per pe | G69: =WINEP_Schemes!G68 -> 1e-06 | H69: =WINEP_Schemes!H68 -> 0 | I69: =WINEP_Schemes!J68 -> 14178 | J69: =WINEP_Schemes!I68 -> 156 | K69: =WINEP_Schemes!K68 -> 0 | L69: =WINEP_Schemes!L68 -> 1 | M69: =WINEP_Schemes!M68 -> WWN | N69: =WINEP_Schemes!N68 -> 0 | O69: 2.211768 | P69: 0 | Q69: -2.211768 | R69: 0 | S69: 0 | T69: -2.211768 | U69: 0 | V69: 0
C70: =WINEP_Schemes!C69 -> GMC00299 | D70: =WINEP_Schemes!D69 -> 7UU200722 | E70: =WINEP_Schemes!E69 -> Knutsford WwTW | F70: =WINEP_Schemes!F69 -> £ per pe | G70: =WINEP_Schemes!G69 -> 1e-06 | H70: =WINEP_Schemes!H69 -> 0 | I70: =WINEP_Schemes!J69 -> 14178 | J70: =WINEP_Schemes!I69 -> 342 | K70: =WINEP_Schemes!K69 -> 14178 | L70: =WINEP_Schemes!L69 -> 1 | M70: =WINEP_Schemes!M69 -> WWN | N70: =WINEP_Schemes!N69 -> 1 | O70: 4.848876 | P70: 4.848876 | Q70: 0 | R70: 0 | S70: 0 | T70: 0 | U70: 0 | V70: 0
C71: =WINEP_Schemes!C70 -> GMC00318 | D71: =WINEP_Schemes!D70 -> 7UU200741 | E71: =WINEP_Schemes!E70 -> Lawton Gate WwTW | F71: =WINEP_Schemes!F70 -> £ per pe | G71: =WINEP_Schemes!G70 -> 1e-06 | H71: =WINEP_Schemes!H70 -> 0 | I71: =WINEP_Schemes!J70 -> 6811 | J71: =WINEP_Schemes!I70 -> 798 | K71: =WINEP_Schemes!K70 -> 6811 | L71: =WINEP_Schemes!L70 -> 1 | M71: =WINEP_Schemes!M70 -> WWN | N71: =WINEP_Schemes!N70 -> 1 | O71: 5.435178 | P71: 5.435178 | Q71: 0 | R71: 0 | S71: 0 | T71: 0 | U71: 0 | V71: 0
C72: =WINEP_Schemes!C71 -> GMC00324 | D72: =WINEP_Schemes!D71 -> 7UU200747 | E72: =WINEP_Schemes!E71 -> Leigh WwTW | F72: =WINEP_Schemes!F71 -> £ per pe | G72: =WINEP_Schemes!G71 -> 1e-06 | H72: =WINEP_Schemes!H71 -> 0 | I72: =WINEP_Schemes!J71 -> 80282 | J72: =WINEP_Schemes!I71 -> 106 | K72: =WINEP_Schemes!K71 -> 80282 | L72: =WINEP_Schemes!L71 -> 1 | M72: =WINEP_Schemes!M71 -> WWN | N72: =WINEP_Schemes!N71 -> 1 | O72: 8.509892 | P72: 8.509892 | Q72: 0 | R72: 0 | S72: 0 | T72: 0 | U72: 0 | V72: 0
C73: =WINEP_Schemes!C72 -> CLA00489 | D73: =WINEP_Schemes!D72 -> 7UU200473 | E73: =WINEP_Schemes!E72 -> Leyland WwTW | F73: =WINEP_Schemes!F72 -> £ per pe | G73: =WINEP_Schemes!G72 -> 1e-06 | H73: =WINEP_Schemes!H72 -> 0 | I73: =WINEP_Schemes!J72 -> 47699 | J73: =WINEP_Schemes!I72 -> 106 | K73: =WINEP_Schemes!K72 -> 47699 | L73: =WINEP_Schemes!L72 -> 1 | M73: =WINEP_Schemes!M72 -> WWN | N73: =WINEP_Schemes!N72 -> 1 | O73: 5.056094 | P73: 5.056094 | Q73: 0 | R73: 0 | S73: 0 | T73: 0 | U73: 0 | V73: 0
C74: =WINEP_Schemes!C73 -> GMC00015 | D74: =WINEP_Schemes!D73 -> 7UU200502 | E74: =WINEP_Schemes!E73 -> Little Budworth North WwTW | F74: =WINEP_Schemes!F73 -> £ per pe | G74: =WINEP_Schemes!G73 -> 1e-06 | H74: =WINEP_Schemes!H73 -> 0 | I74: =WINEP_Schemes!J73 -> 98 | J74: =WINEP_Schemes!I73 -> 4155 | K74: =WINEP_Schemes!K73 -> 98 | L74: =WINEP_Schemes!L73 -> 1 | M74: =WINEP_Schemes!M73 -> WWN | N74: =WINEP_Schemes!N73 -> 1 | O74: 0.40719 | P74: 0.40719 | Q74: 0 | R74: 0 | S74: 0 | T74: 0 | U74: 0 | V74: 0
C75: =WINEP_Schemes!C74 -> GMC00063 | D75: =WINEP_Schemes!D74 -> 7UU200512 | E75: =WINEP_Schemes!E74 -> Macclesfield WwTW | F75: =WINEP_Schemes!F74 -> £ per pe | G75: =WINEP_Schemes!G74 -> 1e-06 | H75: =WINEP_Schemes!H74 -> 0 | I75: =WINEP_Schemes!J74 -> 74029 | J75: =WINEP_Schemes!I74 -> 36 | K75: =WINEP_Schemes!K74 -> 0 | L75: =WINEP_Schemes!L74 -> 1 | M75: =WINEP_Schemes!M74 -> WWN | N75: =WINEP_Schemes!N74 -> 0 | O75: 2.665044 | P75: 0 | Q75: -2.665044 | R75: 0 | S75: 0 | T75: -2.665044 | U75: 0 | V75: 0
C76: =WINEP_Schemes!C75 -> GMC00300 | D76: =WINEP_Schemes!D75 -> 7UU200723 | E76: =WINEP_Schemes!E75 -> Macclesfield WwTW | F76: =WINEP_Schemes!F75 -> £ per pe | G76: =WINEP_Schemes!G75 -> 1e-06 | H76: =WINEP_Schemes!H75 -> 0 | I76: =WINEP_Schemes!J75 -> 74029 | J76: =WINEP_Schemes!I75 -> 106 | K76: =WINEP_Schemes!K75 -> 74029 | L76: =WINEP_Schemes!L75 -> 1 | M76: =WINEP_Schemes!M75 -> WWN | N76: =WINEP_Schemes!N75 -> 1 | O76: 7.847074 | P76: 7.847074 | Q76: 0 | R76: 0 | S76: 0 | T76: 0 | U76: 0 | V76: 0
C77: =WINEP_Schemes!C76 -> GMC00352 | D77: =WINEP_Schemes!D76 -> 7UU200775 | E77: =WINEP_Schemes!E76 -> Madeley WwTW | F77: =WINEP_Schemes!F76 -> £ per pe | G77: =WINEP_Schemes!G76 -> 1e-06 | H77: =WINEP_Schemes!H76 -> 0 | I77: =WINEP_Schemes!J76 -> 5203 | J77: =WINEP_Schemes!I76 -> 798 | K77: =WINEP_Schemes!K76 -> 5203 | L77: =WINEP_Schemes!L76 -> 1 | M77: =WINEP_Schemes!M76 -> WWN | N77: =WINEP_Schemes!N76 -> 1 | O77: 4.151994 | P77: 4.151994 | Q77: 0 | R77: 0 | S77: 0 | T77: 0 | U77: 0 | V77: 0
C78: =WINEP_Schemes!C77 -> GMC00494 | D78: =WINEP_Schemes!D77 -> 7UU200911 | E78: =WINEP_Schemes!E77 -> Marton North WwTW | F78: =WINEP_Schemes!F77 -> £ per pe | G78: =WINEP_Schemes!G77 -> 1e-06 | H78: =WINEP_Schemes!H77 -> 0 | I78: =WINEP_Schemes!J77 -> 321 | J78: =WINEP_Schemes!I77 -> 4155 | K78: =WINEP_Schemes!K77 -> 321 | L78: =WINEP_Schemes!L77 -> 1 | M78: =WINEP_Schemes!M77 -> WWN | N78: =WINEP_Schemes!N77 -> 1 | O78: 1.333755 | P78: 1.333755 | Q78: 0 | R78: 0 | S78: 0 | T78: 0 | U78: 0 | V78: 0
C79: =WINEP_Schemes!C78 -> CLA00485 | D79: =WINEP_Schemes!D78 -> 7UU200469 | E79: =WINEP_Schemes!E78 -> Mere Brow WwTW | F79: =WINEP_Schemes!F78 -> £ per pe | G79: =WINEP_Schemes!G78 -> 1e-06 | H79: =WINEP_Schemes!H78 -> 0 | I79: =WINEP_Schemes!J78 -> 4191 | J79: =WINEP_Schemes!I78 -> 798 | K79: =WINEP_Schemes!K78 -> 4191 | L79: =WINEP_Schemes!L78 -> 1 | M79: =WINEP_Schemes!M78 -> WWN | N79: =WINEP_Schemes!N78 -> 1 | O79: 3.344418 | P79: 3.344418 | Q79: 0 | R79: 0 | S79: 0 | T79: 0 | U79: 0 | V79: 0
C80: =WINEP_Schemes!C79 -> GMC00319 | D80: =WINEP_Schemes!D79 -> 7UU200742 | E80: =WINEP_Schemes!E79 -> Middlewich WwTW | F80: =WINEP_Schemes!F79 -> £ per pe | G80: =WINEP_Schemes!G79 -> 1e-06 | H80: =WINEP_Schemes!H79 -> 0 | I80: =WINEP_Schemes!J79 -> 16217 | J80: =WINEP_Schemes!I79 -> 342 | K80: =WINEP_Schemes!K79 -> 16217 | L80: =WINEP_Schemes!L79 -> 1 | M80: =WINEP_Schemes!M79 -> WWN | N80: =WINEP_Schemes!N79 -> 1 | O80: =I80 * J80 * G80 -> 5.546214 | P80: =N80 * O80 -> 5.546214 | Q80: =IF(L80 = 0, P80, (N80 - 1) * O80) -> 0 | R80: 0 | S80: 0 | T80: 0 | U80: 0 | V80: 0
C81: =WINEP_Schemes!C80 -> GMC00301 | D81: =WINEP_Schemes!D80 -> 7UU200724 | E81: =WINEP_Schemes!E80 -> Mobberley WwTW | F81: =WINEP_Schemes!F80 -> £ per pe | G81: =WINEP_Schemes!G80 -> 1e-06 | H81: =WINEP_Schemes!H80 -> 0 | I81: =WINEP_Schemes!J80 -> 2830 | J81: =WINEP_Schemes!I80 -> 420 | K81: =WINEP_Schemes!K80 -> 2830 | L81: =WINEP_Schemes!L80 -> 1 | M81: =WINEP_Schemes!M80 -> WWN | N81: =WINEP_Schemes!N80 -> 1 | O81: 1.1886 | P81: 1.1886 | Q81: 0 | R81: 0 | S81: 0 | T81: 0 | U81: 0 | V81: 0
C82: =WINEP_Schemes!C81 -> GMC00341 | D82: =WINEP_Schemes!D81 -> 7UU200764 | E82: =WINEP_Schemes!E81 -> Mossley WwTW | F82: =WINEP_Schemes!F81 -> £ per pe | G82: =WINEP_Schemes!G81 -> 1e-06 | H82: =WINEP_Schemes!H81 -> 0 | I82: =WINEP_Schemes!J81 -> 12784 | J82: =WINEP_Schemes!I81 -> 342 | K82: =WINEP_Schemes!K81 -> 12784 | L82: =WINEP_Schemes!L81 -> 1 | M82: =WINEP_Schemes!M81 -> WWN | N82: =WINEP_Schemes!N81 -> 1 | O82: 4.372128 | P82: 4.372128 | Q82: 0 | R82: 0 | S82: 0 | T82: 0 | U82: 0 | V82: 0
C83: =WINEP_Schemes!C82 -> GMC00515 | D83: =WINEP_Schemes!D82 -> 7UU300125 | E83: =WINEP_Schemes!E82 -> Mossley WwTW Inlet CSO | F83: =WINEP_Schemes!F82 -> £ per m3 | G83: =WINEP_Schemes!G82 -> 1e-06 | H83: =WINEP_Schemes!H82 -> 0 | I83: =WINEP_Schemes!J82 -> 500 | J83: =WINEP_Schemes!I82 -> 5768 | K83: =WINEP_Schemes!K82 -> 500 | L83: =WINEP_Schemes!L82 -> 1 | M83: =WINEP_Schemes!M82 -> WWN | N83: =WINEP_Schemes!N82 -> 1 | O83: 2.884 | P83: 2.884 | Q83: 0 | R83: 0 | S83: 0 | T83: 0 | U83: 0 | V83: 0
C84: =WINEP_Schemes!C83 -> GMC00403 | D84: =WINEP_Schemes!D83 -> 7UU200826 | E84: =WINEP_Schemes!E83 -> Mossley WwTW Storm Tanks | F84: =WINEP_Schemes!F83 -> £ per m3 | G84: =WINEP_Schemes!G83 -> 1e-06 | H84: =WINEP_Schemes!H83 -> 0 | I84: =WINEP_Schemes!J83 -> 1250 | J84: =WINEP_Schemes!I83 -> 1840 | K84: =WINEP_Schemes!K83 -> 1250 | L84: =WINEP_Schemes!L83 -> 1 | M84: =WINEP_Schemes!M83 -> WWN | N84: =WINEP_Schemes!N83 -> 1 | O84: 2.3 | P84: 2.3 | Q84: 0 | R84: 0 | S84: 0 | T84: 0 | U84: 0 | V84: 0
C85: =WINEP_Schemes!C84 -> GMC00372 | D85: =WINEP_Schemes!D84 -> 7UU200795 | E85: =WINEP_Schemes!E84 -> Old Eagley CSO BOL0073 | F85: =WINEP_Schemes!F84 -> £ per m3 | G85: =WINEP_Schemes!G84 -> 1e-06 | H85: =WINEP_Schemes!H84 -> 0 | I85: =WINEP_Schemes!J84 -> 570 | J85: =WINEP_Schemes!I84 -> 3269 | K85: =WINEP_Schemes!K84 -> 570 | L85: =WINEP_Schemes!L84 -> 1 | M85: =WINEP_Schemes!M84 -> WWN | N85: =WINEP_Schemes!N84 -> 1 | O85: 1.86333 | P85: 1.86333 | Q85: 0 | R85: 0 | S85: 0 | T85: 0 | U85: 0 | V85: 0
C86: =WINEP_Schemes!C85 -> GMC00071 | D86: =WINEP_Schemes!D85 -> 7UU200520 | E86: =WINEP_Schemes!E85 -> Oldham WwTW | F86: =WINEP_Schemes!F85 -> £ per pe | G86: =WINEP_Schemes!G85 -> 1e-06 | H86: =WINEP_Schemes!H85 -> 0 | I86: =WINEP_Schemes!J85 -> 161356 | J86: =WINEP_Schemes!I85 -> 36 | K86: =WINEP_Schemes!K85 -> 0 | L86: =WINEP_Schemes!L85 -> 1 | M86: =WINEP_Schemes!M85 -> WWN | N86: =WINEP_Schemes!N85 -> 0 | O86: 5.808816 | P86: 0 | Q86: -5.808816 | R86: 0 | S86: 0 | T86: -5.808816 | U86: 0 | V86: 0
C87: =WINEP_Schemes!C86 -> CLA00476 | D87: =WINEP_Schemes!D86 -> 7UU200460 | E87: =WINEP_Schemes!E86 -> PEN0056 | F87: =WINEP_Schemes!F86 -> £ per m3 | G87: =WINEP_Schemes!G86 -> 1e-06 | H87: =WINEP_Schemes!H86 -> 0 | I87: =WINEP_Schemes!J86 -> 1500 | J87: =WINEP_Schemes!I86 -> 1840 | K87: =WINEP_Schemes!K86 -> 1500 | L87: =WINEP_Schemes!L86 -> 1 | M87: =WINEP_Schemes!M86 -> WWN | N87: =WINEP_Schemes!N86 -> 1 | O87: 2.76 | P87: 2.76 | Q87: 0 | R87: 0 | S87: 0 | T87: 0 | U87: 0 | V87: 0
C88: =WINEP_Schemes!C87 -> CLA00477 | D88: =WINEP_Schemes!D87 -> 7UU200461 | E88: =WINEP_Schemes!E87 -> PEN0058 | F88: =WINEP_Schemes!F87 -> £ per m3 | G88: =WINEP_Schemes!G87 -> 1e-06 | H88: =WINEP_Schemes!H87 -> 0 | I88: =WINEP_Schemes!J87 -> 350 | J88: =WINEP_Schemes!I87 -> 5768 | K88: =WINEP_Schemes!K87 -> 350 | L88: =WINEP_Schemes!L87 -> 1 | M88: =WINEP_Schemes!M87 -> WWN | N88: =WINEP_Schemes!N87 -> 1 | O88: 2.0188 | P88: 2.0188 | Q88: 0 | R88: 0 | S88: 0 | T88: 0 | U88: 0 | V88: 0
C89: =WINEP_Schemes!C88 -> GMC00027 | D89: =WINEP_Schemes!D88 -> 7UU100079 | E89: =WINEP_Schemes!E88 -> Readycon Dean Reservoir: Continuation and final Implementation of AMP6 flow changes | F89: =WINEP_Schemes!F88 -> £ | G89: =WINEP_Schemes!G88 -> 1e-06 | H89: =WINEP_Schemes!H88 -> 0 | I89: =WINEP_Schemes!J88 -> 1 | J89: =WINEP_Schemes!I88 -> 50000 | K89: =WINEP_Schemes!K88 -> 0 | L89: =WINEP_Schemes!L88 -> 1 | M89: =WINEP_Schemes!M88 -> WR | N89: =WINEP_Schemes!N88 -> 0 | O89: 0.05 | P89: 0 | Q89: -0.05 | R89: -0.05 | S89: 0 | T89: 0 | U89: 0 | V89: 0
C90: =WINEP_Schemes!C89 -> CLA00531 | D90: =WINEP_Schemes!D89 -> 7UU200485 | E90: =WINEP_Schemes!E89 -> River Hodder - Investigation to identify and develop measures to mitigate the impact of Stock Reservoir on physical habitat. | F90: =WINEP_Schemes!F89 -> £ | G90: =WINEP_Schemes!G89 -> 1e-06 | H90: =WINEP_Schemes!H89 -> 0 | I90: =WINEP_Schemes!J89 -> 1 | J90: =WINEP_Schemes!I89 -> 30000 | K90: =WINEP_Schemes!K89 -> 1 | L90: =WINEP_Schemes!L89 -> 1 | M90: =WINEP_Schemes!M89 -> WR | N90: =WINEP_Schemes!N89 -> 1 | O90: 0.03 | P90: 0.03 | Q90: 0 | R90: 0 | S90: 0 | T90: 0 | U90: 0 | V90: 0
C91: =WINEP_Schemes!C90 -> GMC00380 | D91: =WINEP_Schemes!D90 -> 7UU200803 | E91: =WINEP_Schemes!E90 -> Rossendale WwTW | F91: =WINEP_Schemes!F90 -> £ | G91: =WINEP_Schemes!G90 -> 1e-06 | H91: =WINEP_Schemes!H90 -> 0 | I91: =WINEP_Schemes!J90 -> 1 | J91: =WINEP_Schemes!I90 -> 146519 | K91: =WINEP_Schemes!K90 -> 1 | L91: =WINEP_Schemes!L90 -> 1 | M91: =WINEP_Schemes!M90 -> WWN | N91: =WINEP_Schemes!N90 -> 1 | O91: 0.146519 | P91: 0.146519 | Q91: 0 | R91: 0 | S91: 0 | T91: 0 | U91: 0 | V91: 0
C92: =WINEP_Schemes!C91 -> GMC00381 | D92: =WINEP_Schemes!D91 -> 7UU200804 | E92: =WINEP_Schemes!E91 -> Rossendale WwTW | F92: =WINEP_Schemes!F91 -> £ | G92: =WINEP_Schemes!G91 -> 1e-06 | H92: =WINEP_Schemes!H91 -> 0 | I92: =WINEP_Schemes!J91 -> 1 | J92: =WINEP_Schemes!I91 -> 146519 | K92: =WINEP_Schemes!K91 -> 1 | L92: =WINEP_Schemes!L91 -> 1 | M92: =WINEP_Schemes!M91 -> WWN | N92: =WINEP_Schemes!N91 -> 1 | O92: 0.146519 | P92: 0.146519 | Q92: 0 | R92: 0 | S92: 0 | T92: 0 | U92: 0 | V92: 0
C93: =WINEP_Schemes!C92 -> GMC00382 | D93: =WINEP_Schemes!D92 -> 7UU200805 | E93: =WINEP_Schemes!E92 -> Rossendale WwTW Storm Tanks | F93: =WINEP_Schemes!F92 -> £ per m3 | G93: =WINEP_Schemes!G92 -> 1e-06 | H93: =WINEP_Schemes!H92 -> 0 | I93: =WINEP_Schemes!J92 -> 10500 | J93: =WINEP_Schemes!I92 -> 946 | K93: =WINEP_Schemes!K92 -> 10500 | L93: =WINEP_Schemes!L92 -> 1 | M93: =WINEP_Schemes!M92 -> WWN | N93: =WINEP_Schemes!N92 -> 1 | O93: 9.933 | P93: 9.933 | Q93: 0 | R93: 0 | S93: 0 | T93: 0 | U93: 0 | V93: 0
C94: =WINEP_Schemes!C93 -> GMC00373 | D94: =WINEP_Schemes!D93 -> 7UU200796 | E94: =WINEP_Schemes!E93 -> Royal Oak CSO BOL0129 | F94: =WINEP_Schemes!F93 -> £ per m3 | G94: =WINEP_Schemes!G93 -> 1e-06 | H94: =WINEP_Schemes!H93 -> 0 | I94: =WINEP_Schemes!J93 -> 2600 | J94: =WINEP_Schemes!I93 -> 1840 | K94: =WINEP_Schemes!K93 -> 2600 | L94: =WINEP_Schemes!L93 -> 1 | M94: =WINEP_Schemes!M93 -> WWN | N94: =WINEP_Schemes!N93 -> 1 | O94: 4.784 | P94: 4.784 | Q94: 0 | R94: 0 | S94: 0 | T94: 0 | U94: 0 | V94: 0
C95: =WINEP_Schemes!C94 -> GMC00353 | D95: =WINEP_Schemes!D94 -> 7UU200776 | E95: =WINEP_Schemes!E94 -> Rushton WwTW | F95: =WINEP_Schemes!F94 -> £ per pe | G95: =WINEP_Schemes!G94 -> 1e-06 | H95: =WINEP_Schemes!H94 -> 0 | I95: =WINEP_Schemes!J94 -> 313 | J95: =WINEP_Schemes!I94 -> 4155 | K95: =WINEP_Schemes!K94 -> 313 | L95: =WINEP_Schemes!L94 -> 1 | M95: =WINEP_Schemes!M94 -> WWN | N95: =WINEP_Schemes!N94 -> 1 | O95: 1.300515 | P95: 1.300515 | Q95: 0 | R95: 0 | S95: 0 | T95: 0 | U95: 0 | V95: 0
C96: =WINEP_Schemes!C95 -> GMC00342 | D96: =WINEP_Schemes!D95 -> 7UU200765 | E96: =WINEP_Schemes!E95 -> Saddleworth WwTW | F96: =WINEP_Schemes!F95 -> £ per pe | G96: =WINEP_Schemes!G95 -> 1e-06 | H96: =WINEP_Schemes!H95 -> 0 | I96: =WINEP_Schemes!J95 -> 17992 | J96: =WINEP_Schemes!I95 -> 342 | K96: =WINEP_Schemes!K95 -> 17992 | L96: =WINEP_Schemes!L95 -> 1 | M96: =WINEP_Schemes!M95 -> WWN | N96: =WINEP_Schemes!N95 -> 1 | O96: 6.153264 | P96: 6.153264 | Q96: 0 | R96: 0 | S96: 0 | T96: 0 | U96: 0 | V96: 0
C97: =WINEP_Schemes!C96 -> GMC00512 | D97: =WINEP_Schemes!D96 -> 7UU300122 | E97: =WINEP_Schemes!E96 -> Saddleworth WwTW | F97: =WINEP_Schemes!F96 -> £ | G97: =WINEP_Schemes!G96 -> 1e-06 | H97: =WINEP_Schemes!H96 -> 0 | I97: =WINEP_Schemes!J96 -> 1 | J97: =WINEP_Schemes!I96 -> 1849323 | K97: =WINEP_Schemes!K96 -> 1 | L97: =WINEP_Schemes!L96 -> 1 | M97: =WINEP_Schemes!M96 -> WWN | N97: =WINEP_Schemes!N96 -> 1 | O97: 1.849323 | P97: 1.849323 | Q97: 0 | R97: 0 | S97: 0 | T97: 0 | U97: 0 | V97: 0
C98: =WINEP_Schemes!C97 -> GMC00320 | D98: =WINEP_Schemes!D97 -> 7UU200743 | E98: =WINEP_Schemes!E97 -> Sandbach WwTW | F98: =WINEP_Schemes!F97 -> £ per pe | G98: =WINEP_Schemes!G97 -> 1e-06 | H98: =WINEP_Schemes!H97 -> 0 | I98: =WINEP_Schemes!J97 -> 19439 | J98: =WINEP_Schemes!I97 -> 342 | K98: =WINEP_Schemes!K97 -> 19439 | L98: =WINEP_Schemes!L97 -> 1 | M98: =WINEP_Schemes!M97 -> WWN | N98: =WINEP_Schemes!N97 -> 1 | O98: 6.648138 | P98: 6.648138 | Q98: 0 | R98: 0 | S98: 0 | T98: 0 | U98: 0 | V98: 0
C99: =WINEP_Schemes!C98 -> CLA00465 | D99: =WINEP_Schemes!D98 -> 7UU200449 | E99: =WINEP_Schemes!E98 -> Southwaite WwTW | F99: =WINEP_Schemes!F98 -> £ per pe | G99: =WINEP_Schemes!G98 -> 1e-06 | H99: =WINEP_Schemes!H98 -> 0 | I99: =WINEP_Schemes!J98 -> 160 | J99: =WINEP_Schemes!I98 -> 4155 | K99: =WINEP_Schemes!K98 -> 160 | L99: =WINEP_Schemes!L98 -> 1 | M99: =WINEP_Schemes!M98 -> WWN | N99: =WINEP_Schemes!N98 -> 1 | O99: 0.6648 | P99: 0.6648 | Q99: 0 | R99: 0 | S99: 0 | T99: 0 | U99: 0 | V99: 0
C100: =WINEP_Schemes!C99 -> GMC00072 | D100: =WINEP_Schemes!D99 -> 7UU200521 | E100: =WINEP_Schemes!E99 -> St Helens WwTW | F100: =WINEP_Schemes!F99 -> £ per pe | G100: =WINEP_Schemes!G99 -> 1e-06 | H100: =WINEP_Schemes!H99 -> 0 | I100: =WINEP_Schemes!J99 -> 131610 | J100: =WINEP_Schemes!I99 -> 36 | K100: =WINEP_Schemes!K99 -> 0 | L100: =WINEP_Schemes!L99 -> 1 | M100: =WINEP_Schemes!M99 -> WWN | N100: =WINEP_Schemes!N99 -> 0 | O100: 4.73796 | P100: 0 | Q100: -4.73796 | R100: 0 | S100: 0 | T100: -4.73796 | U100: 0 | V100: 0
C101: =WINEP_Schemes!C100 -> GMC00354 | D101: =WINEP_Schemes!D100 -> 7UU200777 | E101: =WINEP_Schemes!E100 -> Tarporley WwTW | F101: =WINEP_Schemes!F100 -> £ per pe | G101: =WINEP_Schemes!G100 -> 1e-06 | H101: =WINEP_Schemes!H100 -> 0 | I101: =WINEP_Schemes!J100 -> 2749 | J101: =WINEP_Schemes!I100 -> 798 | K101: =WINEP_Schemes!K100 -> 2749 | L101: =WINEP_Schemes!L100 -> 1 | M101: =WINEP_Schemes!M100 -> WWN | N101: =WINEP_Schemes!N100 -> 1 | O101: 2.193702 | P101: 2.193702 | Q101: 0 | R101: 0 | S101: 0 | T101: 0 | U101: 0 | V101: 0
C102: =WINEP_Schemes!C101 -> GMC00331 | D102: =WINEP_Schemes!D101 -> 7UU200754 | E102: =WINEP_Schemes!E101 -> Tarvin WwTW | F102: =WINEP_Schemes!F101 -> £ per pe | G102: =WINEP_Schemes!G101 -> 1e-06 | H102: =WINEP_Schemes!H101 -> 0 | I102: =WINEP_Schemes!J101 -> 7361 | J102: =WINEP_Schemes!I101 -> 798 | K102: =WINEP_Schemes!K101 -> 7361 | L102: =WINEP_Schemes!L101 -> 1 | M102: =WINEP_Schemes!M101 -> WWN | N102: =WINEP_Schemes!N101 -> 1 | O102: 5.874078 | P102: 5.874078 | Q102: 0 | R102: 0 | S102: 0 | T102: 0 | U102: 0 | V102: 0
C103: =WINEP_Schemes!C102 -> GMC00376 | D103: =WINEP_Schemes!D102 -> 7UU200799 | E103: =WINEP_Schemes!E102 -> Thicketford CSO BOL0229 | F103: =WINEP_Schemes!F102 -> £ per m3 | G103: =WINEP_Schemes!G102 -> 1e-06 | H103: =WINEP_Schemes!H102 -> 0 | I103: =WINEP_Schemes!J102 -> 240 | J103: =WINEP_Schemes!I102 -> 5768 | K103: =WINEP_Schemes!K102 -> 240 | L103: =WINEP_Schemes!L102 -> 1 | M103: =WINEP_Schemes!M102 -> WWN | N103: =WINEP_Schemes!N102 -> 1 | O103: 1.38432 | P103: 1.38432 | Q103: 0 | R103: 0 | S103: 0 | T103: 0 | U103: 0 | V103: 0
C104: =WINEP_Schemes!C103 -> GMC00374 | D104: =WINEP_Schemes!D103 -> 7UU200797 | E104: =WINEP_Schemes!E103 -> Timberbottom CSO BOL0153 | F104: =WINEP_Schemes!F103 -> £ per m3 | G104: =WINEP_Schemes!G103 -> 1e-06 | H104: =WINEP_Schemes!H103 -> 0 | I104: =WINEP_Schemes!J103 -> 750 | J104: =WINEP_Schemes!I103 -> 3269 | K104: =WINEP_Schemes!K103 -> 750 | L104: =WINEP_Schemes!L103 -> 1 | M104: =WINEP_Schemes!M103 -> WWN | N104: =WINEP_Schemes!N103 -> 1 | O104: 2.45175 | P104: 2.45175 | Q104: 0 | R104: 0 | S104: 0 | T104: 0 | U104: 0 | V104: 0
C105: =WINEP_Schemes!C104 -> GMC00325 | D105: =WINEP_Schemes!D104 -> 7UU200748 | E105: =WINEP_Schemes!E104 -> Tyldesley WwTW | F105: =WINEP_Schemes!F104 -> £ per pe | G105: =WINEP_Schemes!G104 -> 1e-06 | H105: =WINEP_Schemes!H104 -> 0 | I105: =WINEP_Schemes!J104 -> 30929 | J105: =WINEP_Schemes!I104 -> 106 | K105: =WINEP_Schemes!K104 -> 30929 | L105: =WINEP_Schemes!L104 -> 1 | M105: =WINEP_Schemes!M104 -> WWN | N105: =WINEP_Schemes!N104 -> 1 | O105: 3.278474 | P105: 3.278474 | Q105: 0 | R105: 0 | S105: 0 | T105: 0 | U105: 0 | V105: 0
C106: =WINEP_Schemes!C105 -> GMC00028 | D106: =WINEP_Schemes!D105 -> 7UU100080 | E106: =WINEP_Schemes!E105 -> Upper and Lower Castleshaw: Continuation and final implementation of adaptive management improvements at Castleshaw identified in AMP6, options appraisal | F106: =WINEP_Schemes!F105 -> £ | G106: =WINEP_Schemes!G105 -> 1e-06 | H106: =WINEP_Schemes!H105 -> 0 | I106: =WINEP_Schemes!J105 -> 1 | J106: =WINEP_Schemes!I105 -> 93000 | K106: =WINEP_Schemes!K105 -> 0 | L106: =WINEP_Schemes!L105 -> 1 | M106: =WINEP_Schemes!M105 -> WR | N106: =WINEP_Schemes!N105 -> 0 | O106: 0.093 | P106: 0 | Q106: -0.093 | R106: -0.093 | S106: 0 | T106: 0 | U106: 0 | V106: 0
C107: =WINEP_Schemes!C106 -> GMC00332 | D107: =WINEP_Schemes!D106 -> 7UU200755 | E107: =WINEP_Schemes!E106 -> Utkinton WwTW | F107: =WINEP_Schemes!F106 -> £ per pe | G107: =WINEP_Schemes!G106 -> 1e-06 | H107: =WINEP_Schemes!H106 -> 0 | I107: =WINEP_Schemes!J106 -> 415 | J107: =WINEP_Schemes!I106 -> 4155 | K107: =WINEP_Schemes!K106 -> 415 | L107: =WINEP_Schemes!L106 -> 1 | M107: =WINEP_Schemes!M106 -> WWN | N107: =WINEP_Schemes!N106 -> 1 | O107: 1.724325 | P107: 1.724325 | Q107: 0 | R107: 0 | S107: 0 | T107: 0 | U107: 0 | V107: 0
C108: =WINEP_Schemes!C107 -> GMC00333 | D108: =WINEP_Schemes!D107 -> 7UU200756 | E108: =WINEP_Schemes!E107 -> Waverton WwTW | F108: =WINEP_Schemes!F107 -> £ per pe | G108: =WINEP_Schemes!G107 -> 1e-06 | H108: =WINEP_Schemes!H107 -> 0 | I108: =WINEP_Schemes!J107 -> 2306 | J108: =WINEP_Schemes!I107 -> 798 | K108: =WINEP_Schemes!K107 -> 2306 | L108: =WINEP_Schemes!L107 -> 1 | M108: =WINEP_Schemes!M107 -> WWN | N108: =WINEP_Schemes!N107 -> 1 | O108: 1.840188 | P108: 1.840188 | Q108: 0 | R108: 0 | S108: 0 | T108: 0 | U108: 0 | V108: 0
C109: =WINEP_Schemes!C108 -> CLA00492 | D109: =WINEP_Schemes!D108 -> 7UU200476 | E109: =WINEP_Schemes!E108 -> Westhead WwTW | F109: =WINEP_Schemes!F108 -> £ per pe | G109: =WINEP_Schemes!G108 -> 1e-06 | H109: =WINEP_Schemes!H108 -> 0 | I109: =WINEP_Schemes!J108 -> 1837 | J109: =WINEP_Schemes!I108 -> 4155 | K109: =WINEP_Schemes!K108 -> 1837 | L109: =WINEP_Schemes!L108 -> 1 | M109: =WINEP_Schemes!M108 -> WWN | N109: =WINEP_Schemes!N108 -> 1 | O109: 7.632735 | P109: 7.632735 | Q109: 0 | R109: =IF($M109 = R$9, $Q109, 0) -> 0 | S109: 0 | T109: 0 | U109: 0 | V109: 0
C110: =WINEP_Schemes!C109 -> GMC00326 | D110: =WINEP_Schemes!D109 -> 7UU200749 | E110: =WINEP_Schemes!E109 -> Westhoughton WwTW | F110: =WINEP_Schemes!F109 -> £ per pe | G110: =WINEP_Schemes!G109 -> 1e-06 | H110: =WINEP_Schemes!H109 -> 0 | I110: =WINEP_Schemes!J109 -> 29430 | J110: =WINEP_Schemes!I109 -> 106 | K110: =WINEP_Schemes!K109 -> 29430 | L110: =WINEP_Schemes!L109 -> 1 | M110: =WINEP_Schemes!M109 -> WWN | N110: =WINEP_Schemes!N109 -> 1 | O110: =I110 * J110 * G110 -> 3.11958 | P110: =N110 * O110 -> 3.11958 | Q110: =IF(L110 = 0, P110, (N110 - 1) * O110) -> 0 | R110: 0 | S110: 0 | T110: 0 | U110: 0 | V110: 0
C111: =WINEP_Schemes!C110 -> GMC00069 | D111: =WINEP_Schemes!D110 -> 7UU200518 | E111: =WINEP_Schemes!E110 -> Whaley Bridge WwTW | F111: =WINEP_Schemes!F110 -> £ per pe | G111: =WINEP_Schemes!G110 -> 1e-06 | H111: =WINEP_Schemes!H110 -> 0 | I111: =WINEP_Schemes!J110 -> 38483 | J111: =WINEP_Schemes!I110 -> 36 | K111: =WINEP_Schemes!K110 -> 0 | L111: =WINEP_Schemes!L110 -> 1 | M111: =WINEP_Schemes!M110 -> WWN | N111: =WINEP_Schemes!N110 -> 0 | O111: 1.385388 | P111: 0 | Q111: -1.385388 | R111: 0 | S111: 0 | T111: -1.385388 | U111: 0 | V111: 0
C112: =WINEP_Schemes!C111 -> GMC00343 | D112: =WINEP_Schemes!D111 -> 7UU200766 | E112: =WINEP_Schemes!E111 -> Whaley Bridge WwTW | F112: =WINEP_Schemes!F111 -> £ per pe | G112: =WINEP_Schemes!G111 -> 1e-06 | H112: =WINEP_Schemes!H111 -> 0 | I112: =WINEP_Schemes!J111 -> 38483 | J112: =WINEP_Schemes!I111 -> 106 | K112: =WINEP_Schemes!K111 -> 38483 | L112: =WINEP_Schemes!L111 -> 1 | M112: =WINEP_Schemes!M111 -> WWN | N112: =WINEP_Schemes!N111 -> 1 | O112: 4.079198 | P112: 4.079198 | Q112: 0 | R112: 0 | S112: 0 | T112: 0 | U112: 0 | V112: 0
C113: =WINEP_Schemes!C112 -> GMC00495 | D113: =WINEP_Schemes!D112 -> 7UU200912 | E113: =WINEP_Schemes!E112 -> Whitegate WwTW | F113: =WINEP_Schemes!F112 -> £ per pe | G113: =WINEP_Schemes!G112 -> 1e-06 | H113: =WINEP_Schemes!H112 -> 0 | I113: =WINEP_Schemes!J112 -> 188 | J113: =WINEP_Schemes!I112 -> 4155 | K113: =WINEP_Schemes!K112 -> 188 | L113: =WINEP_Schemes!L112 -> 1 | M113: =WINEP_Schemes!M112 -> WWN | N113: =WINEP_Schemes!N112 -> 1 | O113: 0.78114 | P113: 0.78114 | Q113: 0 | R113: 0 | S113: 0 | T113: 0 | U113: 0 | V113: 0
C114: =WINEP_Schemes!C113 -> GMC00066 | D114: =WINEP_Schemes!D113 -> 7UU200515 | E114: =WINEP_Schemes!E113 -> Wilmslow WwTW | F114: =WINEP_Schemes!F113 -> £ per pe | G114: =WINEP_Schemes!G113 -> 1e-06 | H114: =WINEP_Schemes!H113 -> 0 | I114: =WINEP_Schemes!J113 -> 23711 | J114: =WINEP_Schemes!I113 -> 156 | K114: =WINEP_Schemes!K113 -> 0 | L114: =WINEP_Schemes!L113 -> 1 | M114: =WINEP_Schemes!M113 -> WWN | N114: =WINEP_Schemes!N113 -> 0 | O114: 3.698916 | P114: 0 | Q114: -3.698916 | R114: 0 | S114: 0 | T114: -3.698916 | U114: 0 | V114: 0
C115: =WINEP_Schemes!C114 -> GMC00306 | D115: =WINEP_Schemes!D114 -> 7UU200729 | E115: =WINEP_Schemes!E114 -> Wilmslow WwTW | F115: =WINEP_Schemes!F114 -> £ per pe | G115: =WINEP_Schemes!G114 -> 1e-06 | H115: =WINEP_Schemes!H114 -> 0 | I115: =WINEP_Schemes!J114 -> 23711 | J115: =WINEP_Schemes!I114 -> 156 | K115: =WINEP_Schemes!K114 -> 23711 | L115: =WINEP_Schemes!L114 -> 1 | M115: =WINEP_Schemes!M114 -> WWN | N115: =WINEP_Schemes!N114 -> 1 | O115: 3.698916 | P115: 3.698916 | Q115: 0 | R115: 0 | S115: 0 | T115: 0 | U115: 0 | V115: 0
C116: =WINEP_Schemes!C115 -> GMC00327 | D116: =WINEP_Schemes!D115 -> 7UU200750 | E116: =WINEP_Schemes!E115 -> Worsley WwTW | F116: =WINEP_Schemes!F115 -> £ per pe | G116: =WINEP_Schemes!G115 -> 1e-06 | H116: =WINEP_Schemes!H115 -> 0 | I116: =WINEP_Schemes!J115 -> 22886 | J116: =WINEP_Schemes!I115 -> 342 | K116: =WINEP_Schemes!K115 -> 22886 | L116: =WINEP_Schemes!L115 -> 1 | M116: =WINEP_Schemes!M115 -> WWN | N116: =WINEP_Schemes!N115 -> 1 | O116: 7.827012 | P116: 7.827012 | Q116: 0 | R116: 0 | S116: 0 | T116: 0 | U116: 0 | V116: 0
C117: =WINEP_Schemes!C116 -> GMC00511 | D117: =WINEP_Schemes!D116 -> 7UU300121 | E117: =WINEP_Schemes!E116 -> Worsley WwTW | F117: =WINEP_Schemes!F116 -> £ | G117: =WINEP_Schemes!G116 -> 1e-06 | H117: =WINEP_Schemes!H116 -> 0 | I117: =WINEP_Schemes!J116 -> 1 | J117: =WINEP_Schemes!I116 -> 254687 | K117: =WINEP_Schemes!K116 -> 1 | L117: =WINEP_Schemes!L116 -> 1 | M117: =WINEP_Schemes!M116 -> WWN | N117: =WINEP_Schemes!N116 -> 1 | O117: =I117 * J117 * G117 -> 0.254687 | P117: =N117 * O117 -> 0.254687 | Q117: =IF(L117 = 0, P117, (N117 - 1) * O117) -> 0 | R117: 0 | S117: 0 | T117: 0 | U117: 0 | V117: 0
C118: =WINEP_Schemes!C117 -> GMC00391 | D118: =WINEP_Schemes!D117 -> 7UU200814 | E118: =WINEP_Schemes!E117 -> Worsley WwTW Inlet CSO | F118: =WINEP_Schemes!F117 -> £ per m3 | G118: =WINEP_Schemes!G117 -> 1e-06 | H118: =WINEP_Schemes!H117 -> 0 | I118: =WINEP_Schemes!J117 -> 1300 | J118: =WINEP_Schemes!I117 -> 1840 | K118: =WINEP_Schemes!K117 -> 1300 | L118: =WINEP_Schemes!L117 -> 1 | M118: =WINEP_Schemes!M117 -> WWN | N118: =WINEP_Schemes!N117 -> 1 | O118: 2.392 | P118: 2.392 | Q118: 0 | R118: 0 | S118: 0 | T118: 0 | U118: 0 | V118: 0
C119: =WINEP_Schemes!C118 -> GMC00392 | D119: =WINEP_Schemes!D118 -> 7UU200815 | E119: =WINEP_Schemes!E118 -> Worsley WwTW Storm Tank | F119: =WINEP_Schemes!F118 -> £ per m3 | G119: =WINEP_Schemes!G118 -> 1e-06 | H119: =WINEP_Schemes!H118 -> 0 | I119: =WINEP_Schemes!J118 -> 675 | J119: =WINEP_Schemes!I118 -> 3269 | K119: =WINEP_Schemes!K118 -> 675 | L119: =WINEP_Schemes!L118 -> 1 | M119: =WINEP_Schemes!M118 -> WWN | N119: =WINEP_Schemes!N118 -> 1 | O119: 2.206575 | P119: 2.206575 | Q119: 0 | R119: 0 | S119: 0 | T119: 0 | U119: 0 | V119: 0
C120: =WINEP_Schemes!C119 -> GMC00367 | D120: =WINEP_Schemes!D119 -> 7UU200790 | E120: =WINEP_Schemes!E119 -> Bolton WwTW | F120: =WINEP_Schemes!F119 -> £ | G120: =WINEP_Schemes!G119 -> 1e-06 | H120: =WINEP_Schemes!H119 -> 0 | I120: =WINEP_Schemes!J119 -> 1 | J120: =WINEP_Schemes!I119 -> 12166666.67 | K120: =WINEP_Schemes!K119 -> 1 | L120: =WINEP_Schemes!L119 -> 0 | M120: =WINEP_Schemes!M119 -> WWN | N120: =WINEP_Schemes!N119 -> 1 | O120: =I120 * J120 * G120 -> 12.16666667 | P120: =N120 * O120 -> 12.16666667 | Q120: =IF(L120 = 0, P120, (N120 - 1) * O120) -> 12.16666667 | R120: 0 | S120: 0 | T120: 12.16666667 | U120: 0 | V120: 0
C121: =WINEP_Schemes!C120 -> GMC00508 | D121: =WINEP_Schemes!D120 -> 7UU300118 | E121: =WINEP_Schemes!E120 -> Bolton WwTW | F121: =WINEP_Schemes!F120 -> £ | G121: =WINEP_Schemes!G120 -> 1e-06 | H121: =WINEP_Schemes!H120 -> 0 | I121: =WINEP_Schemes!J120 -> 1 | J121: =WINEP_Schemes!I120 -> 12166666.67 | K121: =WINEP_Schemes!K120 -> 1 | L121: =WINEP_Schemes!L120 -> 0 | M121: =WINEP_Schemes!M120 -> WWN | N121: =WINEP_Schemes!N120 -> 1 | O121: 12.16666667 | P121: 12.16666667 | Q121: 12.16666667 | R121: 0 | S121: 0 | T121: 12.16666667 | U121: 0 | V121: 0
C122: =WINEP_Schemes!C121 -> GMC00307 | D122: =WINEP_Schemes!D121 -> 7UU200730 | E122: =WINEP_Schemes!E121 -> Bolton WwTW | F122: =WINEP_Schemes!F121 -> £ | G122: =WINEP_Schemes!G121 -> 1e-06 | H122: =WINEP_Schemes!H121 -> 0 | I122: =WINEP_Schemes!J121 -> 1 | J122: =WINEP_Schemes!I121 -> 12166666.67 | K122: =WINEP_Schemes!K121 -> 1 | L122: =WINEP_Schemes!L121 -> 0 | M122: =WINEP_Schemes!M121 -> WWN | N122: =WINEP_Schemes!N121 -> 1 | O122: 12.16666667 | P122: 12.16666667 | Q122: 12.16666667 | R122: 0 | S122: 0 | T122: 12.16666667 | U122: 0 | V122: 0
C123: =WINEP_Schemes!C122 -> GMC00368 | D123: =WINEP_Schemes!D122 -> 7UU200791 | E123: =WINEP_Schemes!E122 -> Bolton WwTW Storm Tanks | F123: =WINEP_Schemes!F122 -> £ | G123: =WINEP_Schemes!G122 -> 1e-06 | H123: =WINEP_Schemes!H122 -> 0 | I123: =WINEP_Schemes!J122 -> 1 | J123: =WINEP_Schemes!I122 -> 41800000 | K123: =WINEP_Schemes!K122 -> 1 | L123: =WINEP_Schemes!L122 -> 0 | M123: =WINEP_Schemes!M122 -> WWN | N123: =WINEP_Schemes!N122 -> 1 | O123: 41.8 | P123: 41.8 | Q123: 41.8 | R123: 0 | S123: 0 | T123: 41.8 | U123: 0 | V123: 0
C124: =WINEP_Schemes!C123 -> 0 | D124: =WINEP_Schemes!D123 -> 0 | E124: =WINEP_Schemes!E123 -> 0 | F124: =WINEP_Schemes!F123 -> 0 | G124: =WINEP_Schemes!G123 -> 0 | H124: =WINEP_Schemes!H123 -> 0 | I124: =WINEP_Schemes!J123 -> 0 | J124: =WINEP_Schemes!I123 -> 0 | K124: =WINEP_Schemes!K123 -> 0 | L124: =WINEP_Schemes!L123 -> 0 | M124: =WINEP_Schemes!M123 -> 0 | N124: =WINEP_Schemes!N123 -> 0 | O124: 0 | P124: 0 | Q124: 0 | R124: 0 | S124: 0 | T124: 0 | U124: 0 | V124: 0
A126: EXPAND OR REDUCE THE BLOCK ABOVE TO INCLUDE ALL SCHEMES ON THE INPUT SHEET
Q128: =SUM(Q11:Q124) -> 51.24022 | R128: =SUM(R11:R124) -> -0.236 | S128: 0 | T128: 51.47622 | U128: 0 | V128: 0
B129: Check the total WINEP reconciliation against the sum of the price control totals
E131: Total WINEP Reconciliation | F131: =Q128 -> 51.24022 | G131: £m
E132: Sum of the WINEP Reconciliation by price control | F132: =SUM(R128:V128) -> 51.24022 | G132: £m
E134: Price Control Reconciliation vs Total Reconciliation - check | F134: =IF( F132 - F131 > Chk_Tol, 1, 0) -> 0 | G134: check
B136: Total WINEP reconciliation for each price control
E138: Total Final Reconciliation, water resources | F138: =R128 -> -0.236 | G138: £m
E139: Total Final Reconciliation, water network | F139: =S128 -> 0 | G139: £m
E140: Total Final Reconciliation, wastewater network | F140: =T128 -> 51.47622 | G140: £m
E141: Total Final Reconciliation, bioresources | F141: =U128 -> 0 | G141: £m
E142: Total Final Reconciliation, dummy | F142: =V128 -> 0 | G142: £m
A145: End of sheet

Sheet Outputs >>

Sheet Annual_Outputs
A1: =RIGHT(CELL("filename", $A$1), LEN(CELL("filename", $A$1)) - SEARCH("]", CELL("filename", $A$1))) -> 
E2: =Time!E25 -> Model period ending | F2: =Check!F2 -> 0 | G2: Checks | J2: =Time!J$25 -> 2019-03-31 | K2: =Time!K$25 -> 2020-03-31 | L2: =Time!L$25 -> 2021-03-31 | M2: =Time!M$25 -> 2022-03-31 | N2: =Time!N$25 -> 2023-03-31 | O2: =Time!O$25 -> 2024-03-31 | P2: =Time!P$25 -> 2025-03-31
E3: =Time!E107 -> Timeline label | F3: =Check!F3 -> 5 | G3: Track chgs | J3: =Time!J$107 -> Pre-Fcst | K3: =Time!K$107 -> Pre-Fcst | L3: =Time!L$107 -> Forecast | M3: =Time!M$107 -> Forecast | N3: =Time!N$107 -> Forecast | O3: =Time!O$107 -> Forecast | P3: =Time!P$107 -> Forecast
E4: =Time!E130 -> Financial year ending | J4: =Time!J$130 -> 2019 | K4: =Time!K$130 -> 2020 | L4: =Time!L$130 -> 2021 | M4: =Time!M$130 -> 2022 | N4: =Time!N$130 -> 2023 | O4: =Time!O$130 -> 2024 | P4: =Time!P$130 -> 2025
E5: =Time!E5 -> Model column counter | F5: Total | G5: Unit | J5: =Time!I$10 -> 0 | K5: =Time!J$10 -> 1 | L5: =Time!K$10 -> 2 | M5: =Time!L$10 -> 3 | N5: =Time!M$10 -> 4 | O5: =Time!N$10 -> 5 | P5: =Time!O$10 -> 6
A7: ANNUAL ALLOWED COST
B9: WINEP reconciliation profiled across final 3 years of period
E11: =WINEP_Allowance!E138 -> Total Final Reconciliation, water resources | F11: =WINEP_Allowance!F138 -> -0.236 | G11: =WINEP_Allowance!G138 -> £m
E12: =WINEP_Allowance!E139 -> Total Final Reconciliation, water network | F12: =WINEP_Allowance!F139 -> 0 | G12: =WINEP_Allowance!G139 -> £m
E13: =WINEP_Allowance!E140 -> Total Final Reconciliation, wastewater network | F13: =WINEP_Allowance!F140 -> 51.47622 | G13: =WINEP_Allowance!G140 -> £m
E14: =WINEP_Allowance!E141 -> Total Final Reconciliation, bioresources | F14: =WINEP_Allowance!F141 -> 0 | G14: =WINEP_Allowance!G141 -> £m
E15: =WINEP_Allowance!E142 -> Total Final Reconciliation, dummy | F15: =WINEP_Allowance!F142 -> 0 | G15: =WINEP_Allowance!G142 -> £m
E17: =Time!E$93 -> Start of adjustment profiling flag | F17: =Time!F$93 -> 0 | G17: =Time!G$93 -> counter | H17: =Time!H$93 -> 3 | I17: =Time!I$93 -> 0 | J17: =Time!J$93 -> 0 | K17: =Time!K$93 -> 0 | L17: =Time!L$93 -> 0 | M17: =Time!M$93 -> 0 | N17: =Time!N$93 -> 1 | O17: =Time!O$93 -> 1 | P17: =Time!P$93 -> 1
E19: Total Final Reconciliation - profiled, water resources | G19: £m | H19: =SUM(J19:P19) -> -0.236 | J19: =IF( J$17 = 1, $F11 / 3, 0) -> 0 | K19: 0 | L19: 0 | M19: 0 | N19: =IF( N$17 = 1, $F11 / 3, 0) -> -0.07866666667 | O19: =IF( O$17 = 1, $F11 / 3, 0) -> -0.07866666667 | P19: -0.07866666667
E20: Total Final Reconciliation - profiled, water network | G20: £m | H20: =SUM(J20:P20) -> 0 | J20: =IF( J$17 = 1, $F12 / 3, 0) -> 0 | K20: 0 | L20: 0 | M20: 0 | N20: =IF( N$17 = 1, $F12 / 3, 0) -> 0 | O20: 0 | P20: 0
E21: Total Final Reconciliation - profiled, wastewater network | G21: £m | H21: 51.47622 | J21: =IF( J$17 = 1, $F13 / 3, 0) -> 0 | K21: 0 | L21: 0 | M21: 0 | N21: =IF( N$17 = 1, $F13 / 3, 0) -> 17.15874 | O21: 17.15874 | P21: 17.15874
E22: Total Final Reconciliation - profiled, bioresources | G22: £m | H22: 0 | J22: =IF( J$17 = 1, $F14 / 3, 0) -> 0 | K22: 0 | L22: 0 | M22: 0 | N22: =IF( N$17 = 1, $F14 / 3, 0) -> 0 | O22: 0 | P22: 0
E23: Total Final Reconciliation - profiled, dummy | G23: £m | H23: 0 | J23: =IF( J$17 = 1, $F15 / 3, 0) -> 0 | K23: 0 | L23: 0 | M23: 0 | N23: =IF( N$17 = 1, $F15 / 3, 0) -> 0 | O23: 0 | P23: 0
C25: WINEP reconciliation for cost reconciliation model
E26: WINEP Reconciliation, water resources - without adjustment for time value of money | F26: =F19 -> 0 | G26: £m | H26: -0.236 | I26: 0 | J26: 0 | K26: 0 | L26: 0 | M26: 0 | N26: -0.07866666667 | O26: -0.07866666667 | P26: -0.07866666667
E27: WINEP Reconciliation, water network - without adjustment for time value of money | F27: =F20 -> 0 | G27: £m | H27: 0 | I27: 0 | J27: 0 | K27: 0 | L27: 0 | M27: 0 | N27: 0 | O27: 0 | P27: 0
E28: WINEP Reconciliation, wastewater network - without adjustment for time value of money | F28: =F21 -> 0 | G28: £m | H28: 51.47622 | I28: 0 | J28: 0 | K28: 0 | L28: 0 | M28: 0 | N28: 17.15874 | O28: 17.15874 | P28: 17.15874
E29: WINEP Reconciliation, bioresources - without adjustment for time value of money | F29: =F22 -> 0 | G29: £m | H29: 0 | I29: 0 | J29: 0 | K29: 0 | L29: 0 | M29: 0 | N29: 0 | O29: 0 | P29: 0
E30: WINEP Reconciliation, dummy - without adjustment for time value of money | F30: =F23 -> 0 | G30: £m | H30: 0 | I30: 0 | J30: 0 | K30: 0 | L30: 0 | M30: 0 | N30: 0 | O30: 0 | P30: 0
B32: WINEP reconciliation adjusted for time value of money
E34: =InpActive!E$33 -> Financing cost index | F34: =InpActive!F$33 -> 0 | G34: =InpActive!G$33 -> Index | J34: =InpActive!J$33 -> 0 | K34: =InpActive!K$33 -> 0 | L34: =InpActive!L$33 -> 4 | M34: =InpActive!M$33 -> 3 | N34: =InpActive!N$33 -> 2 | O34: =InpActive!O$33 -> 1 | P34: =InpActive!P$33 -> 0
E35: =InpActive!E$35 -> Financing Cost | F35: =InpActive!F$35 -> 0.0292 | G35: =InpActive!G$35 -> %
E36: Time value of money factor | G36: Factor | J36: =(1+$F35) ^ J$34 -> 1 | K36: =(1+$F35) ^ K$34 -> 1 | L36: =(1+$F35) ^ L$34 -> 1.122016155 | M36: 1.090182817 | N36: =(1+$F35) ^ N$34 -> 1.05925264 | O36: =(1+$F35) ^ O$34 -> 1.0292 | P36: =(1+$F35) ^ P$34 -> 1
E38: =E26 -> WINEP Reconciliation, water resources - without adjustment for time value of money | F38: =F26 -> 0 | G38: =G26 -> £m | H38: =H26 -> -0.236 | I38: 0 | J38: =J26 -> 0 | K38: 0 | L38: 0 | M38: 0 | N38: -0.07866666667 | O38: -0.07866666667 | P38: =P26 -> -0.07866666667
E39: =E27 -> WINEP Reconciliation, water network - without adjustment for time value of money | F39: 0 | G39: £m | H39: =H27 -> 0 | I39: 0 | J39: =J27 -> 0 | K39: 0 | L39: 0 | M39: 0 | N39: 0 | O39: 0 | P39: =P27 -> 0
E40: WINEP Reconciliation, wastewater network - without adjustment for time value of money | F40: 0 | G40: £m | H40: =H28 -> 51.47622 | I40: 0 | J40: =J28 -> 0 | K40: 0 | L40: 0 | M40: 0 | N40: 17.15874 | O40: 17.15874 | P40: =P28 -> 17.15874
E41: WINEP Reconciliation, bioresources - without adjustment for time value of money | F41: 0 | G41: £m | H41: =H29 -> 0 | I41: 0 | J41: =J29 -> 0 | K41: 0 | L41: 0 | M41: 0 | N41: 0 | O41: 0 | P41: =P29 -> 0
E42: WINEP Reconciliation, dummy - without adjustment for time value of money | F42: 0 | G42: £m | H42: =H30 -> 0 | I42: 0 | J42: =J30 -> 0 | K42: 0 | L42: 0 | M42: 0 | N42: 0 | O42: 0 | P42: =P30 -> 0
E44: =E$36 -> Time value of money factor | F44: =F$36 -> 0 | G44: Factor | H44: 0 | I44: 0 | J44: 1 | K44: 1 | L44: 1.122016155 | M44: 1.090182817 | N44: 1.05925264 | O44: 1.0292 | P44: =P$36 -> 1
C46: WINEP reconciliation for PR24 RCV adjustment
E47: WINEP Reconciliation, water resources - adjusted for time value of money | G47: £m | H47: =SUM(J47:P47) -> -0.2429582743 | J47: =J38 * J$44 -> 0 | K47: 0 | L47: 0 | M47: 0 | N47: -0.08332787435 | O47: -0.08096373333 | P47: -0.07866666667
E48: WINEP Reconciliation, water network - adjusted for time value of money | G48: £m | H48: =SUM(J48:P48) -> 0 | J48: =J39 * J$44 -> 0 | K48: 0 | L48: 0 | M48: 0 | N48: =N39 * N$44 -> 0 | O48: 0 | P48: =P39 * P$44 -> 0
E49: WINEP Reconciliation, wastewater network - adjusted for time value of money | G49: £m | H49: 52.99395585 | J49: =J40 * J$44 -> 0 | K49: 0 | L49: 0 | M49: 0 | N49: =N40 * N$44 -> 18.17544064 | O49: 17.65977521 | P49: =P40 * P$44 -> 17.15874
E50: WINEP Reconciliation, bioresources - adjusted for time value of money | G50: £m | H50: 0 | J50: =J41 * J$44 -> 0 | K50: 0 | L50: 0 | M50: 0 | N50: =N41 * N$44 -> 0 | O50: 0 | P50: =P41 * P$44 -> 0
E51: WINEP Reconciliation, dummy - adjusted for time value of money | G51: £m | H51: 0 | J51: =J42 * J$44 -> 0 | K51: 0 | L51: 0 | M51: 0 | N51: =N42 * N$44 -> 0 | O51: 0 | P51: =P42 * P$44 -> 0
A54: End of sheet

Sheet F_Outputs
C1: PR19FM007_WINEP_Out
A2: Acronym | B2: Reference | C2: Item description | D2: Unit | E2: Model | F2: 2022-23 | G2: 2023-24 | H2: 2024-25 | I2: 2020-25
A4: NWT | B4: C__PR24PD11_PD11_12WR_PRETVM_PR24 | C4: PR19 WINEP / NEP RCV adjustment in 2017-18 FYA (CPIH deflated) prices (WR) - Pre time value of money adjustment | D4: £m | E4: Price review 2024 | F4: =Annual_Outputs!N26 -> -0.07866666667 | G4: =Annual_Outputs!O26 -> -0.07866666667 | H4: =Annual_Outputs!P26 -> -0.07866666667 | I4: =Annual_Outputs!H26 -> -0.236
A5: NWT | B5: C__PR24PD11_PD11_12WN_PRETVM_PR24 | C5: PR19 WINEP / NEP RCV adjustment in 2017-18 FYA (CPIH deflated) prices (WN) - Pre time value of money adjustment | D5: £m | E5: Price review 2024 | F5: =Annual_Outputs!N27 -> 0 | G5: =Annual_Outputs!O27 -> 0 | H5: =Annual_Outputs!P27 -> 0 | I5: =Annual_Outputs!H27 -> 0
A6: NWT | B6: C__PR24PD11_PD11_12WWN_PRETVM_PR24 | C6: PR19 WINEP / NEP RCV adjustment in 2017-18 FYA (CPIH deflated) prices (WWN) - Pre time value of money adjustment | D6: £m | E6: Price review 2024 | F6: =Annual_Outputs!N28 -> 17.15874 | G6: =Annual_Outputs!O28 -> 17.15874 | H6: =Annual_Outputs!P28 -> 17.15874 | I6: =Annual_Outputs!H28 -> 51.47622
A7: NWT | B7: C__PR24PD11_PD11_12BIO_PRETVM_PR24 | C7: PR19 WINEP / NEP RCV adjustment in 2017-18 FYA (CPIH deflated) prices (BR) - Pre time value of money adjustment | D7: £m | E7: Price review 2024 | F7: =Annual_Outputs!N29 -> 0 | G7: =Annual_Outputs!O29 -> 0 | H7: =Annual_Outputs!P29 -> 0 | I7: =Annual_Outputs!H29 -> 0
A8: NWT | B8: C__PR24PD11_PD11_12ADDN1_PRETVM_PR24 | C8: PR19 WINEP / NEP RCV adjustment in 2017-18 FYA (CPIH deflated) prices (ADDN1) - Pre time value of money adjustment | D8: £m | E8: Price review 2024 | F8: =Annual_Outputs!N30 -> 0 | G8: =Annual_Outputs!O30 -> 0 | H8: =Annual_Outputs!P30 -> 0 | I8: =Annual_Outputs!H30 -> 0
A9: NWT | B9: C_PR24PD11_PD11_12WR_PR24 | C9: PR19 WINEP / NEP RCV adjustment in 2017-18 FYA (CPIH deflated) prices (WR) | D9: £m | E9: Price review 2024 | F9: =Annual_Outputs!N47 -> -0.08332787435 | G9: =Annual_Outputs!O47 -> -0.08096373333 | H9: =Annual_Outputs!P47 -> -0.07866666667 | I9: =Annual_Outputs!H47 -> -0.2429582743
A10: NWT | B10: C_PR24PD11_PD11_12WN_PR24 | C10: PR19 WINEP / NEP RCV adjustment in 2017-18 FYA (CPIH deflated) prices (WN) | D10: £m | E10: Price review 2024 | F10: =Annual_Outputs!N48 -> 0 | G10: =Annual_Outputs!O48 -> 0 | H10: =Annual_Outputs!P48 -> 0 | I10: =Annual_Outputs!H48 -> 0
A11: NWT | B11: C_PR24PD11_PD11_12WWN_PR24 | C11: PR19 WINEP / NEP RCV adjustment in 2017-18 FYA (CPIH deflated) prices (WWN) | D11: £m | E11: Price review 2024 | F11: =Annual_Outputs!N49 -> 18.17544064 | G11: =Annual_Outputs!O49 -> 17.65977521 | H11: =Annual_Outputs!P49 -> 17.15874 | I11: =Annual_Outputs!H49 -> 52.99395585
A12: NWT | B12: C_PR24PD11_PD11_12BIO_PR24 | C12: PR19 WINEP / NEP RCV adjustment in 2017-18 FYA (CPIH deflated) prices (BR) | D12: £m | E12: Price review 2024 | F12: =Annual_Outputs!N50 -> 0 | G12: =Annual_Outputs!O50 -> 0 | H12: =Annual_Outputs!P50 -> 0 | I12: =Annual_Outputs!H50 -> 0
A13: NWT | B13: C_PR24PD11_PD11_12ADDN1_PR24 | C13: PR19 WINEP / NEP RCV adjustment in 2017-18 FYA (CPIH deflated) prices (ADDN1) | D13: £m | E13: Price review 2024 | F13: =Annual_Outputs!N51 -> 0 | G13: =Annual_Outputs!O51 -> 0 | H13: =Annual_Outputs!P51 -> 0 | I13: =Annual_Outputs!H51 -> 0
A14: NWT | B14: PR24QA_PR24PD11_OUT1 | C14: Date & Time for Model - PR24PD11 | D14: Text | E14: Price Review 2024 | F14: =CONCATENATE("[…]", TEXT(NOW(),"dd/mm/yyy hh:mm:ss")) -> […]10/12/2024 14:13:59 | G14: =CONCATENATE("[…]", TEXT(NOW(),"dd/mm/yyy hh:mm:ss")) -> […]10/12/2024 14:13:59 | H14: […]10/12/2024 14:13:59 | I14: […]10/12/2024 14:13:59
A15: NWT | B15: PR24QA_PR24PD11_OUT2 | C15: Name of Model - PR24PD11 | D15: Text | E15: Price Review 2024 | F15: =MID(CELL("filename"),SEARCH("[",CELL("filename"))+1,SEARCH("]",CELL("filename"))-SEARCH("[",CELL("filename"))-1) ->  | G15: =MID(CELL("filename"),SEARCH("[",CELL("filename"))+1,SEARCH("]",CELL("filename"))-SEARCH("[",CELL("filename"))-1) -> 
A16: NWT | B16: PR24QA_PR24PD11_OUT3 | C16: F_Inputs time stamp - PR24PD11 | D16: Text | E16: Price Review 2024 | F16: N/A | G16: N/A | H16: N/A | I16: N/A
A17: NWT | B17: PR24QA_PR24PD11_OUT4 | C17: Model override switch for - PR24PD11 | D17: nr | E17: Price Review 2024 | F17: 0 | G17: 0 | H17: 0 | I17: 0

Sheet QA >>

Sheet Track
A1: =RIGHT(CELL("filename", $A$1), LEN(CELL("filename", $A$1)) - SEARCH("]", CELL("filename", $A$1))) ->  | M1: do not del col | O1: do not del col
F2: =Check!$F$2 -> 0 | G2: Checks | J2: =SUM(J7:J28) -> 5
F3: =J2 -> 5 | G3: Track chgs
G5: Unit | J5: =MATCH($H$6, M6:O6, 0) -> 2 | K5: Difference | L5: Diff %
E6: Comparison column label | H6: Nil inputs | N6: Nil inputs
E7: [do not delete row]
A8: INPUTS
J9: =IF(ABS(K9) > InpActive!$F$42, 1, 0) -> 0 | K9: =H9 - INDEX(M9:O9, $J$5) -> 0 | L9: =IF(ABS(K9) > InpActive!$F$42, IF(INDEX(M9:O9, $J$5) = 0, 0, H9 / INDEX(M9:O9, $J$5) - 1), 0) -> 0
C10: Inputs | J10: =IF(ABS(K10) > InpActive!$F$42, 1, 0) -> 0 | K10: 0 | L10: =IF(ABS(K10) > InpActive!$F$42, IF(INDEX(M10:O10, $J$5) = 0, 0, H10 / INDEX(M10:O10, $J$5) - 1), 0) -> 0
E11: =InpActive!E35 -> Financing Cost | G11: =InpActive!G35 -> % | H11: =InpActive!F35 -> 0.0292 | J11: =IF(ABS(K11) > InpActive!$F$42, 1, 0) -> 1 | K11: 0.0292 | L11: =IF(ABS(K11) > InpActive!$F$42, IF(INDEX(M11:O11, $J$5) = 0, 0, H11 / INDEX(M11:O11, $J$5) - 1), 0) -> 0 | N11: 0
J12: =IF(ABS(K12) > InpActive!$F$42, 1, 0) -> 0 | K12: 0 | L12: =IF(ABS(K12) > InpActive!$F$42, IF(INDEX(M12:O12, $J$5) = 0, 0, H12 / INDEX(M12:O12, $J$5) - 1), 0) -> 0 | N12: 0
J13: =IF(ABS(K13) > InpActive!$F$42, 1, 0) -> 0 | K13: 0 | L13: =IF(ABS(K13) > InpActive!$F$42, IF(INDEX(M13:O13, $J$5) = 0, 0, H13 / INDEX(M13:O13, $J$5) - 1), 0) -> 0 | N13: 0
C14: Outputs | J14: =IF(ABS(K14) > InpActive!$F$42, 1, 0) -> 0 | K14: 0 | L14: =IF(ABS(K14) > InpActive!$F$42, IF(INDEX(M14:O14, $J$5) = 0, 0, H14 / INDEX(M14:O14, $J$5) - 1), 0) -> 0
E15: =Annual_Outputs!E26 -> WINEP Reconciliation, water resources - without adjustment for time value of money | G15: =Annual_Outputs!G26 -> £m | H15: =Annual_Outputs!H26 -> -0.236 | J15: =IF(ABS(K15) > InpActive!$F$42, 1, 0) -> 1 | K15: -0.236 | L15: =IF(ABS(K15) > InpActive!$F$42, IF(INDEX(M15:O15, $J$5) = 0, 0, H15 / INDEX(M15:O15, $J$5) - 1), 0) -> 0 | N15: 0
E16: =Annual_Outputs!E27 -> WINEP Reconciliation, water network - without adjustment for time value of money | G16: =Annual_Outputs!G27 -> £m | H16: =Annual_Outputs!H27 -> 0 | J16: =IF(ABS(K16) > InpActive!$F$42, 1, 0) -> 0 | K16: 0 | L16: =IF(ABS(K16) > InpActive!$F$42, IF(INDEX(M16:O16, $J$5) = 0, 0, H16 / INDEX(M16:O16, $J$5) - 1), 0) -> 0 | N16: 0
E17: =Annual_Outputs!E28 -> WINEP Reconciliation, wastewater network - without adjustment for time value of money | G17: =Annual_Outputs!G28 -> £m | H17: =Annual_Outputs!H28 -> 51.47622 | J17: =IF(ABS(K17) > InpActive!$F$42, 1, 0) -> 1 | K17: =H17 - INDEX(M17:O17, $J$5) -> 51.47622 | L17: =IF(ABS(K17) > InpActive!$F$42, IF(INDEX(M17:O17, $J$5) = 0, 0, H17 / INDEX(M17:O17, $J$5) - 1), 0) -> 0 | N17: 0
E18: =Annual_Outputs!E29 -> WINEP Reconciliation, bioresources - without adjustment for time value of money | G18: =Annual_Outputs!G29 -> £m | H18: =Annual_Outputs!H29 -> 0 | J18: =IF(ABS(K18) > InpActive!$F$42, 1, 0) -> 0 | K18: 0 | L18: =IF(ABS(K18) > InpActive!$F$42, IF(INDEX(M18:O18, $J$5) = 0, 0, H18 / INDEX(M18:O18, $J$5) - 1), 0) -> 0 | N18: 0
E19: =Annual_Outputs!E30 -> WINEP Reconciliation, dummy - without adjustment for time value of money | G19: =Annual_Outputs!G30 -> £m | H19: =Annual_Outputs!H30 -> 0 | J19: =IF(ABS(K19) > InpActive!$F$42, 1, 0) -> 0 | K19: 0 | L19: =IF(ABS(K19) > InpActive!$F$42, IF(INDEX(M19:O19, $J$5) = 0, 0, H19 / INDEX(M19:O19, $J$5) - 1), 0) -> 0 | N19: 0
E20: =Annual_Outputs!E47 -> WINEP Reconciliation, water resources - adjusted for time value of money | G20: =Annual_Outputs!G47 -> £m | H20: =Annual_Outputs!H47 -> -0.2429582743 | J20: =IF(ABS(K20) > InpActive!$F$42, 1, 0) -> 1 | K20: =H20 - INDEX(M20:O20, $J$5) -> -0.2429582743 | L20: =IF(ABS(K20) > InpActive!$F$42, IF(INDEX(M20:O20, $J$5) = 0, 0, H20 / INDEX(M20:O20, $J$5) - 1), 0) -> 0 | N20: 0
E21: =Annual_Outputs!E48 -> WINEP Reconciliation, water network - adjusted for time value of money | G21: =Annual_Outputs!G48 -> £m | H21: =Annual_Outputs!H48 -> 0 | J21: =IF(ABS(K21) > InpActive!$F$42, 1, 0) -> 0 | K21: =H21 - INDEX(M21:O21, $J$5) -> 0 | L21: =IF(ABS(K21) > InpActive!$F$42, IF(INDEX(M21:O21, $J$5) = 0, 0, H21 / INDEX(M21:O21, $J$5) - 1), 0) -> 0 | N21: 0
E22: =Annual_Outputs!E49 -> WINEP Reconciliation, wastewater network - adjusted for time value of money | G22: =Annual_Outputs!G49 -> £m | H22: =Annual_Outputs!H49 -> 52.99395585 | J22: =IF(ABS(K22) > InpActive!$F$42, 1, 0) -> 1 | K22: 52.99395585 | L22: =IF(ABS(K22) > InpActive!$F$42, IF(INDEX(M22:O22, $J$5) = 0, 0, H22 / INDEX(M22:O22, $J$5) - 1), 0) -> 0 | N22: 0
E23: =Annual_Outputs!E50 -> WINEP Reconciliation, bioresources - adjusted for time value of money | G23: =Annual_Outputs!G50 -> £m | H23: =Annual_Outputs!H50 -> 0 | J23: =IF(ABS(K23) > InpActive!$F$42, 1, 0) -> 0 | K23: 0 | L23: =IF(ABS(K23) > InpActive!$F$42, IF(INDEX(M23:O23, $J$5) = 0, 0, H23 / INDEX(M23:O23, $J$5) - 1), 0) -> 0 | N23: 0
E24: =Annual_Outputs!E51 -> WINEP Reconciliation, dummy - adjusted for time value of money | G24: =Annual_Outputs!G51 -> £m | H24: =Annual_Outputs!H51 -> 0 | J24: =IF(ABS(K24) > InpActive!$F$42, 1, 0) -> 0 | K24: 0 | L24: =IF(ABS(K24) > InpActive!$F$42, IF(INDEX(M24:O24, $J$5) = 0, 0, H24 / INDEX(M24:O24, $J$5) - 1), 0) -> 0 | N24: 0
J25: =IF(ABS(K25) > InpActive!$F$42, 1, 0) -> 0 | K25: 0 | L25: =IF(ABS(K25) > InpActive!$F$42, IF(INDEX(M25:O25, $J$5) = 0, 0, H25 / INDEX(M25:O25, $J$5) - 1), 0) -> 0 | N25: 0
J26: =IF(ABS(K26) > InpActive!$F$42, 1, 0) -> 0 | K26: 0 | L26: =IF(ABS(K26) > InpActive!$F$42, IF(INDEX(M26:O26, $J$5) = 0, 0, H26 / INDEX(M26:O26, $J$5) - 1), 0) -> 0 | N26: 0
A28: INFO ONLY
E30: Date | H30: =TODAY() -> 2024-12-10
E31: Time | H31: =NOW() -> 45636.59305
E32: File | H32: =MID(CELL("filename",$A$1), SEARCH("[", CELL("filename",$A$1)) + 1, SEARCH("]", CELL("filename",$A$1)) - SEARCH("[", CELL("filename",$A$1)) - 1) -> 
E33: [do not delete row] | J33: range end
E35: Comment: Key input and logic changes | N35: Nil inputs
E36: Comment: Key result changes
A38: End of sheet

Sheet Check
A1: =RIGHT(CELL("filename", $A$1), LEN(CELL("filename", $A$1)) - SEARCH("]", CELL("filename", $A$1))) -> 
F2: =F11 -> 0 | G2: Checks
F3: =F24 -> 5 | G3: Track chgs
F5: Constant | G5: Unit
A7: CHECK SUMMARY
A9: MODEL INTEGRITY CHECKS
E11: Total model integrity checks | F11: =SUM(F16:F21) -> 0
E13: [do not delete row]
B15: WINEP RECONCILIATION
E16: =WINEP_Allowance!E134 -> Price Control Reconciliation vs Total Reconciliation - check | F16: =WINEP_Allowance!F134 -> 0 | G16: =WINEP_Allowance!G134 -> check
B18: TIME
E19: =Time!E121 -> Modelling period check | F19: =Time!F121 -> 0 | G19: =Time!G121 -> check
E22: [do not delete row]
E24: Total track changes | F24: =Track!J2 -> 5
A27: End of sheet
